Workbook

Sheet Cover Sheet
B2: Supplementary document
B3: Ofgem Quantitative Analysis Model and Result: Cadent NW
B5: Version Control | C5: Date Published | D5: Purpose
B6: v1.0 | C6: 2019-03-20 | D6: Supplementary document published alongside the consultation on GDNs’ Rebased Targets

Sheet Content Sheet
D2: ='Cover Sheet'!B3 -> Ofgem Quantitative Analysis Model and Result: Cadent NW
D4: Introduction
B6: Description
B8: This analysis model sets out the quantitative checks used to to assess whether the Rebased Targets are consistent with NOMs methodology and the assumptions set out in Final Proposals, and are in the same format and as equally challenging as the Original Targets.
B10: The first diagram below ('model context') describes the relationship between the Original Targets and Rebased Targets that are analysed.
B12: The second diagram below ('model map') provides an overview of the structure of our assessment.
B15: Model context
A22: "
B43: Model map
B72: List of worksheets
B74: Worksheet name | C74: Worksheet type | D74: Description
B75: Cover sheet | C75: n/a | D75: Title
B76: Content sheet | C76: n/a | D76: Introduction of assessment model and list of worksheets
B77: 1 Summary of Quantitative Checks=>
B78: 1.0_Summary_Checks | C78: Outputs | D78: Results summary of the three quantitative checks
B79: 3 Inputs=>
B80: 2.0_Raw_Data | C80: Inputs | D80: Raw data of rebasing submissions
B81: 3.0_Data_Copy | C81: Inputs | D81: Copy of raw rebasing data for assessment input
B82: 2 Quantitative Checks=>
B83: 4.0_Check_1 | C83: Calculations | D83: Check 1: The volume of intervention
B84: 5.0_Check_2 | C84: Calculations | D84: Check 2: The intervention split between replacement and refurbishment
B85: 6.0_Check_3 | C85: Calculations | D85: Check 3: The potential to outperform (PTO)
B87: The 5x4 Matrix for Original Targets and Rebased Targets
B89: In order to allow us to carry out the quantitative analysis in a consistent and transparent manner across the sector, we agreed with GDNs a standard rebasing data template which is to be populated with the Rebased Targets
B90: (and supplementary data) in both the volume and monetary format as the 5x4 matrix of asset health/criticality indices (HI/CI) used in the original Workbook.
B92: The standard 5x4 matrix of HI/CI is illustrated below, where the asset risk increases along both the asset health index (from HI1 to HI5) and criticality index (from C4 to C1).

Sheet 1.0_Summary_Checks
D2: ='Cover Sheet'!B3 -> Ofgem Quantitative Analysis Model and Result: Cadent NW
D4: Summary of Outputs
B6: NW | G6: Check 3a: PTO in Criticality | J6: Check 3b: PTO in Asset Health
D7: Check 1: Intervention Volume | F7: Check 2: Split of Replace/Refurb | G7: %, (Original PTO - Rebased PTO) / (Intervention vol) | J7: %, (Original PTO - Rebased PTO) / (Intervention vol)
B8: Asset categories | D8: Original | E8: Rebased | F8: Original vs Rebased | G8: C1 | H8: C1+C2 | I8: C1+C2+C3 | J8: HI5 | K8: HI5+HI4 | L8: HI5+HI4+HI3
B9: 4 | C9: Block Valves | D9: ='4.0_Check_1'!D14 -> 34 | E9: ='4.0_Check_1'!H14 -> 0 | F9: ='5.0_Check_2'!L14 -> - | G9: ='6.0_Check_3'!O27 -> Check C1+C2 | H9: ='6.0_Check_3'!R27 -> Check C1+C2+C3 | I9: ='6.0_Check_3'!U27 -> No Intervention to Check | J9: ='6.0_Check_3'!O34 -> Check HI5+HI4 | K9: ='6.0_Check_3'!R34 -> Check HI5+HI4+HI3 | L9: ='6.0_Check_3'!U34 -> No Intervention to Check
B10: 7 | C10: Sleeves (Nitrogen & other) | D10: ='4.0_Check_1'!D24 -> 190 | E10: ='4.0_Check_1'!H24 -> 190 | F10: ='5.0_Check_2'!L27 -> Same/Similar Split | G10: ='6.0_Check_3'!O53 -> Check C1+C2 | H10: ='6.0_Check_3'!R53 -> -6.161890183e-06 | I10: ='6.0_Check_3'!U53 -> -1.003144925e-05 | J10: ='6.0_Check_3'!O60 -> -7.759246345e-06 | K10: ='6.0_Check_3'!R60 -> -1.019805493e-05 | L10: ='6.0_Check_3'!U60 -> -1.354358013e-05
B11: 8 | C11: LTS Pipelines - Piggable | D11: ='4.0_Check_1'!D34 -> 65 | E11: ='4.0_Check_1'!H34 -> 65 | F11: ='5.0_Check_2'!L40 -> Same/Similar Split | G11: ='6.0_Check_3'!O79 -> Check C1+C2 | H11: ='6.0_Check_3'!R79 -> Check C1+C2+C3 | I11: ='6.0_Check_3'!U79 -> No Intervention to Check | J11: ='6.0_Check_3'!O86 -> Check HI5+HI4 | K11: ='6.0_Check_3'!R86 -> Check HI5+HI4+HI3 | L11: ='6.0_Check_3'!U86 -> No Intervention to Check
B12: 9 | C12: LTS Pipelines – Non Piggable | D12: ='4.0_Check_1'!D44 -> 136 | E12: ='4.0_Check_1'!H44 -> 136 | F12: ='5.0_Check_2'!L53 -> Same/Similar Split | G12: ='6.0_Check_3'!O105 -> -0.0003538289433 | H12: ='6.0_Check_3'!R105 -> -0.0003758745846 | I12: ='6.0_Check_3'!U105 -> 0 | J12: ='6.0_Check_3'!O112 -> -0.0007025514167 | K12: ='6.0_Check_3'!R112 -> 0 | L12: ='6.0_Check_3'!U112 -> 0
B13: 13 | C13: Distribution Mains (Iron) | D13: ='4.0_Check_1'!D54 -> 3526.394218 | E13: ='4.0_Check_1'!H54 -> 3526.395 | F13: ='5.0_Check_2'!L66 -> Same/Similar Split | G13: ='6.0_Check_3'!O131 -> 0.1344956836 | H13: ='6.0_Check_3'!R131 -> 0.1323753157 | I13: ='6.0_Check_3'!U131 -> 0.1323753157 | J13: ='6.0_Check_3'!O138 -> -0.01164868251 | K13: ='6.0_Check_3'!R138 -> -0.01376905037 | L13: ='6.0_Check_3'!U138 -> 0
B14: 14 | C14: Distribution Mains (PE) | D14: ='4.0_Check_1'!D64 -> 0 | E14: ='4.0_Check_1'!H64 -> 0 | F14: ='5.0_Check_2'!L79 -> - | G14: ='6.0_Check_3'!O157 -> Check C1+C2 | H14: ='6.0_Check_3'!R157 -> Check C1+C2+C3 | I14: ='6.0_Check_3'!U157 -> No Intervention to Check | J14: ='6.0_Check_3'!O164 -> Check HI5+HI4 | K14: ='6.0_Check_3'!R164 -> Check HI5+HI4+HI3 | L14: ='6.0_Check_3'!U164 -> No Intervention to Check
B15: 15 | C15: Distribution Mains (Steel) | D15: ='4.0_Check_1'!D74 -> 320.89 | E15: ='4.0_Check_1'!H74 -> 320.889 | F15: ='5.0_Check_2'!L92 -> Same/Similar Split | G15: ='6.0_Check_3'!O183 -> Check C1+C2 | H15: ='6.0_Check_3'!R183 -> Check C1+C2+C3 | I15: ='6.0_Check_3'!U183 -> No Intervention to Check | J15: ='6.0_Check_3'!O190 -> Check HI5+HI4 | K15: ='6.0_Check_3'!R190 -> Check HI5+HI4+HI3 | L15: ='6.0_Check_3'!U190 -> -0.03653262286
B16: 16 | C16: Distribution Mains (other) | D16: ='4.0_Check_1'!D84 -> 64.6 | E16: ='4.0_Check_1'!H84 -> 66.032 | F16: ='5.0_Check_2'!L105 -> Same/Similar Split | G16: ='6.0_Check_3'!O209 -> 0 | H16: ='6.0_Check_3'!R209 -> 0 | I16: ='6.0_Check_3'!U209 -> 0 | J16: ='6.0_Check_3'!O216 -> 0 | K16: ='6.0_Check_3'!R216 -> 0 | L16: ='6.0_Check_3'!U216 -> 0
B17: 17 | C17: Services | D17: ='4.0_Check_1'!D94 -> 229785 | E17: ='4.0_Check_1'!H94 -> 229785 | F17: ='5.0_Check_2'!L118 -> Same/Similar Split | G17: ='6.0_Check_3'!O235 -> Check C1+C2 | H17: ='6.0_Check_3'!R235 -> Check C1+C2+C3 | I17: ='6.0_Check_3'!U235 -> No Intervention to Check | J17: ='6.0_Check_3'!O242 -> 0.00691191785 | K17: ='6.0_Check_3'!R242 -> 0 | L17: ='6.0_Check_3'!U242 -> 0
B18: 18 | C18: MOB Risers | D18: ='4.0_Check_1'!D104 -> 246 | E18: ='4.0_Check_1'!H104 -> 246 | F18: ='5.0_Check_2'!L131 -> Same/Similar Split | G18: ='6.0_Check_3'!O261 -> Check C1+C2 | H18: ='6.0_Check_3'!R261 -> -0.01602662784 | I18: ='6.0_Check_3'!U261 -> -0.02890256419 | J18: ='6.0_Check_3'!O268 -> Check HI5+HI4 | K18: ='6.0_Check_3'!R268 -> -0.02902817932 | L18: ='6.0_Check_3'!U268 -> 0
B19: 22 | C19: NTS Offtakes | D19: ='4.0_Check_1'!D114 -> 81 | E19: ='4.0_Check_1'!H114 -> 81 | F19: ='5.0_Check_2'!L144 -> Same/Similar Split | G19: ='6.0_Check_3'!O287 -> -0.02457027719 | H19: ='6.0_Check_3'!R287 -> -0.0329065383 | I19: ='6.0_Check_3'!U287 -> -0.03418050978 | J19: ='6.0_Check_3'!O294 -> -0.04556288665 | K19: ='6.0_Check_3'!R294 -> -0.03785177272 | L19: ='6.0_Check_3'!U294 -> -0.02370685785
B20: 23 | C20: PRSs | D20: ='4.0_Check_1'!D124 -> 520 | E20: ='4.0_Check_1'!H124 -> 520 | F20: ='5.0_Check_2'!L157 -> Same/Similar Split | G20: ='6.0_Check_3'!O313 -> -0.04204521305 | H20: ='6.0_Check_3'!R313 -> -0.02315217678 | I20: ='6.0_Check_3'!U313 -> -0.03658221118 | J20: ='6.0_Check_3'!O320 -> -0.05227200012 | K20: ='6.0_Check_3'!R320 -> -0.03710857073 | L20: ='6.0_Check_3'!U320 -> -0.08019917523
B21: 22 | C21: District Governors | D21: ='4.0_Check_1'!D134 -> 837 | E21: ='4.0_Check_1'!H134 -> 837 | F21: ='5.0_Check_2'!L170 -> Same/Similar Split | G21: ='6.0_Check_3'!O339 -> Check C1+C2 | H21: ='6.0_Check_3'!R339 -> -0.00272828372 | I21: ='6.0_Check_3'!U339 -> -0.0007607553923 | J21: ='6.0_Check_3'!O346 -> -0.002578404903 | K21: ='6.0_Check_3'!R346 -> -0.005429649621 | L21: ='6.0_Check_3'!U346 -> -0.007524292324
B22: 24 | C22: I&C Governors | D22: ='4.0_Check_1'!D144 -> 490 | E22: ='4.0_Check_1'!H144 -> 490 | F22: ='5.0_Check_2'!L183 -> Same/Similar Split | G22: ='6.0_Check_3'!O365 -> Check C1+C2 | H22: ='6.0_Check_3'!R365 -> 1.739949069e-05 | I22: ='6.0_Check_3'!U365 -> 7.447224842e-05 | J22: ='6.0_Check_3'!O372 -> -3.572575012e-05 | K22: ='6.0_Check_3'!R372 -> -0.0001056376559 | L22: ='6.0_Check_3'!U372 -> -0.0001097905532
B23: 25 | C23: Service Governors | D23: ='4.0_Check_1'!D154 -> 252 | E23: ='4.0_Check_1'!H154 -> 252 | F23: ='5.0_Check_2'!L196 -> Same/Similar Split | G23: ='6.0_Check_3'!O391 -> Check C1+C2 | H23: ='6.0_Check_3'!R391 -> Check C1+C2+C3 | I23: ='6.0_Check_3'!U391 -> No Intervention to Check | J23: ='6.0_Check_3'!O398 -> -0.001754565628 | K23: ='6.0_Check_3'!R398 -> -0.001757457183 | L23: ='6.0_Check_3'!U398 -> -0.0005100646305
B24: - | C24: Network Level | D24: N/A | E24: N/A | F24: N/A | G24: ='6.0_Check_3'!O408 -> 0.06752636442 | H24: ='6.0_Check_3'!R408 -> 0.05719705211 | I24: ='6.0_Check_3'!U408 -> 0.032013716 | J24: ='6.0_Check_3'!O415 -> -0.1076506584 | K24: ='6.0_Check_3'!R415 -> -0.1250605157 | L24: ='6.0_Check_3'!U415 -> -0.148596347
B26: Red denotes: quantitative check failure (i.e. unequal volumes in Check 1; beyond 5% difference tolerance in Check 2 and Check 3)
B27: Amber denotes: not applicable to perform Check 3
B28: Green denotes: quantitative check pass (i.e. equal volumes in Check 1; within 5% difference tolerance in Check 2 and Check 3)

Sheet 2.0_Raw_Data
D2: ='Cover Sheet'!B3 -> Ofgem Quantitative Analysis Model and Result: Cadent NW
D4: Raw Data
B7: 15 NOMs Asset Groups
C9: Block Valves
C11: Original Targets | Z11: Rebased Targets
C12: Asset Distribution_End of RIIO-GD1 without investment | I12: Volume Impact of Intervention | Z12: =C12 -> Asset Distribution_End of RIIO-GD1 without investment | AF12: =I12 -> Volume Impact of Intervention | AM12: Original Targets Intervention Volume | AR12: Rebased Targets Intervention Volume | AW12: Original Targets Refurbishment Volume | BB12: Rebased Targets Refurbishment Volume
B13: Unit | D13: H1 | E13: H2 | F13: H3 | G13: H4 | H13: H5 | J13: H1 | K13: H2 | L13: H3 | M13: H4 | N13: H5 | AA13: H1 | AB13: H2 | AC13: H3 | AD13: H4 | AE13: H5 | AG13: H1 | AH13: H2 | AI13: H3 | AJ13: H4 | AK13: H5 | AM13: (Replacement & Refurbishment) | AR13: =AM13 -> (Replacement & Refurbishment)
B14: Number of | C14: C4 | D14: 0 | E14: 0 | F14: 0 | G14: 0 | H14: 0 | I14: C4 | J14: 0 | K14: 0 | L14: 0 | M14: 0 | N14: 0 | Z14: C4 | AA14: 18 | AB14: 16 | AC14: 16 | AD14: 16 | AE14: 52 | AF14: C4 | AG14: 0 | AH14: 0 | AI14: 0 | AJ14: 0 | AK14: 0 | AM14: 34 | AR14: 0 | AW14: 34 | BB14: 0
C15: C3 | D15: 0 | E15: 0 | F15: 0 | G15: 0 | H15: 0 | I15: C3 | J15: 0 | K15: 0 | L15: 0 | M15: 0 | N15: 0 | Z15: C3 | AA15: 14 | AB15: 26 | AC15: 14 | AD15: 10 | AE15: 8 | AF15: C3 | AG15: 0 | AH15: 0 | AI15: 0 | AJ15: 0 | AK15: 0
C16: C2 | D16: 0 | E16: 0 | F16: 24 | G16: 4 | H16: 0 | I16: C2 | J16: 0 | K16: 0 | L16: 4 | M16: -4 | N16: 0 | Z16: C2 | AA16: 2 | AB16: 26 | AC16: 4 | AD16: 0 | AE16: 6 | AF16: C2 | AG16: 0 | AH16: 0 | AI16: 0 | AJ16: 0 | AK16: 0
C17: C1 | D17: 0 | E17: 0 | F17: 0 | G17: 0 | H17: 0 | I17: C1 | J17: 0 | K17: 0 | L17: 0 | M17: 0 | N17: 0 | Z17: C1 | AA17: 20 | AB17: 14 | AC17: 2 | AD17: 0 | AE17: 0 | AF17: C1 | AG17: 0 | AH17: 0 | AI17: 0 | AJ17: 0 | AK17: 0
C19: Sleeves (Nitrogen & other)
C21: Original Targets | Z21: Rebased Targets
C22: =C12 -> Asset Distribution_End of RIIO-GD1 without investment | I22: =I12 -> Volume Impact of Intervention | Z22: =Z12 -> Asset Distribution_End of RIIO-GD1 without investment | AF22: =AF12 -> Volume Impact of Intervention | AM22: =AM12 -> Original Targets Intervention Volume | AR22: =AR12 -> Rebased Targets Intervention Volume | AW22: Original Targets Refurbishment Volume | BB22: Rebased Targets Refurbishment Volume
B23: Unit | D23: H1 | E23: H2 | F23: H3 | G23: H4 | H23: H5 | J23: H1 | K23: H2 | L23: H3 | M23: H4 | N23: H5 | AA23: H1 | AB23: H2 | AC23: H3 | AD23: H4 | AE23: H5 | AG23: H1 | AH23: H2 | AI23: H3 | AJ23: H4 | AK23: H5 | AM23: =AM13 -> (Replacement & Refurbishment) | AR23: =AR13 -> (Replacement & Refurbishment)
B24: Number of | C24: C4 | D24: 0 | E24: 0 | F24: 0 | G24: 0 | H24: 0 | I24: C4 | J24: 0 | K24: 0 | L24: 0 | M24: 0 | N24: 0 | Z24: C4 | AA24: 118 | AB24: 58 | AC24: 8 | AD24: 4 | AE24: 0 | AF24: C4 | AG24: 43 | AH24: -29 | AI24: -4 | AJ24: -3 | AK24: 0 | AM24: 190 | AR24: 190 | AW24: 190 | BB24: 190
C25: C3 | D25: 0 | E25: 0 | F25: 0 | G25: 0 | H25: 0 | I25: C3 | J25: 0 | K25: 0 | L25: 0 | M25: 0 | N25: 0 | Z25: C3 | AA25: 20 | AB25: 25 | AC25: 21 | AD25: 15 | AE25: 27 | AF25: C3 | AG25: 47 | AH25: -12 | AI25: -13 | AJ25: -10 | AK25: -15
C26: C2 | D26: 0 | E26: 35 | F26: 120 | G26: 88 | H26: 122 | I26: C2 | J26: 0 | K26: 186 | L26: 0 | M26: -64 | N26: -122 | Z26: C2 | AA26: 0 | AB26: 9 | AC26: 5 | AD26: 7 | AE26: 9 | AF26: C2 | AG26: 15 | AH26: -5 | AI26: -3 | AJ26: -2 | AK26: -5
C27: C1 | D27: 0 | E27: 0 | F27: 0 | G27: 0 | H27: 0 | I27: C1 | J27: 0 | K27: 0 | L27: 0 | M27: 0 | N27: 0 | Z27: C1 | AA27: 4 | AB27: 19 | AC27: 16 | AD27: 3 | AE27: 23 | AF27: C1 | AG27: 19 | AH27: -7 | AI27: -4 | AJ27: -2 | AK27: -10
C29: LTS Pipelines - Piggable
C31: Original Targets | Z31: Rebased Targets
C32: =C22 -> Asset Distribution_End of RIIO-GD1 without investment | I32: =I22 -> Volume Impact of Intervention | Z32: =Z22 -> Asset Distribution_End of RIIO-GD1 without investment | AF32: =AF22 -> Volume Impact of Intervention | AM32: =AM22 -> Original Targets Intervention Volume | AR32: =AR22 -> Rebased Targets Intervention Volume | AW32: Original Targets Refurbishment Volume | BB32: Rebased Targets Refurbishment Volume
B33: Unit | D33: H1 | E33: H2 | F33: H3 | G33: H4 | H33: H5 | J33: H1 | K33: H2 | L33: H3 | M33: H4 | N33: H5 | AA33: H1 | AB33: H2 | AC33: H3 | AD33: H4 | AE33: H5 | AG33: H1 | AH33: H2 | AI33: H3 | AJ33: H4 | AK33: H5 | AM33: =AM23 -> (Replacement & Refurbishment) | AR33: =AR23 -> (Replacement & Refurbishment)
B34: Km | C34: C4 | D34: 0 | E34: 0 | F34: 0 | G34: 0 | H34: 0 | I34: C4 | J34: 0 | K34: 0 | L34: 0 | M34: 0 | N34: 0 | Z34: C4 | AA34: 0 | AB34: 0 | AC34: 31.339 | AD34: 0.35 | AE34: 0 | AF34: C4 | AG34: 0 | AH34: 0 | AI34: 0 | AJ34: 0 | AK34: 0 | AM34: 65 | AR34: 65 | AW34: 65 | BB34: 65
C35: C3 | D35: 0 | E35: 0 | F35: 0 | G35: 0 | H35: 0 | I35: C3 | J35: 0 | K35: 0 | L35: 0 | M35: 0 | N35: 0 | Z35: C3 | AA35: 0 | AB35: 115.27 | AC35: 124.83 | AD35: 43.757 | AE35: 10.64 | AF35: C3 | AG35: 0 | AH35: 0 | AI35: 0 | AJ35: 0 | AK35: 0
C36: C2 | D36: 0 | E36: 0 | F36: 0 | G36: 0 | H36: 0 | I36: C2 | J36: 0 | K36: 0 | L36: 0 | M36: 0 | N36: 0 | Z36: C2 | AA36: 0 | AB36: 51.777 | AC36: 58.189 | AD36: 0 | AE36: 0 | AF36: C2 | AG36: 0 | AH36: 0 | AI36: 0 | AJ36: 0 | AK36: 0
C37: C1 | D37: 0 | E37: 130.2 | F37: 450.5 | G37: 135.7 | H37: 49.5 | I37: C1 | J37: 0 | K37: 615.8 | L37: -430.7 | M37: -135.7 | N37: -49.5 | Z37: C1 | AA37: 0 | AB37: 2.458 | AC37: 77.396 | AD37: 0 | AE37: 9.472 | AF37: C1 | AG37: 0 | AH37: 0 | AI37: 0 | AJ37: 0 | AK37: 0
C39: LTS Pipelines – Non Piggable
C41: Original Targets | Z41: Rebased Targets
C42: =C32 -> Asset Distribution_End of RIIO-GD1 without investment | I42: =I32 -> Volume Impact of Intervention | Z42: =Z32 -> Asset Distribution_End of RIIO-GD1 without investment | AF42: =AF32 -> Volume Impact of Intervention | AM42: =AM32 -> Original Targets Intervention Volume | AR42: =AR32 -> Rebased Targets Intervention Volume | AW42: Original Targets Refurbishment Volume | BB42: Rebased Targets Refurbishment Volume
B43: Unit | D43: H1 | E43: H2 | F43: H3 | G43: H4 | H43: H5 | J43: H1 | K43: H2 | L43: H3 | M43: H4 | N43: H5 | AA43: H1 | AB43: H2 | AC43: H3 | AD43: H4 | AE43: H5 | AG43: H1 | AH43: H2 | AI43: H3 | AJ43: H4 | AK43: H5 | AM43: =AM33 -> (Replacement & Refurbishment) | AR43: =AR33 -> (Replacement & Refurbishment)
B44: Km | C44: C4 | D44: 0 | E44: 0 | F44: 0 | G44: 0 | H44: 0 | I44: C4 | J44: 0 | K44: 0 | L44: 0 | M44: 0 | N44: 0 | Z44: C4 | AA44: 0 | AB44: 33.365 | AC44: 60.14 | AD44: 11.014 | AE44: 12.414 | AF44: C4 | AG44: 0 | AH44: 0 | AI44: 12.348 | AJ44: 12.748 | AK44: 0 | AM44: 136 | AR44: 136 | AW44: 136 | BB44: 136
C45: C3 | D45: 0 | E45: 0 | F45: 0 | G45: 0 | H45: 0 | I45: C3 | J45: 0 | K45: 0 | L45: 0 | M45: 0 | N45: 0 | Z45: C3 | AA45: 0 | AB45: 46.411 | AC45: 62.4 | AD45: 54.179 | AE45: 6.961 | AF45: C3 | AG45: 0 | AH45: 0 | AI45: 0 | AJ45: -10.893 | AK45: 0
C46: C2 | D46: 0 | E46: 0 | F46: 0 | G46: 0 | H46: 0 | I46: C2 | J46: 0 | K46: 0 | L46: 0 | M46: 0 | N46: 0 | Z46: C2 | AA46: 0 | AB46: 13.793 | AC46: 4.425 | AD46: 19.737 | AE46: 0 | AF46: C2 | AG46: 0 | AH46: 0 | AI46: 0 | AJ46: -14.203 | AK46: 0
C47: C1 | D47: 0 | E47: 0 | F47: 61.13624047 | G47: 81.51498729 | H47: 61.13624047 | I47: C1 | J47: 0 | K47: 122.6883737 | L47: 19.96285403 | M47: -81.51498729 | N47: -61.13624047 | Z47: C1 | AA47: 0 | AB47: 3.958 | AC47: 46.155 | AD47: 0.322 | AE47: 19.01 | AF47: C1 | AG47: 0 | AH47: 0 | AI47: 0 | AJ47: 0 | AK47: 0
C49: Distribution Mains (Iron)
C51: Original Targets | Z51: Rebased Targets
C52: =C42 -> Asset Distribution_End of RIIO-GD1 without investment | I52: =I42 -> Volume Impact of Intervention | Z52: =Z42 -> Asset Distribution_End of RIIO-GD1 without investment | AF52: =AF42 -> Volume Impact of Intervention | AM52: =AM42 -> Original Targets Intervention Volume | AR52: =AR42 -> Rebased Targets Intervention Volume | AW52: Original Targets Refurbishment Volume | BB52: Rebased Targets Refurbishment Volume
B53: Unit | D53: H1 | E53: H2 | F53: H3 | G53: H4 | H53: H5 | J53: H1 | K53: H2 | L53: H3 | M53: H4 | N53: H5 | AA53: H1 | AB53: H2 | AC53: H3 | AD53: H4 | AE53: H5 | AG53: H1 | AH53: H2 | AI53: H3 | AJ53: H4 | AK53: H5 | AM53: =AM43 -> (Replacement & Refurbishment) | AR53: =AR43 -> (Replacement & Refurbishment)
B54: Km | C54: C4 | D54: 20 | E54: 0 | F54: 0 | G54: 0 | H54: 116.074367 | I54: C4 | J54: 100 | K54: 0 | L54: 0 | M54: 0 | N54: -100 | Z54: C4 | AA54: 0 | AB54: 0 | AC54: 0 | AD54: 0 | AE54: 0 | AF54: C4 | AG54: 0 | AH54: 0 | AI54: 0 | AJ54: 0 | AK54: 0 | AM54: 3526.394218 | AR54: 3526.395 | AW54: 0 | BB54: 0
C55: C3 | D55: 0 | E55: 0 | F55: 0 | G55: 0 | H55: 0 | I55: C3 | J55: 0 | K55: 0 | L55: 0 | M55: 0 | N55: 0 | Z55: C3 | AA55: 0 | AB55: 0 | AC55: 139.11914 | AD55: 0 | AE55: 0 | AF55: C3 | AG55: 0 | AH55: 0 | AI55: -0.62506 | AJ55: 0 | AK55: 0
C56: C2 | D56: 0 | E56: 0 | F56: 0 | G56: 0 | H56: 0 | I56: C2 | J56: 0 | K56: 0 | L56: 0 | M56: 0 | N56: 0 | Z56: C2 | AA56: 0 | AB56: 0 | AC56: 0 | AD56: 1154.13443 | AE56: 0 | AF56: C2 | AG56: 0 | AH56: 0 | AI56: 0 | AJ56: 5.3386 | AK56: 2297.61696
C57: C1 | D57: 1040.795359 | E57: 0 | F57: 0 | G57: 0 | H57: 9290.389274 | I57: C1 | J57: 3785.702538 | K57: 0 | L57: 0 | M57: 0 | N57: -3785.702538 | Z57: C1 | AA57: 0 | AB57: 0 | AC57: 0 | AD57: 0 | AE57: 7976.38798 | AF57: C1 | AG57: 0 | AH57: 0 | AI57: 0 | AJ57: 0 | AK57: -2742.07354
C59: Distribution Mains (PE)
C61: Original Targets | Z61: Rebased Targets
C62: =C52 -> Asset Distribution_End of RIIO-GD1 without investment | I62: =I52 -> Volume Impact of Intervention | Z62: =Z52 -> Asset Distribution_End of RIIO-GD1 without investment | AF62: =AF52 -> Volume Impact of Intervention | AM62: =AM52 -> Original Targets Intervention Volume | AR62: =AR52 -> Rebased Targets Intervention Volume | AW62: Original Targets Refurbishment Volume | BB62: Rebased Targets Refurbishment Volume
B63: Unit | D63: H1 | E63: H2 | F63: H3 | G63: H4 | H63: H5 | J63: H1 | K63: H2 | L63: H3 | M63: H4 | N63: H5 | AA63: H1 | AB63: H2 | AC63: H3 | AD63: H4 | AE63: H5 | AG63: H1 | AH63: H2 | AI63: H3 | AJ63: H4 | AK63: H5 | AM63: =AM53 -> (Replacement & Refurbishment) | AR63: =AR53 -> (Replacement & Refurbishment)
B64: Km | C64: C4 | D64: 19519.70554 | E64: 185.80606 | F64: 0 | G64: 0 | H64: 0 | I64: C4 | J64: 0 | K64: 0 | L64: 0 | M64: 0 | N64: 0 | Z64: C4 | AA64: 22505.9858 | AB64: 0 | AC64: 0 | AD64: 0 | AE64: 0 | AF64: C4 | AG64: 488.00591 | AH64: 0 | AI64: 0 | AJ64: 0 | AK64: 0 | AM64: 0 | AR64: 0 | AW64: 0 | BB64: 0
C65: C3 | D65: 2487.756808 | E65: 0 | F65: 0 | G65: 0 | H65: 0 | I65: C3 | J65: 0 | K65: 0 | L65: 0 | M65: 0 | N65: 0 | Z65: C3 | AA65: 0 | AB65: 0 | AC65: 0 | AD65: 0 | AE65: 0 | AF65: C3 | AG65: 0 | AH65: 0 | AI65: 0 | AJ65: 0 | AK65: 0
C66: C2 | D66: 278.7139731 | E66: 0 | F66: 0 | G66: 0 | H66: 0 | I66: C2 | J66: 0 | K66: 0 | L66: 0 | M66: 0 | N66: 0 | Z66: C2 | AA66: 0 | AB66: 0 | AC66: 0 | AD66: 0 | AE66: 0 | AF66: C2 | AG66: 0 | AH66: 0 | AI66: 0 | AJ66: 0 | AK66: 0
C67: C1 | D67: 0 | E67: 0 | F67: 0 | G67: 0 | H67: 0 | I67: C1 | J67: 0 | K67: 0 | L67: 0 | M67: 0 | N67: 0 | Z67: C1 | AA67: 0 | AB67: 0 | AC67: 0 | AD67: 0 | AE67: 0 | AF67: C1 | AG67: 0 | AH67: 0 | AI67: 0 | AJ67: 0 | AK67: 0
C69: Distribution Mains (Steel)
C71: Original Targets | Z71: Rebased Targets
C72: =C62 -> Asset Distribution_End of RIIO-GD1 without investment | I72: =I62 -> Volume Impact of Intervention | Z72: =Z62 -> Asset Distribution_End of RIIO-GD1 without investment | AF72: =AF62 -> Volume Impact of Intervention | AM72: =AM62 -> Original Targets Intervention Volume | AR72: =AR62 -> Rebased Targets Intervention Volume | AW72: Original Targets Refurbishment Volume | BB72: Rebased Targets Refurbishment Volume
B73: Unit | D73: H1 | E73: H2 | F73: H3 | G73: H4 | H73: H5 | J73: H1 | K73: H2 | L73: H3 | M73: H4 | N73: H5 | AA73: H1 | AB73: H2 | AC73: H3 | AD73: H4 | AE73: H5 | AG73: H1 | AH73: H2 | AI73: H3 | AJ73: H4 | AK73: H5 | AM73: =AM63 -> (Replacement & Refurbishment) | AR73: =AR63 -> (Replacement & Refurbishment)
B74: Km | C74: C4 | D74: 0 | E74: 0 | F74: 858.4108507 | G74: 0 | H74: 0 | I74: C4 | J74: 305.6786501 | K74: 0 | L74: -305.6786501 | M74: 0 | N74: 0 | Z74: C4 | AA74: 0 | AB74: 0 | AC74: 0 | AD74: 0 | AE74: 0 | AF74: C4 | AG74: 0 | AH74: 0 | AI74: 0 | AJ74: 0 | AK74: 0 | AM74: 320.89 | AR74: 320.889 | AW74: 0 | BB74: 0
C75: C3 | D75: 0 | E75: 0 | F75: 185.7208698 | G75: 0 | H75: 0 | I75: C3 | J75: 16.45017552 | K75: 0 | L75: -16.45017552 | M75: 0 | N75: 0 | Z75: C3 | AA75: 0 | AB75: 0 | AC75: 0 | AD75: 0 | AE75: 0 | AF75: C3 | AG75: 0 | AH75: 0 | AI75: 0 | AJ75: 0 | AK75: 0
C76: C2 | D76: 0 | E76: 296.126 | F76: 74.00525898 | G76: 0 | H76: 0 | I76: C2 | J76: 0.2211744254 | K76: 0 | L76: -0.2211744254 | M76: 0 | N76: 0 | Z76: C2 | AA76: 0 | AB76: 0 | AC76: 0 | AD76: 0 | AE76: 0 | AF76: C2 | AG76: 0 | AH76: 0 | AI76: 0 | AJ76: 0 | AK76: 0
C77: C1 | D77: 0 | E77: 124.631 | F77: 0 | G77: 0 | H77: 0 | I77: C1 | J77: 0 | K77: 0 | L77: 0 | M77: 0 | N77: 0 | Z77: C1 | AA77: 0 | AB77: 280.95855 | AC77: 159.45258 | AD77: 0 | AE77: 1072.68902 | AF77: C1 | AG77: 0 | AH77: -0.85925 | AI77: -0.8737 | AJ77: 0 | AK77: -38.18339
C79: Distribution Mains (other)
C81: Original Targets | Z81: Rebased Targets
C82: =C72 -> Asset Distribution_End of RIIO-GD1 without investment | I82: =I72 -> Volume Impact of Intervention | Z82: =Z72 -> Asset Distribution_End of RIIO-GD1 without investment | AF82: =AF72 -> Volume Impact of Intervention | AM82: =AM72 -> Original Targets Intervention Volume | AR82: =AR72 -> Rebased Targets Intervention Volume | AW82: Original Targets Refurbishment Volume | BB82: Rebased Targets Refurbishment Volume
B83: Unit | D83: H1 | E83: H2 | F83: H3 | G83: H4 | H83: H5 | J83: H1 | K83: H2 | L83: H3 | M83: H4 | N83: H5 | AA83: H1 | AB83: H2 | AC83: H3 | AD83: H4 | AE83: H5 | AG83: H1 | AH83: H2 | AI83: H3 | AJ83: H4 | AK83: H5 | AM83: =AM73 -> (Replacement & Refurbishment) | AR83: =AR73 -> (Replacement & Refurbishment)
B84: Km | C84: C4 | D84: 0 | E84: 0 | F84: 0 | G84: 0 | H84: 0 | I84: C4 | J84: 0 | K84: 0 | L84: 0 | M84: 0 | N84: 0 | Z84: C4 | AA84: 0 | AB84: 0 | AC84: 0 | AD84: 0 | AE84: 0 | AF84: C4 | AG84: 0 | AH84: 0 | AI84: 0 | AJ84: 0 | AK84: 0 | AM84: 64.6 | AR84: 66.032 | AW84: 0 | BB84: 0
C85: C3 | D85: 0 | E85: 0 | F85: 0 | G85: 0 | H85: 0 | I85: C3 | J85: 0 | K85: 0 | L85: 0 | M85: 0 | N85: 0 | Z85: C3 | AA85: 0 | AB85: 0 | AC85: 0 | AD85: 0 | AE85: 0 | AF85: C3 | AG85: 0 | AH85: 0 | AI85: 0 | AJ85: 0 | AK85: 0
C86: C2 | D86: 0 | E86: 0 | F86: 0 | G86: 0 | H86: 0 | I86: C2 | J86: 0 | K86: 0 | L86: 0 | M86: 0 | N86: 0 | Z86: C2 | AA86: 0 | AB86: 0 | AC86: 0 | AD86: 0 | AE86: 0 | AF86: C2 | AG86: 0 | AH86: 0 | AI86: 99.95165 | AJ86: 0 | AK86: 0
C87: C1 | D87: 0 | E87: 0 | F87: 0 | G87: 0 | H87: 119 | I87: C1 | J87: 64.6 | K87: 0 | L87: 0 | M87: 0 | N87: -64.6 | Z87: C1 | AA87: 0 | AB87: 0 | AC87: 0 | AD87: 1.24137 | AE87: 112.91145 | AF87: C1 | AG87: 0 | AH87: 0 | AI87: 0 | AJ87: 4.61327 | AK87: -112.91145
C89: Services
C91: Original Targets | Z91: Rebased Targets
C92: =C82 -> Asset Distribution_End of RIIO-GD1 without investment | I92: =I82 -> Volume Impact of Intervention | Z92: =Z82 -> Asset Distribution_End of RIIO-GD1 without investment | AF92: =AF82 -> Volume Impact of Intervention | AM92: =AM82 -> Original Targets Intervention Volume | AR92: =AR82 -> Rebased Targets Intervention Volume | AW92: Original Targets Refurbishment Volume | BB92: Rebased Targets Refurbishment Volume
B93: Unit | D93: H1 | E93: H2 | F93: H3 | G93: H4 | H93: H5 | J93: H1 | K93: H2 | L93: H3 | M93: H4 | N93: H5 | AA93: H1 | AB93: H2 | AC93: H3 | AD93: H4 | AE93: H5 | AG93: H1 | AH93: H2 | AI93: H3 | AJ93: H4 | AK93: H5 | AM93: =AM83 -> (Replacement & Refurbishment) | AR93: =AR83 -> (Replacement & Refurbishment)
B94: Number of | C94: C4 | D94: 2258933 | E94: 0 | F94: 0 | G94: 24331 | H94: 367135 | I94: C4 | J94: 296330 | K94: 0 | L94: 0 | M94: -500 | N94: -226566 | Z94: C4 | AA94: 2208652.553 | AB94: 0 | AC94: 0 | AD94: 0 | AE94: 0 | AF94: C4 | AG94: 223207 | AH94: 0 | AI94: 0 | AJ94: 0 | AK94: 0 | AM94: 229785 | AR94: 229785 | AW94: 0 | BB94: 0
C95: C3 | D95: 0 | E95: 0 | F95: 0 | G95: 0 | H95: 0 | I95: C3 | J95: 0 | K95: 0 | L95: 0 | M95: 0 | N95: 0 | Z95: C3 | AA95: 22952 | AB95: 0 | AC95: 0 | AD95: 0 | AE95: 0 | AF95: C3 | AG95: 31 | AH95: 0 | AI95: 0 | AJ95: 0 | AK95: 0
C96: C2 | D96: 0 | E96: 0 | F96: 0 | G96: 0 | H96: 0 | I96: C2 | J96: 0 | K96: 0 | L96: 0 | M96: 0 | N96: 0 | Z96: C2 | AA96: 0 | AB96: 0 | AC96: 0 | AD96: 0 | AE96: 0 | AF96: C2 | AG96: 0 | AH96: 0 | AI96: 0 | AJ96: 0 | AK96: 0
C97: C1 | D97: 0 | E97: 0 | F97: 0 | G97: 0 | H97: 0 | I97: C1 | J97: 0 | K97: 0 | L97: 0 | M97: 0 | N97: 0 | Z97: C1 | AA97: 0 | AB97: 0 | AC97: 0 | AD97: 0 | AE97: 441377.4479 | AF97: C1 | AG97: 0 | AH97: 0 | AI97: 0 | AJ97: 0 | AK97: -223238
C99: MOB Risers
C101: Original Targets | Z101: Rebased Targets
C102: =C92 -> Asset Distribution_End of RIIO-GD1 without investment | I102: =I92 -> Volume Impact of Intervention | Z102: =Z92 -> Asset Distribution_End of RIIO-GD1 without investment | AF102: =AF92 -> Volume Impact of Intervention | AM102: =AM92 -> Original Targets Intervention Volume | AR102: =AR92 -> Rebased Targets Intervention Volume | AW102: Original Targets Refurbishment Volume | BB102: Rebased Targets Refurbishment Volume
B103: Unit | D103: H1 | E103: H2 | F103: H3 | G103: H4 | H103: H5 | J103: H1 | K103: H2 | L103: H3 | M103: H4 | N103: H5 | AA103: H1 | AB103: H2 | AC103: H3 | AD103: H4 | AE103: H5 | AG103: H1 | AH103: H2 | AI103: H3 | AJ103: H4 | AK103: H5 | AM103: =AM93 -> (Replacement & Refurbishment) | AR103: =AR93 -> (Replacement & Refurbishment)
B104: Number of | C104: C4 | D104: 0 | E104: 0 | F104: 0 | G104: 0 | H104: 0 | I104: C4 | J104: 0 | K104: 0 | L104: 0 | M104: 0 | N104: 0 | Z104: C4 | AA104: 961 | AB104: 33 | AC104: 1619 | AD104: 34 | AE104: 0 | AF104: C4 | AG104: 15 | AH104: 128 | AI104: -25 | AJ104: 0 | AK104: 0 | AM104: 246 | AR104: 246 | AW104: 0 | BB104: 0
C105: C3 | D105: 0 | E105: 0 | F105: 0 | G105: 0 | H105: 0 | I105: C3 | J105: 0 | K105: 0 | L105: 0 | M105: 0 | N105: 0 | Z105: C3 | AA105: 44 | AB105: 0 | AC105: 276 | AD105: 5412 | AE105: 444 | AF105: C3 | AG105: 0 | AH105: 8 | AI105: 4 | AJ105: -88 | AK105: -9
C106: C2 | D106: 0 | E106: 0 | F106: 85145 | G106: 974 | H106: 0 | I106: C2 | J106: 0 | K106: 0 | L106: 196 | M106: -196 | N106: 0 | Z106: C2 | AA106: 25 | AB106: 0 | AC106: 0 | AD106: 123 | AE106: 554 | AF106: C2 | AG106: 0 | AH106: 0 | AI106: 3 | AJ106: 3 | AK106: -4
C107: C1 | D107: 0 | E107: 0 | F107: 0 | G107: 0 | H107: 0 | I107: C1 | J107: 0 | K107: 0 | L107: 0 | M107: 0 | N107: 0 | Z107: C1 | AA107: 7 | AB107: 0 | AC107: 0 | AD107: 0 | AE107: 1290 | AF107: C1 | AG107: 0 | AH107: 0 | AI107: 1 | AJ107: 1 | AK107: -37
C109: NTS Offtakes
C111: Original Targets | Z111: Rebased Targets
C112: =C102 -> Asset Distribution_End of RIIO-GD1 without investment | I112: =I102 -> Volume Impact of Intervention | Z112: =Z102 -> Asset Distribution_End of RIIO-GD1 without investment | AF112: =AF102 -> Volume Impact of Intervention | AM112: =AM102 -> Original Targets Intervention Volume | AR112: =AR102 -> Rebased Targets Intervention Volume | AW112: Original Targets Refurbishment Volume | BB112: Rebased Targets Refurbishment Volume
B113: Unit | D113: H1 | E113: H2 | F113: H3 | G113: H4 | H113: H5 | J113: H1 | K113: H2 | L113: H3 | M113: H4 | N113: H5 | AA113: H1 | AB113: H2 | AC113: H3 | AD113: H4 | AE113: H5 | AG113: H1 | AH113: H2 | AI113: H3 | AJ113: H4 | AK113: H5 | AM113: =AM103 -> (Replacement & Refurbishment) | AR113: =AR103 -> (Replacement & Refurbishment)
B114: Number of | C114: C4 | D114: 0 | E114: 0 | F114: 0 | G114: 0 | H114: 0 | I114: C4 | J114: 0 | K114: 0 | L114: 0 | M114: 0 | N114: 0 | Z114: C4 | AA114: 0 | AB114: 0 | AC114: 0 | AD114: 0 | AE114: 3 | AF114: C4 | AG114: 11 | AH114: 6 | AI114: 0 | AJ114: 1 | AK114: 0 | AM114: 81 | AR114: 81 | AW114: 0 | BB114: 0
C115: C3 | D115: 0 | E115: 0 | F115: 0 | G115: 0 | H115: 0 | I115: C3 | J115: 0 | K115: 0 | L115: 0 | M115: 0 | N115: 0 | Z115: C3 | AA115: 0 | AB115: 10 | AC115: 17 | AD115: 4 | AE115: 2 | AF115: C3 | AG115: 5 | AH115: -2 | AI115: -11 | AJ115: -2 | AK115: -1
C116: C2 | D116: 0 | E116: 0 | F116: 0 | G116: 0 | H116: 0 | I116: C2 | J116: 0 | K116: 0 | L116: 0 | M116: 0 | N116: 0 | Z116: C2 | AA116: 0 | AB116: 1 | AC116: 1 | AD116: 1 | AE116: 9 | AF116: C2 | AG116: 2 | AH116: 2 | AI116: -1 | AJ116: 1 | AK116: -3
C117: C1 | D117: 0 | E117: 15.12 | F117: 20.16 | G117: 12.12 | H117: 9.6 | I117: C1 | J117: 26.88 | K117: 2.4 | L117: -12.96 | M117: -6.72 | N117: -9.6 | Z117: C1 | AA117: 0 | AB117: 0 | AC117: 2 | AD117: 2 | AE117: 28 | AF117: C1 | AG117: 0 | AH117: 0 | AI117: -1 | AJ117: 1 | AK117: -8
C119: PRSs
C121: Original Targets | Z121: Rebased Targets
C122: =C112 -> Asset Distribution_End of RIIO-GD1 without investment | I122: =I112 -> Volume Impact of Intervention | Z122: =Z112 -> Asset Distribution_End of RIIO-GD1 without investment | AF122: =AF112 -> Volume Impact of Intervention | AM122: =AM112 -> Original Targets Intervention Volume | AR122: =AR112 -> Rebased Targets Intervention Volume | AW122: Original Targets Refurbishment Volume | BB122: Rebased Targets Refurbishment Volume
B123: Unit | D123: H1 | E123: H2 | F123: H3 | G123: H4 | H123: H5 | J123: H1 | K123: H2 | L123: H3 | M123: H4 | N123: H5 | AA123: H1 | AB123: H2 | AC123: H3 | AD123: H4 | AE123: H5 | AG123: H1 | AH123: H2 | AI123: H3 | AJ123: H4 | AK123: H5 | AM123: =AM113 -> (Replacement & Refurbishment) | AR123: =AR113 -> (Replacement & Refurbishment)
B124: Number of | C124: C4 | D124: 0 | E124: 0 | F124: 0 | G124: 0 | H124: 0 | I124: C4 | J124: 0 | K124: 0 | L124: 0 | M124: 0 | N124: 0 | Z124: C4 | AA124: 0 | AB124: 23 | AC124: 2 | AD124: 3 | AE124: 0 | AF124: C4 | AG124: 97 | AH124: 23 | AI124: 2 | AJ124: -1 | AK124: 0 | AM124: 520 | AR124: 520 | AW124: 0 | BB124: 0
C125: C3 | D125: 0 | E125: 0 | F125: 0 | G125: 0 | H125: 0 | I125: C3 | J125: 0 | K125: 0 | L125: 0 | M125: 0 | N125: 0 | Z125: C3 | AA125: 0 | AB125: 103 | AC125: 49 | AD125: 27 | AE125: 13 | AF125: C3 | AG125: 21 | AH125: -25 | AI125: -19 | AJ125: -4 | AK125: -4
C126: C2 | D126: 0 | E126: 79.56 | F126: 106.08 | G126: 57.32 | H126: 50.04 | I126: C2 | J126: 141.44 | K126: 9.76 | L126: -75.04 | M126: -30.08 | N126: -46.08 | Z126: C2 | AA126: 0 | AB126: 12 | AC126: 14 | AD126: 21 | AE126: 23 | AF126: C2 | AG126: 3 | AH126: -7 | AI126: -7 | AJ126: -12 | AK126: -7
C127: C1 | D127: 0 | E127: 60.12 | F127: 80.16 | G127: 33.2 | H127: 13.52 | I127: C1 | J127: 106.88 | K127: 2.88 | L127: -71.2 | M127: -25.76 | N127: -12.8 | Z127: C1 | AA127: 0 | AB127: 13 | AC127: 11 | AD127: 21 | AE127: 110 | AF127: C1 | AG127: 3 | AH127: -2 | AI127: -2 | AJ127: -10 | AK127: -49
C129: District Governors
C131: Original Targets | Z131: Rebased Targets
C132: =C122 -> Asset Distribution_End of RIIO-GD1 without investment | I132: =I122 -> Volume Impact of Intervention | Z132: =Z122 -> Asset Distribution_End of RIIO-GD1 without investment | AF132: =AF122 -> Volume Impact of Intervention | AM132: =AM122 -> Original Targets Intervention Volume | AR132: =AR122 -> Rebased Targets Intervention Volume | AW132: Original Targets Refurbishment Volume | BB132: Rebased Targets Refurbishment Volume
B133: Unit | D133: H1 | E133: H2 | F133: H3 | G133: H4 | H133: H5 | J133: H1 | K133: H2 | L133: H3 | M133: H4 | N133: H5 | AA133: H1 | AB133: H2 | AC133: H3 | AD133: H4 | AE133: H5 | AG133: H1 | AH133: H2 | AI133: H3 | AJ133: H4 | AK133: H5 | AM133: =AM123 -> (Replacement & Refurbishment) | AR133: =AR123 -> (Replacement & Refurbishment)
B134: Number of | C134: C4 | D134: 26.3568 | E134: 75.208 | F134: 154.0768 | G134: 168.9216 | H134: 122.4368 | I134: C4 | J134: 37.6432 | K134: 33.792 | L134: 63.9232 | M134: -32.9216 | N134: -95.4368 | Z134: C4 | AA134: 0 | AB134: 0 | AC134: 0 | AD134: 0 | AE134: 0 | AF134: C4 | AG134: 0 | AH134: 0 | AI134: 0 | AJ134: 0 | AK134: 0 | AM134: 837 | AR134: 837 | AW134: 632 | BB134: 623
C135: C3 | D135: 92.48 | E135: 263.2144 | F135: 539.1024 | G135: 591.6368 | H135: 430.5664 | I135: C3 | J135: 132.52 | K135: 117.7856 | L135: 223.8976 | M135: -114.6368 | N135: -334.5664 | Z135: C3 | AA135: 566 | AB135: 1011 | AC135: 225 | AD135: 33 | AE135: 133 | AF135: C3 | AG135: 423 | AH135: -227 | AI135: -56 | AJ135: 27 | AK135: -28
C136: C2 | D136: 12.9472 | E136: 37.1552 | F136: 76.7696 | G136: 84.4096 | H136: 61.7184 | I136: C2 | J136: 19.0528 | K136: 16.8448 | L136: 32.2304 | M136: -16.4096 | N136: -47.7184 | Z136: C2 | AA136: 10 | AB136: 189 | AC136: 167 | AD136: 78 | AE136: 213 | AF136: C2 | AG136: 4 | AH136: -26 | AI136: -52 | AJ136: -9 | AK136: -53
C137: C1 | D137: 0 | E137: 0 | F137: 0 | G137: 0 | H137: 0 | I137: C1 | J137: 0 | K137: 0 | L137: 0 | M137: 0 | N137: 0 | Z137: C1 | AA137: 0 | AB137: 0 | AC137: 1 | AD137: 2 | AE137: 102 | AF137: C1 | AG137: 0 | AH137: 0 | AI137: 0 | AJ137: 2 | AK137: -5
C139: I&C Governors
C141: Original Targets | Z141: Rebased Targets
C142: =C132 -> Asset Distribution_End of RIIO-GD1 without investment | I142: =I132 -> Volume Impact of Intervention | Z142: =Z132 -> Asset Distribution_End of RIIO-GD1 without investment | AF142: =AF132 -> Volume Impact of Intervention | AM142: =AM132 -> Original Targets Intervention Volume | AR142: =AR132 -> Rebased Targets Intervention Volume | AW142: Original Targets Refurbishment Volume | BB142: Rebased Targets Refurbishment Volume
B143: Unit | D143: H1 | E143: H2 | F143: H3 | G143: H4 | H143: H5 | J143: H1 | K143: H2 | L143: H3 | M143: H4 | N143: H5 | AA143: H1 | AB143: H2 | AC143: H3 | AD143: H4 | AE143: H5 | AG143: H1 | AH143: H2 | AI143: H3 | AJ143: H4 | AK143: H5 | AM143: =AM133 -> (Replacement & Refurbishment) | AR143: =AR133 -> (Replacement & Refurbishment)
B144: Number of | C144: C4 | D144: 22.1952 | E144: 64.8176 | F144: 134.1152 | G144: 147.4416 | H144: 107.4304 | I144: C4 | J144: 25.8048 | K144: 30.1824 | L144: 55.8848 | M144: -28.4416 | N144: -83.4304 | Z144: C4 | AA144: 0 | AB144: 0 | AC144: 0 | AD144: 0 | AE144: 0 | AF144: C4 | AG144: 26 | AH144: 4 | AI144: 1 | AJ144: 0 | AK144: 0 | AM144: 490 | AR144: 490 | AW144: 401 | BB144: 397
C145: C3 | D145: 77.2208 | E145: 226.6576 | F145: 469.9808 | G145: 516.3008 | H145: 374.84 | I145: C3 | J145: 89.7792 | K145: 106.3424 | L145: 196.0192 | M145: -100.3008 | N145: -291.84 | Z145: C3 | AA145: 109 | AB145: 772 | AC145: 5 | AD145: 3 | AE145: 154 | AF145: C3 | AG145: 188 | AH145: -198 | AI145: 2 | AJ145: 3 | AK145: -16
C146: C2 | D146: 11.0976 | E146: 32.64 | F146: 67.2752 | G146: 74.0032 | H146: 53.984 | I146: C2 | J146: 12.9024 | K146: 15.36 | L146: 27.7248 | M146: -14.0032 | N146: -41.984 | Z146: C2 | AA146: 4 | AB146: 557 | AC146: 4 | AD146: 0 | AE146: 28 | AF146: C2 | AG146: 157 | AH146: -156 | AI146: -1 | AJ146: 0 | AK146: -7
C147: C1 | D147: 0 | E147: 0 | F147: 0 | G147: 0 | H147: 0 | I147: C1 | J147: 0 | K147: 0 | L147: 0 | M147: 0 | N147: 0 | Z147: C1 | AA147: 0 | AB147: 4 | AC147: 0 | AD147: 2 | AE147: 36 | AF147: C1 | AG147: 3 | AH147: 0 | AI147: 0 | AJ147: 0 | AK147: -6
C149: Service Governors
C151: Original Targets | Z151: Rebased Targets
C152: =C142 -> Asset Distribution_End of RIIO-GD1 without investment | I152: =I142 -> Volume Impact of Intervention | Z152: =Z142 -> Asset Distribution_End of RIIO-GD1 without investment | AF152: =AF142 -> Volume Impact of Intervention | AM152: =AM142 -> Original Targets Intervention Volume | AR152: =AR142 -> Rebased Targets Intervention Volume | AW152: Original Targets Refurbishment Volume | BB152: Rebased Targets Refurbishment Volume
B153: Unit | D153: H1 | E153: H2 | F153: H3 | G153: H4 | H153: H5 | J153: H1 | K153: H2 | L153: H3 | M153: H4 | N153: H5 | AA153: H1 | AB153: H2 | AC153: H3 | AD153: H4 | AE153: H5 | AG153: H1 | AH153: H2 | AI153: H3 | AJ153: H4 | AK153: H5 | AM153: =AM143 -> (Replacement & Refurbishment) | AR153: =AR143 -> (Replacement & Refurbishment)
B154: Number of | C154: C4 | D154: 109 | E154: 1196 | F154: 199 | G154: 199 | H154: 291 | I154: C4 | J154: 291 | K154: 0 | L154: 0 | M154: 0 | N154: -291 | Z154: C4 | AA154: 0 | AB154: 0 | AC154: 0 | AD154: 0 | AE154: 0 | AF154: C4 | AG154: 252 | AH154: 0 | AI154: 0 | AJ154: 0 | AK154: 0 | AM154: 252 | AR154: 252 | AW154: 0 | BB154: 0
C155: C3 | D155: 0 | E155: 0 | F155: 0 | G155: 0 | H155: 0 | I155: C3 | J155: 0 | K155: 0 | L155: 0 | M155: 0 | N155: 0 | Z155: C3 | AA155: 5 | AB155: 0 | AC155: 1 | AD155: 0 | AE155: 0 | AF155: C3 | AG155: -1 | AH155: 0 | AI155: 0 | AJ155: 0 | AK155: 0
C156: C2 | D156: 0 | E156: 0 | F156: 0 | G156: 0 | H156: 0 | I156: C2 | J156: 0 | K156: 0 | L156: 0 | M156: 0 | N156: 0 | Z156: C2 | AA156: 0 | AB156: 0 | AC156: 1870 | AD156: 1 | AE156: 0 | AF156: C2 | AG156: 0 | AH156: 0 | AI156: -188 | AJ156: 0 | AK156: 0
C157: C1 | D157: 0 | E157: 0 | F157: 0 | G157: 0 | H157: 0 | I157: C1 | J157: 0 | K157: 0 | L157: 0 | M157: 0 | N157: 0 | Z157: C1 | AA157: 0 | AB157: 0 | AC157: 0 | AD157: 0 | AE157: 628 | AF157: C1 | AG157: 0 | AH157: 0 | AI157: 0 | AJ157: 0 | AK157: -63

Sheet 3.0_Data_Copy
D2: ='Cover Sheet'!B3 -> Ofgem Quantitative Analysis Model and Result: Cadent NW
D4: Inputs for Checks
B7: 15 NOMs Asset Groups
C9: ='2.0_Raw_Data'!C9:D9 -> Block Valves
C11: Original Targets | Z11: Rebased Targets
C12: ='2.0_Raw_Data'!C12:H12 -> Asset Distribution_End of RIIO-GD1 without investment | I12: ='2.0_Raw_Data'!I12:N12 -> Volume Impact of Intervention | Z12: ='2.0_Raw_Data'!Z12:AE12 -> Asset Distribution_End of RIIO-GD1 without investment | AF12: ='2.0_Raw_Data'!AF12:AK12 -> Volume Impact of Intervention | AM12: ='2.0_Raw_Data'!AM12 -> Original Targets Intervention Volume | AR12: ='2.0_Raw_Data'!AR12 -> Rebased Targets Intervention Volume | AW12: Original Targets Refurbishment Volume | BB12: Rebased Targets Refurbishment Volume
B13: Unit | D13: H1 | E13: H2 | F13: H3 | G13: H4 | H13: H5 | J13: H1 | K13: H2 | L13: H3 | M13: H4 | N13: H5 | AA13: H1 | AB13: H2 | AC13: H3 | AD13: H4 | AE13: H5 | AG13: H1 | AH13: H2 | AI13: H3 | AJ13: H4 | AK13: H5 | AM13: ='2.0_Raw_Data'!AM13 -> (Replacement & Refurbishment) | AR13: ='2.0_Raw_Data'!AR13 -> (Replacement & Refurbishment)
B14: Number of | C14: C4 | D14: ='2.0_Raw_Data'!D14 -> 0 | E14: ='2.0_Raw_Data'!E14 -> 0 | F14: ='2.0_Raw_Data'!F14 -> 0 | G14: ='2.0_Raw_Data'!G14 -> 0 | H14: ='2.0_Raw_Data'!H14 -> 0 | I14: C4 | J14: ='2.0_Raw_Data'!J14 -> 0 | K14: ='2.0_Raw_Data'!K14 -> 0 | L14: ='2.0_Raw_Data'!L14 -> 0 | M14: ='2.0_Raw_Data'!M14 -> 0 | N14: ='2.0_Raw_Data'!N14 -> 0 | Z14: C4 | AA14: ='2.0_Raw_Data'!AA14 -> 18 | AB14: ='2.0_Raw_Data'!AB14 -> 16 | AC14: ='2.0_Raw_Data'!AC14 -> 16 | AD14: ='2.0_Raw_Data'!AD14 -> 16 | AE14: ='2.0_Raw_Data'!AE14 -> 52 | AF14: C4 | AG14: ='2.0_Raw_Data'!AG14 -> 0 | AH14: ='2.0_Raw_Data'!AH14 -> 0 | AI14: ='2.0_Raw_Data'!AI14 -> 0 | AJ14: ='2.0_Raw_Data'!AJ14 -> 0 | AK14: ='2.0_Raw_Data'!AK14 -> 0 | AM14: ='2.0_Raw_Data'!AM14 -> 34 | AR14: ='2.0_Raw_Data'!AR14 -> 0 | AW14: ='2.0_Raw_Data'!AW14 -> 34 | BB14: ='2.0_Raw_Data'!BB14 -> 0
C15: C3 | D15: ='2.0_Raw_Data'!D15 -> 0 | E15: ='2.0_Raw_Data'!E15 -> 0 | F15: ='2.0_Raw_Data'!F15 -> 0 | G15: ='2.0_Raw_Data'!G15 -> 0 | H15: ='2.0_Raw_Data'!H15 -> 0 | I15: C3 | J15: ='2.0_Raw_Data'!J15 -> 0 | K15: ='2.0_Raw_Data'!K15 -> 0 | L15: ='2.0_Raw_Data'!L15 -> 0 | M15: ='2.0_Raw_Data'!M15 -> 0 | N15: ='2.0_Raw_Data'!N15 -> 0 | Z15: C3 | AA15: ='2.0_Raw_Data'!AA15 -> 14 | AB15: ='2.0_Raw_Data'!AB15 -> 26 | AC15: ='2.0_Raw_Data'!AC15 -> 14 | AD15: ='2.0_Raw_Data'!AD15 -> 10 | AE15: ='2.0_Raw_Data'!AE15 -> 8 | AF15: C3 | AG15: ='2.0_Raw_Data'!AG15 -> 0 | AH15: ='2.0_Raw_Data'!AH15 -> 0 | AI15: ='2.0_Raw_Data'!AI15 -> 0 | AJ15: ='2.0_Raw_Data'!AJ15 -> 0 | AK15: ='2.0_Raw_Data'!AK15 -> 0
C16: C2 | D16: ='2.0_Raw_Data'!D16 -> 0 | E16: ='2.0_Raw_Data'!E16 -> 0 | F16: ='2.0_Raw_Data'!F16 -> 24 | G16: ='2.0_Raw_Data'!G16 -> 4 | H16: ='2.0_Raw_Data'!H16 -> 0 | I16: C2 | J16: ='2.0_Raw_Data'!J16 -> 0 | K16: ='2.0_Raw_Data'!K16 -> 0 | L16: ='2.0_Raw_Data'!L16 -> 4 | M16: ='2.0_Raw_Data'!M16 -> -4 | N16: ='2.0_Raw_Data'!N16 -> 0 | Z16: C2 | AA16: ='2.0_Raw_Data'!AA16 -> 2 | AB16: ='2.0_Raw_Data'!AB16 -> 26 | AC16: ='2.0_Raw_Data'!AC16 -> 4 | AD16: ='2.0_Raw_Data'!AD16 -> 0 | AE16: ='2.0_Raw_Data'!AE16 -> 6 | AF16: C2 | AG16: ='2.0_Raw_Data'!AG16 -> 0 | AH16: ='2.0_Raw_Data'!AH16 -> 0 | AI16: ='2.0_Raw_Data'!AI16 -> 0 | AJ16: ='2.0_Raw_Data'!AJ16 -> 0 | AK16: ='2.0_Raw_Data'!AK16 -> 0
C17: C1 | D17: ='2.0_Raw_Data'!D17 -> 0 | E17: ='2.0_Raw_Data'!E17 -> 0 | F17: ='2.0_Raw_Data'!F17 -> 0 | G17: ='2.0_Raw_Data'!G17 -> 0 | H17: ='2.0_Raw_Data'!H17 -> 0 | I17: C1 | J17: ='2.0_Raw_Data'!J17 -> 0 | K17: ='2.0_Raw_Data'!K17 -> 0 | L17: ='2.0_Raw_Data'!L17 -> 0 | M17: ='2.0_Raw_Data'!M17 -> 0 | N17: ='2.0_Raw_Data'!N17 -> 0 | Z17: C1 | AA17: ='2.0_Raw_Data'!AA17 -> 20 | AB17: ='2.0_Raw_Data'!AB17 -> 14 | AC17: ='2.0_Raw_Data'!AC17 -> 2 | AD17: ='2.0_Raw_Data'!AD17 -> 0 | AE17: ='2.0_Raw_Data'!AE17 -> 0 | AF17: C1 | AG17: ='2.0_Raw_Data'!AG17 -> 0 | AH17: ='2.0_Raw_Data'!AH17 -> 0 | AI17: ='2.0_Raw_Data'!AI17 -> 0 | AJ17: ='2.0_Raw_Data'!AJ17 -> 0 | AK17: ='2.0_Raw_Data'!AK17 -> 0
C19: ='2.0_Raw_Data'!C19:D19 -> Sleeves (Nitrogen & other)
C21: Original Targets | Z21: Rebased Targets
C22: =C12 -> Asset Distribution_End of RIIO-GD1 without investment | I22: =I12 -> Volume Impact of Intervention | Z22: =Z12 -> Asset Distribution_End of RIIO-GD1 without investment | AF22: =AF12 -> Volume Impact of Intervention | AM22: ='2.0_Raw_Data'!AM22 -> Original Targets Intervention Volume | AR22: ='2.0_Raw_Data'!AR22 -> Rebased Targets Intervention Volume | AW22: Original Targets Refurbishment Volume | BB22: Rebased Targets Refurbishment Volume
B23: Unit | D23: H1 | E23: H2 | F23: H3 | G23: H4 | H23: H5 | J23: H1 | K23: H2 | L23: H3 | M23: H4 | N23: H5 | AA23: H1 | AB23: H2 | AC23: H3 | AD23: H4 | AE23: H5 | AG23: H1 | AH23: H2 | AI23: H3 | AJ23: H4 | AK23: H5 | AM23: ='2.0_Raw_Data'!AM23 -> (Replacement & Refurbishment) | AR23: ='2.0_Raw_Data'!AR23 -> (Replacement & Refurbishment)
B24: Number of | C24: C4 | D24: ='2.0_Raw_Data'!D24 -> 0 | E24: ='2.0_Raw_Data'!E24 -> 0 | F24: ='2.0_Raw_Data'!F24 -> 0 | G24: ='2.0_Raw_Data'!G24 -> 0 | H24: ='2.0_Raw_Data'!H24 -> 0 | I24: C4 | J24: ='2.0_Raw_Data'!J24 -> 0 | K24: ='2.0_Raw_Data'!K24 -> 0 | L24: ='2.0_Raw_Data'!L24 -> 0 | M24: ='2.0_Raw_Data'!M24 -> 0 | N24: ='2.0_Raw_Data'!N24 -> 0 | Z24: C4 | AA24: ='2.0_Raw_Data'!AA24 -> 118 | AB24: ='2.0_Raw_Data'!AB24 -> 58 | AC24: ='2.0_Raw_Data'!AC24 -> 8 | AD24: ='2.0_Raw_Data'!AD24 -> 4 | AE24: ='2.0_Raw_Data'!AE24 -> 0 | AF24: C4 | AG24: ='2.0_Raw_Data'!AG24 -> 43 | AH24: ='2.0_Raw_Data'!AH24 -> -29 | AI24: ='2.0_Raw_Data'!AI24 -> -4 | AJ24: ='2.0_Raw_Data'!AJ24 -> -3 | AK24: ='2.0_Raw_Data'!AK24 -> 0 | AM24: ='2.0_Raw_Data'!AM24 -> 190 | AR24: ='2.0_Raw_Data'!AR24 -> 190 | AW24: ='2.0_Raw_Data'!AW24 -> 190 | BB24: ='2.0_Raw_Data'!BB24 -> 190
C25: C3 | D25: ='2.0_Raw_Data'!D25 -> 0 | E25: ='2.0_Raw_Data'!E25 -> 0 | F25: ='2.0_Raw_Data'!F25 -> 0 | G25: ='2.0_Raw_Data'!G25 -> 0 | H25: ='2.0_Raw_Data'!H25 -> 0 | I25: C3 | J25: ='2.0_Raw_Data'!J25 -> 0 | K25: ='2.0_Raw_Data'!K25 -> 0 | L25: ='2.0_Raw_Data'!L25 -> 0 | M25: ='2.0_Raw_Data'!M25 -> 0 | N25: ='2.0_Raw_Data'!N25 -> 0 | Z25: C3 | AA25: ='2.0_Raw_Data'!AA25 -> 20 | AB25: ='2.0_Raw_Data'!AB25 -> 25 | AC25: ='2.0_Raw_Data'!AC25 -> 21 | AD25: ='2.0_Raw_Data'!AD25 -> 15 | AE25: ='2.0_Raw_Data'!AE25 -> 27 | AF25: C3 | AG25: ='2.0_Raw_Data'!AG25 -> 47 | AH25: ='2.0_Raw_Data'!AH25 -> -12 | AI25: ='2.0_Raw_Data'!AI25 -> -13 | AJ25: ='2.0_Raw_Data'!AJ25 -> -10 | AK25: ='2.0_Raw_Data'!AK25 -> -15
C26: C2 | D26: ='2.0_Raw_Data'!D26 -> 0 | E26: ='2.0_Raw_Data'!E26 -> 35 | F26: ='2.0_Raw_Data'!F26 -> 120 | G26: ='2.0_Raw_Data'!G26 -> 88 | H26: ='2.0_Raw_Data'!H26 -> 122 | I26: C2 | J26: ='2.0_Raw_Data'!J26 -> 0 | K26: ='2.0_Raw_Data'!K26 -> 186 | L26: ='2.0_Raw_Data'!L26 -> 0 | M26: ='2.0_Raw_Data'!M26 -> -64 | N26: ='2.0_Raw_Data'!N26 -> -122 | Z26: C2 | AA26: ='2.0_Raw_Data'!AA26 -> 0 | AB26: ='2.0_Raw_Data'!AB26 -> 9 | AC26: ='2.0_Raw_Data'!AC26 -> 5 | AD26: ='2.0_Raw_Data'!AD26 -> 7 | AE26: ='2.0_Raw_Data'!AE26 -> 9 | AF26: C2 | AG26: ='2.0_Raw_Data'!AG26 -> 15 | AH26: ='2.0_Raw_Data'!AH26 -> -5 | AI26: ='2.0_Raw_Data'!AI26 -> -3 | AJ26: ='2.0_Raw_Data'!AJ26 -> -2 | AK26: ='2.0_Raw_Data'!AK26 -> -5
C27: C1 | D27: ='2.0_Raw_Data'!D27 -> 0 | E27: ='2.0_Raw_Data'!E27 -> 0 | F27: ='2.0_Raw_Data'!F27 -> 0 | G27: ='2.0_Raw_Data'!G27 -> 0 | H27: ='2.0_Raw_Data'!H27 -> 0 | I27: C1 | J27: ='2.0_Raw_Data'!J27 -> 0 | K27: ='2.0_Raw_Data'!K27 -> 0 | L27: ='2.0_Raw_Data'!L27 -> 0 | M27: ='2.0_Raw_Data'!M27 -> 0 | N27: ='2.0_Raw_Data'!N27 -> 0 | Z27: C1 | AA27: ='2.0_Raw_Data'!AA27 -> 4 | AB27: ='2.0_Raw_Data'!AB27 -> 19 | AC27: ='2.0_Raw_Data'!AC27 -> 16 | AD27: ='2.0_Raw_Data'!AD27 -> 3 | AE27: ='2.0_Raw_Data'!AE27 -> 23 | AF27: C1 | AG27: ='2.0_Raw_Data'!AG27 -> 19 | AH27: ='2.0_Raw_Data'!AH27 -> -7 | AI27: ='2.0_Raw_Data'!AI27 -> -4 | AJ27: ='2.0_Raw_Data'!AJ27 -> -2 | AK27: ='2.0_Raw_Data'!AK27 -> -10
C29: ='2.0_Raw_Data'!C29:D29 -> LTS Pipelines - Piggable
C31: Original Targets | Z31: Rebased Targets
C32: =C22 -> Asset Distribution_End of RIIO-GD1 without investment | I32: =I22 -> Volume Impact of Intervention | Z32: =Z22 -> Asset Distribution_End of RIIO-GD1 without investment | AF32: =AF22 -> Volume Impact of Intervention | AM32: ='2.0_Raw_Data'!AM32 -> Original Targets Intervention Volume | AR32: ='2.0_Raw_Data'!AR32 -> Rebased Targets Intervention Volume | AW32: Original Targets Refurbishment Volume | BB32: Rebased Targets Refurbishment Volume
B33: Unit | D33: H1 | E33: H2 | F33: H3 | G33: H4 | H33: H5 | J33: H1 | K33: H2 | L33: H3 | M33: H4 | N33: H5 | AA33: H1 | AB33: H2 | AC33: H3 | AD33: H4 | AE33: H5 | AG33: H1 | AH33: H2 | AI33: H3 | AJ33: H4 | AK33: H5 | AM33: ='2.0_Raw_Data'!AM33 -> (Replacement & Refurbishment) | AR33: ='2.0_Raw_Data'!AR33 -> (Replacement & Refurbishment)
B34: Km | C34: C4 | D34: ='2.0_Raw_Data'!D34 -> 0 | E34: ='2.0_Raw_Data'!E34 -> 0 | F34: ='2.0_Raw_Data'!F34 -> 0 | G34: ='2.0_Raw_Data'!G34 -> 0 | H34: ='2.0_Raw_Data'!H34 -> 0 | I34: C4 | J34: ='2.0_Raw_Data'!J34 -> 0 | K34: ='2.0_Raw_Data'!K34 -> 0 | L34: ='2.0_Raw_Data'!L34 -> 0 | M34: ='2.0_Raw_Data'!M34 -> 0 | N34: ='2.0_Raw_Data'!N34 -> 0 | Z34: C4 | AA34: ='2.0_Raw_Data'!AA34 -> 0 | AB34: ='2.0_Raw_Data'!AB34 -> 0 | AC34: ='2.0_Raw_Data'!AC34 -> 31.339 | AD34: ='2.0_Raw_Data'!AD34 -> 0.35 | AE34: ='2.0_Raw_Data'!AE34 -> 0 | AF34: C4 | AG34: ='2.0_Raw_Data'!AG34 -> 0 | AH34: ='2.0_Raw_Data'!AH34 -> 0 | AI34: ='2.0_Raw_Data'!AI34 -> 0 | AJ34: ='2.0_Raw_Data'!AJ34 -> 0 | AK34: ='2.0_Raw_Data'!AK34 -> 0 | AM34: ='2.0_Raw_Data'!AM34 -> 65 | AR34: ='2.0_Raw_Data'!AR34 -> 65 | AW34: ='2.0_Raw_Data'!AW34 -> 65 | BB34: ='2.0_Raw_Data'!BB34 -> 65
C35: C3 | D35: ='2.0_Raw_Data'!D35 -> 0 | E35: ='2.0_Raw_Data'!E35 -> 0 | F35: ='2.0_Raw_Data'!F35 -> 0 | G35: ='2.0_Raw_Data'!G35 -> 0 | H35: ='2.0_Raw_Data'!H35 -> 0 | I35: C3 | J35: ='2.0_Raw_Data'!J35 -> 0 | K35: ='2.0_Raw_Data'!K35 -> 0 | L35: ='2.0_Raw_Data'!L35 -> 0 | M35: ='2.0_Raw_Data'!M35 -> 0 | N35: ='2.0_Raw_Data'!N35 -> 0 | Z35: C3 | AA35: ='2.0_Raw_Data'!AA35 -> 0 | AB35: ='2.0_Raw_Data'!AB35 -> 115.27 | AC35: ='2.0_Raw_Data'!AC35 -> 124.83 | AD35: ='2.0_Raw_Data'!AD35 -> 43.757 | AE35: ='2.0_Raw_Data'!AE35 -> 10.64 | AF35: C3 | AG35: ='2.0_Raw_Data'!AG35 -> 0 | AH35: ='2.0_Raw_Data'!AH35 -> 0 | AI35: ='2.0_Raw_Data'!AI35 -> 0 | AJ35: ='2.0_Raw_Data'!AJ35 -> 0 | AK35: ='2.0_Raw_Data'!AK35 -> 0
C36: C2 | D36: ='2.0_Raw_Data'!D36 -> 0 | E36: ='2.0_Raw_Data'!E36 -> 0 | F36: ='2.0_Raw_Data'!F36 -> 0 | G36: ='2.0_Raw_Data'!G36 -> 0 | H36: ='2.0_Raw_Data'!H36 -> 0 | I36: C2 | J36: ='2.0_Raw_Data'!J36 -> 0 | K36: ='2.0_Raw_Data'!K36 -> 0 | L36: ='2.0_Raw_Data'!L36 -> 0 | M36: ='2.0_Raw_Data'!M36 -> 0 | N36: ='2.0_Raw_Data'!N36 -> 0 | Z36: C2 | AA36: ='2.0_Raw_Data'!AA36 -> 0 | AB36: ='2.0_Raw_Data'!AB36 -> 51.777 | AC36: ='2.0_Raw_Data'!AC36 -> 58.189 | AD36: ='2.0_Raw_Data'!AD36 -> 0 | AE36: ='2.0_Raw_Data'!AE36 -> 0 | AF36: C2 | AG36: ='2.0_Raw_Data'!AG36 -> 0 | AH36: ='2.0_Raw_Data'!AH36 -> 0 | AI36: ='2.0_Raw_Data'!AI36 -> 0 | AJ36: ='2.0_Raw_Data'!AJ36 -> 0 | AK36: ='2.0_Raw_Data'!AK36 -> 0
C37: C1 | D37: ='2.0_Raw_Data'!D37 -> 0 | E37: ='2.0_Raw_Data'!E37 -> 130.2 | F37: ='2.0_Raw_Data'!F37 -> 450.5 | G37: ='2.0_Raw_Data'!G37 -> 135.7 | H37: ='2.0_Raw_Data'!H37 -> 49.5 | I37: C1 | J37: ='2.0_Raw_Data'!J37 -> 0 | K37: ='2.0_Raw_Data'!K37 -> 615.8 | L37: ='2.0_Raw_Data'!L37 -> -430.7 | M37: ='2.0_Raw_Data'!M37 -> -135.7 | N37: ='2.0_Raw_Data'!N37 -> -49.5 | Z37: C1 | AA37: ='2.0_Raw_Data'!AA37 -> 0 | AB37: ='2.0_Raw_Data'!AB37 -> 2.458 | AC37: ='2.0_Raw_Data'!AC37 -> 77.396 | AD37: ='2.0_Raw_Data'!AD37 -> 0 | AE37: ='2.0_Raw_Data'!AE37 -> 9.472 | AF37: C1 | AG37: ='2.0_Raw_Data'!AG37 -> 0 | AH37: ='2.0_Raw_Data'!AH37 -> 0 | AI37: ='2.0_Raw_Data'!AI37 -> 0 | AJ37: ='2.0_Raw_Data'!AJ37 -> 0 | AK37: ='2.0_Raw_Data'!AK37 -> 0
C39: ='2.0_Raw_Data'!C39:D39 -> LTS Pipelines – Non Piggable
C41: Original Targets | Z41: Rebased Targets
C42: =C32 -> Asset Distribution_End of RIIO-GD1 without investment | I42: =I32 -> Volume Impact of Intervention | Z42: =Z32 -> Asset Distribution_End of RIIO-GD1 without investment | AF42: =AF32 -> Volume Impact of Intervention | AM42: ='2.0_Raw_Data'!AM42 -> Original Targets Intervention Volume | AR42: ='2.0_Raw_Data'!AR42 -> Rebased Targets Intervention Volume | AW42: Original Targets Refurbishment Volume | BB42: Rebased Targets Refurbishment Volume
B43: Unit | D43: H1 | E43: H2 | F43: H3 | G43: H4 | H43: H5 | J43: H1 | K43: H2 | L43: H3 | M43: H4 | N43: H5 | AA43: H1 | AB43: H2 | AC43: H3 | AD43: H4 | AE43: H5 | AG43: H1 | AH43: H2 | AI43: H3 | AJ43: H4 | AK43: H5 | AM43: ='2.0_Raw_Data'!AM43 -> (Replacement & Refurbishment) | AR43: ='2.0_Raw_Data'!AR43 -> (Replacement & Refurbishment)
B44: Km | C44: C4 | D44: ='2.0_Raw_Data'!D44 -> 0 | E44: ='2.0_Raw_Data'!E44 -> 0 | F44: ='2.0_Raw_Data'!F44 -> 0 | G44: ='2.0_Raw_Data'!G44 -> 0 | H44: ='2.0_Raw_Data'!H44 -> 0 | I44: C4 | J44: ='2.0_Raw_Data'!J44 -> 0 | K44: ='2.0_Raw_Data'!K44 -> 0 | L44: ='2.0_Raw_Data'!L44 -> 0 | M44: ='2.0_Raw_Data'!M44 -> 0 | N44: ='2.0_Raw_Data'!N44 -> 0 | Z44: C4 | AA44: ='2.0_Raw_Data'!AA44 -> 0 | AB44: ='2.0_Raw_Data'!AB44 -> 33.365 | AC44: ='2.0_Raw_Data'!AC44 -> 60.14 | AD44: ='2.0_Raw_Data'!AD44 -> 11.014 | AE44: ='2.0_Raw_Data'!AE44 -> 12.414 | AF44: C4 | AG44: ='2.0_Raw_Data'!AG44 -> 0 | AH44: ='2.0_Raw_Data'!AH44 -> 0 | AI44: ='2.0_Raw_Data'!AI44 -> 12.348 | AJ44: ='2.0_Raw_Data'!AJ44 -> 12.748 | AK44: ='2.0_Raw_Data'!AK44 -> 0 | AM44: ='2.0_Raw_Data'!AM44 -> 136 | AR44: ='2.0_Raw_Data'!AR44 -> 136 | AW44: ='2.0_Raw_Data'!AW44 -> 136 | BB44: ='2.0_Raw_Data'!BB44 -> 136
C45: C3 | D45: ='2.0_Raw_Data'!D45 -> 0 | E45: ='2.0_Raw_Data'!E45 -> 0 | F45: ='2.0_Raw_Data'!F45 -> 0 | G45: ='2.0_Raw_Data'!G45 -> 0 | H45: ='2.0_Raw_Data'!H45 -> 0 | I45: C3 | J45: ='2.0_Raw_Data'!J45 -> 0 | K45: ='2.0_Raw_Data'!K45 -> 0 | L45: ='2.0_Raw_Data'!L45 -> 0 | M45: ='2.0_Raw_Data'!M45 -> 0 | N45: ='2.0_Raw_Data'!N45 -> 0 | Z45: C3 | AA45: ='2.0_Raw_Data'!AA45 -> 0 | AB45: ='2.0_Raw_Data'!AB45 -> 46.411 | AC45: ='2.0_Raw_Data'!AC45 -> 62.4 | AD45: ='2.0_Raw_Data'!AD45 -> 54.179 | AE45: ='2.0_Raw_Data'!AE45 -> 6.961 | AF45: C3 | AG45: ='2.0_Raw_Data'!AG45 -> 0 | AH45: ='2.0_Raw_Data'!AH45 -> 0 | AI45: ='2.0_Raw_Data'!AI45 -> 0 | AJ45: ='2.0_Raw_Data'!AJ45 -> -10.893 | AK45: ='2.0_Raw_Data'!AK45 -> 0
C46: C2 | D46: ='2.0_Raw_Data'!D46 -> 0 | E46: ='2.0_Raw_Data'!E46 -> 0 | F46: ='2.0_Raw_Data'!F46 -> 0 | G46: ='2.0_Raw_Data'!G46 -> 0 | H46: ='2.0_Raw_Data'!H46 -> 0 | I46: C2 | J46: ='2.0_Raw_Data'!J46 -> 0 | K46: ='2.0_Raw_Data'!K46 -> 0 | L46: ='2.0_Raw_Data'!L46 -> 0 | M46: ='2.0_Raw_Data'!M46 -> 0 | N46: ='2.0_Raw_Data'!N46 -> 0 | Z46: C2 | AA46: ='2.0_Raw_Data'!AA46 -> 0 | AB46: ='2.0_Raw_Data'!AB46 -> 13.793 | AC46: ='2.0_Raw_Data'!AC46 -> 4.425 | AD46: ='2.0_Raw_Data'!AD46 -> 19.737 | AE46: ='2.0_Raw_Data'!AE46 -> 0 | AF46: C2 | AG46: ='2.0_Raw_Data'!AG46 -> 0 | AH46: ='2.0_Raw_Data'!AH46 -> 0 | AI46: ='2.0_Raw_Data'!AI46 -> 0 | AJ46: ='2.0_Raw_Data'!AJ46 -> -14.203 | AK46: ='2.0_Raw_Data'!AK46 -> 0
C47: C1 | D47: ='2.0_Raw_Data'!D47 -> 0 | E47: ='2.0_Raw_Data'!E47 -> 0 | F47: ='2.0_Raw_Data'!F47 -> 61.13624047 | G47: ='2.0_Raw_Data'!G47 -> 81.51498729 | H47: ='2.0_Raw_Data'!H47 -> 61.13624047 | I47: C1 | J47: ='2.0_Raw_Data'!J47 -> 0 | K47: ='2.0_Raw_Data'!K47 -> 122.6883737 | L47: ='2.0_Raw_Data'!L47 -> 19.96285403 | M47: ='2.0_Raw_Data'!M47 -> -81.51498729 | N47: ='2.0_Raw_Data'!N47 -> -61.13624047 | Z47: C1 | AA47: ='2.0_Raw_Data'!AA47 -> 0 | AB47: ='2.0_Raw_Data'!AB47 -> 3.958 | AC47: ='2.0_Raw_Data'!AC47 -> 46.155 | AD47: ='2.0_Raw_Data'!AD47 -> 0.322 | AE47: ='2.0_Raw_Data'!AE47 -> 19.01 | AF47: C1 | AG47: ='2.0_Raw_Data'!AG47 -> 0 | AH47: ='2.0_Raw_Data'!AH47 -> 0 | AI47: ='2.0_Raw_Data'!AI47 -> 0 | AJ47: ='2.0_Raw_Data'!AJ47 -> 0 | AK47: ='2.0_Raw_Data'!AK47 -> 0
C49: ='2.0_Raw_Data'!C49:D49 -> Distribution Mains (Iron)
C51: Original Targets | Z51: Rebased Targets
C52: =C42 -> Asset Distribution_End of RIIO-GD1 without investment | I52: =I42 -> Volume Impact of Intervention | Z52: =Z42 -> Asset Distribution_End of RIIO-GD1 without investment | AF52: =AF42 -> Volume Impact of Intervention | AM52: ='2.0_Raw_Data'!AM52 -> Original Targets Intervention Volume | AR52: ='2.0_Raw_Data'!AR52 -> Rebased Targets Intervention Volume | AW52: Original Targets Refurbishment Volume | BB52: Rebased Targets Refurbishment Volume
B53: Unit | D53: H1 | E53: H2 | F53: H3 | G53: H4 | H53: H5 | J53: H1 | K53: H2 | L53: H3 | M53: H4 | N53: H5 | AA53: H1 | AB53: H2 | AC53: H3 | AD53: H4 | AE53: H5 | AG53: H1 | AH53: H2 | AI53: H3 | AJ53: H4 | AK53: H5 | AM53: ='2.0_Raw_Data'!AM53 -> (Replacement & Refurbishment) | AR53: ='2.0_Raw_Data'!AR53 -> (Replacement & Refurbishment)
B54: Km | C54: C4 | D54: ='2.0_Raw_Data'!D54 -> 20 | E54: ='2.0_Raw_Data'!E54 -> 0 | F54: ='2.0_Raw_Data'!F54 -> 0 | G54: ='2.0_Raw_Data'!G54 -> 0 | H54: ='2.0_Raw_Data'!H54 -> 116.074367 | I54: C4 | J54: ='2.0_Raw_Data'!J54 -> 100 | K54: ='2.0_Raw_Data'!K54 -> 0 | L54: ='2.0_Raw_Data'!L54 -> 0 | M54: ='2.0_Raw_Data'!M54 -> 0 | N54: ='2.0_Raw_Data'!N54 -> -100 | Z54: C4 | AA54: ='2.0_Raw_Data'!AA54 -> 0 | AB54: ='2.0_Raw_Data'!AB54 -> 0 | AC54: ='2.0_Raw_Data'!AC54 -> 0 | AD54: ='2.0_Raw_Data'!AD54 -> 0 | AE54: ='2.0_Raw_Data'!AE54 -> 0 | AF54: C4 | AG54: ='2.0_Raw_Data'!AG54 -> 0 | AH54: ='2.0_Raw_Data'!AH54 -> 0 | AI54: ='2.0_Raw_Data'!AI54 -> 0 | AJ54: ='2.0_Raw_Data'!AJ54 -> 0 | AK54: ='2.0_Raw_Data'!AK54 -> 0 | AM54: ='2.0_Raw_Data'!AM54 -> 3526.394218 | AR54: ='2.0_Raw_Data'!AR54 -> 3526.395 | AW54: ='2.0_Raw_Data'!AW54 -> 0 | BB54: ='2.0_Raw_Data'!BB54 -> 0
C55: C3 | D55: ='2.0_Raw_Data'!D55 -> 0 | E55: ='2.0_Raw_Data'!E55 -> 0 | F55: ='2.0_Raw_Data'!F55 -> 0 | G55: ='2.0_Raw_Data'!G55 -> 0 | H55: ='2.0_Raw_Data'!H55 -> 0 | I55: C3 | J55: ='2.0_Raw_Data'!J55 -> 0 | K55: ='2.0_Raw_Data'!K55 -> 0 | L55: ='2.0_Raw_Data'!L55 -> 0 | M55: ='2.0_Raw_Data'!M55 -> 0 | N55: ='2.0_Raw_Data'!N55 -> 0 | Z55: C3 | AA55: ='2.0_Raw_Data'!AA55 -> 0 | AB55: ='2.0_Raw_Data'!AB55 -> 0 | AC55: ='2.0_Raw_Data'!AC55 -> 139.11914 | AD55: ='2.0_Raw_Data'!AD55 -> 0 | AE55: ='2.0_Raw_Data'!AE55 -> 0 | AF55: C3 | AG55: ='2.0_Raw_Data'!AG55 -> 0 | AH55: ='2.0_Raw_Data'!AH55 -> 0 | AI55: ='2.0_Raw_Data'!AI55 -> -0.62506 | AJ55: ='2.0_Raw_Data'!AJ55 -> 0 | AK55: ='2.0_Raw_Data'!AK55 -> 0
C56: C2 | D56: ='2.0_Raw_Data'!D56 -> 0 | E56: ='2.0_Raw_Data'!E56 -> 0 | F56: ='2.0_Raw_Data'!F56 -> 0 | G56: ='2.0_Raw_Data'!G56 -> 0 | H56: ='2.0_Raw_Data'!H56 -> 0 | I56: C2 | J56: ='2.0_Raw_Data'!J56 -> 0 | K56: ='2.0_Raw_Data'!K56 -> 0 | L56: ='2.0_Raw_Data'!L56 -> 0 | M56: ='2.0_Raw_Data'!M56 -> 0 | N56: ='2.0_Raw_Data'!N56 -> 0 | Z56: C2 | AA56: ='2.0_Raw_Data'!AA56 -> 0 | AB56: ='2.0_Raw_Data'!AB56 -> 0 | AC56: ='2.0_Raw_Data'!AC56 -> 0 | AD56: ='2.0_Raw_Data'!AD56 -> 1154.13443 | AE56: ='2.0_Raw_Data'!AE56 -> 0 | AF56: C2 | AG56: ='2.0_Raw_Data'!AG56 -> 0 | AH56: ='2.0_Raw_Data'!AH56 -> 0 | AI56: ='2.0_Raw_Data'!AI56 -> 0 | AJ56: ='2.0_Raw_Data'!AJ56 -> 5.3386 | AK56: ='2.0_Raw_Data'!AK56 -> 2297.61696
C57: C1 | D57: ='2.0_Raw_Data'!D57 -> 1040.795359 | E57: ='2.0_Raw_Data'!E57 -> 0 | F57: ='2.0_Raw_Data'!F57 -> 0 | G57: ='2.0_Raw_Data'!G57 -> 0 | H57: ='2.0_Raw_Data'!H57 -> 9290.389274 | I57: C1 | J57: ='2.0_Raw_Data'!J57 -> 3785.702538 | K57: ='2.0_Raw_Data'!K57 -> 0 | L57: ='2.0_Raw_Data'!L57 -> 0 | M57: ='2.0_Raw_Data'!M57 -> 0 | N57: ='2.0_Raw_Data'!N57 -> -3785.702538 | Z57: C1 | AA57: ='2.0_Raw_Data'!AA57 -> 0 | AB57: ='2.0_Raw_Data'!AB57 -> 0 | AC57: ='2.0_Raw_Data'!AC57 -> 0 | AD57: ='2.0_Raw_Data'!AD57 -> 0 | AE57: ='2.0_Raw_Data'!AE57 -> 7976.38798 | AF57: C1 | AG57: ='2.0_Raw_Data'!AG57 -> 0 | AH57: ='2.0_Raw_Data'!AH57 -> 0 | AI57: ='2.0_Raw_Data'!AI57 -> 0 | AJ57: ='2.0_Raw_Data'!AJ57 -> 0 | AK57: ='2.0_Raw_Data'!AK57 -> -2742.07354
C59: ='2.0_Raw_Data'!C59:D59 -> Distribution Mains (PE)
C61: Original Targets | Z61: Rebased Targets
C62: =C52 -> Asset Distribution_End of RIIO-GD1 without investment | I62: =I52 -> Volume Impact of Intervention | Z62: =Z52 -> Asset Distribution_End of RIIO-GD1 without investment | AF62: =AF52 -> Volume Impact of Intervention | AM62: ='2.0_Raw_Data'!AM62 -> Original Targets Intervention Volume | AR62: ='2.0_Raw_Data'!AR62 -> Rebased Targets Intervention Volume | AW62: Original Targets Refurbishment Volume | BB62: Rebased Targets Refurbishment Volume
B63: Unit | D63: H1 | E63: H2 | F63: H3 | G63: H4 | H63: H5 | J63: H1 | K63: H2 | L63: H3 | M63: H4 | N63: H5 | AA63: H1 | AB63: H2 | AC63: H3 | AD63: H4 | AE63: H5 | AG63: H1 | AH63: H2 | AI63: H3 | AJ63: H4 | AK63: H5 | AM63: ='2.0_Raw_Data'!AM63 -> (Replacement & Refurbishment) | AR63: ='2.0_Raw_Data'!AR63 -> (Replacement & Refurbishment)
B64: Km | C64: C4 | D64: ='2.0_Raw_Data'!D64 -> 19519.70554 | E64: ='2.0_Raw_Data'!E64 -> 185.80606 | F64: ='2.0_Raw_Data'!F64 -> 0 | G64: ='2.0_Raw_Data'!G64 -> 0 | H64: ='2.0_Raw_Data'!H64 -> 0 | I64: C4 | J64: ='2.0_Raw_Data'!J64 -> 0 | K64: ='2.0_Raw_Data'!K64 -> 0 | L64: ='2.0_Raw_Data'!L64 -> 0 | M64: ='2.0_Raw_Data'!M64 -> 0 | N64: ='2.0_Raw_Data'!N64 -> 0 | Z64: C4 | AA64: ='2.0_Raw_Data'!AA64 -> 22505.9858 | AB64: ='2.0_Raw_Data'!AB64 -> 0 | AC64: ='2.0_Raw_Data'!AC64 -> 0 | AD64: ='2.0_Raw_Data'!AD64 -> 0 | AE64: ='2.0_Raw_Data'!AE64 -> 0 | AF64: C4 | AG64: ='2.0_Raw_Data'!AG64 -> 488.00591 | AH64: ='2.0_Raw_Data'!AH64 -> 0 | AI64: ='2.0_Raw_Data'!AI64 -> 0 | AJ64: ='2.0_Raw_Data'!AJ64 -> 0 | AK64: ='2.0_Raw_Data'!AK64 -> 0 | AM64: ='2.0_Raw_Data'!AM64 -> 0 | AR64: ='2.0_Raw_Data'!AR64 -> 0 | AW64: ='2.0_Raw_Data'!AW64 -> 0 | BB64: ='2.0_Raw_Data'!BB64 -> 0
C65: C3 | D65: ='2.0_Raw_Data'!D65 -> 2487.756808 | E65: ='2.0_Raw_Data'!E65 -> 0 | F65: ='2.0_Raw_Data'!F65 -> 0 | G65: ='2.0_Raw_Data'!G65 -> 0 | H65: ='2.0_Raw_Data'!H65 -> 0 | I65: C3 | J65: ='2.0_Raw_Data'!J65 -> 0 | K65: ='2.0_Raw_Data'!K65 -> 0 | L65: ='2.0_Raw_Data'!L65 -> 0 | M65: ='2.0_Raw_Data'!M65 -> 0 | N65: ='2.0_Raw_Data'!N65 -> 0 | Z65: C3 | AA65: ='2.0_Raw_Data'!AA65 -> 0 | AB65: ='2.0_Raw_Data'!AB65 -> 0 | AC65: ='2.0_Raw_Data'!AC65 -> 0 | AD65: ='2.0_Raw_Data'!AD65 -> 0 | AE65: ='2.0_Raw_Data'!AE65 -> 0 | AF65: C3 | AG65: ='2.0_Raw_Data'!AG65 -> 0 | AH65: ='2.0_Raw_Data'!AH65 -> 0 | AI65: ='2.0_Raw_Data'!AI65 -> 0 | AJ65: ='2.0_Raw_Data'!AJ65 -> 0 | AK65: ='2.0_Raw_Data'!AK65 -> 0
C66: C2 | D66: ='2.0_Raw_Data'!D66 -> 278.7139731 | E66: ='2.0_Raw_Data'!E66 -> 0 | F66: ='2.0_Raw_Data'!F66 -> 0 | G66: ='2.0_Raw_Data'!G66 -> 0 | H66: ='2.0_Raw_Data'!H66 -> 0 | I66: C2 | J66: ='2.0_Raw_Data'!J66 -> 0 | K66: ='2.0_Raw_Data'!K66 -> 0 | L66: ='2.0_Raw_Data'!L66 -> 0 | M66: ='2.0_Raw_Data'!M66 -> 0 | N66: ='2.0_Raw_Data'!N66 -> 0 | Z66: C2 | AA66: ='2.0_Raw_Data'!AA66 -> 0 | AB66: ='2.0_Raw_Data'!AB66 -> 0 | AC66: ='2.0_Raw_Data'!AC66 -> 0 | AD66: ='2.0_Raw_Data'!AD66 -> 0 | AE66: ='2.0_Raw_Data'!AE66 -> 0 | AF66: C2 | AG66: ='2.0_Raw_Data'!AG66 -> 0 | AH66: ='2.0_Raw_Data'!AH66 -> 0 | AI66: ='2.0_Raw_Data'!AI66 -> 0 | AJ66: ='2.0_Raw_Data'!AJ66 -> 0 | AK66: ='2.0_Raw_Data'!AK66 -> 0
C67: C1 | D67: ='2.0_Raw_Data'!D67 -> 0 | E67: ='2.0_Raw_Data'!E67 -> 0 | F67: ='2.0_Raw_Data'!F67 -> 0 | G67: ='2.0_Raw_Data'!G67 -> 0 | H67: ='2.0_Raw_Data'!H67 -> 0 | I67: C1 | J67: ='2.0_Raw_Data'!J67 -> 0 | K67: ='2.0_Raw_Data'!K67 -> 0 | L67: ='2.0_Raw_Data'!L67 -> 0 | M67: ='2.0_Raw_Data'!M67 -> 0 | N67: ='2.0_Raw_Data'!N67 -> 0 | Z67: C1 | AA67: ='2.0_Raw_Data'!AA67 -> 0 | AB67: ='2.0_Raw_Data'!AB67 -> 0 | AC67: ='2.0_Raw_Data'!AC67 -> 0 | AD67: ='2.0_Raw_Data'!AD67 -> 0 | AE67: ='2.0_Raw_Data'!AE67 -> 0 | AF67: C1 | AG67: ='2.0_Raw_Data'!AG67 -> 0 | AH67: ='2.0_Raw_Data'!AH67 -> 0 | AI67: ='2.0_Raw_Data'!AI67 -> 0 | AJ67: ='2.0_Raw_Data'!AJ67 -> 0 | AK67: ='2.0_Raw_Data'!AK67 -> 0
C69: ='2.0_Raw_Data'!C69:D69 -> Distribution Mains (Steel)
C71: Original Targets | Z71: Rebased Targets
C72: =C62 -> Asset Distribution_End of RIIO-GD1 without investment | I72: =I62 -> Volume Impact of Intervention | Z72: =Z62 -> Asset Distribution_End of RIIO-GD1 without investment | AF72: =AF62 -> Volume Impact of Intervention | AM72: ='2.0_Raw_Data'!AM72 -> Original Targets Intervention Volume | AR72: ='2.0_Raw_Data'!AR72 -> Rebased Targets Intervention Volume | AW72: Original Targets Refurbishment Volume | BB72: Rebased Targets Refurbishment Volume
B73: Unit | D73: H1 | E73: H2 | F73: H3 | G73: H4 | H73: H5 | J73: H1 | K73: H2 | L73: H3 | M73: H4 | N73: H5 | AA73: H1 | AB73: H2 | AC73: H3 | AD73: H4 | AE73: H5 | AG73: H1 | AH73: H2 | AI73: H3 | AJ73: H4 | AK73: H5 | AM73: ='2.0_Raw_Data'!AM73 -> (Replacement & Refurbishment) | AR73: ='2.0_Raw_Data'!AR73 -> (Replacement & Refurbishment)
B74: Km | C74: C4 | D74: ='2.0_Raw_Data'!D74 -> 0 | E74: ='2.0_Raw_Data'!E74 -> 0 | F74: ='2.0_Raw_Data'!F74 -> 858.4108507 | G74: ='2.0_Raw_Data'!G74 -> 0 | H74: ='2.0_Raw_Data'!H74 -> 0 | I74: C4 | J74: ='2.0_Raw_Data'!J74 -> 305.6786501 | K74: ='2.0_Raw_Data'!K74 -> 0 | L74: ='2.0_Raw_Data'!L74 -> -305.6786501 | M74: ='2.0_Raw_Data'!M74 -> 0 | N74: ='2.0_Raw_Data'!N74 -> 0 | Z74: C4 | AA74: ='2.0_Raw_Data'!AA74 -> 0 | AB74: ='2.0_Raw_Data'!AB74 -> 0 | AC74: ='2.0_Raw_Data'!AC74 -> 0 | AD74: ='2.0_Raw_Data'!AD74 -> 0 | AE74: ='2.0_Raw_Data'!AE74 -> 0 | AF74: C4 | AG74: ='2.0_Raw_Data'!AG74 -> 0 | AH74: ='2.0_Raw_Data'!AH74 -> 0 | AI74: ='2.0_Raw_Data'!AI74 -> 0 | AJ74: ='2.0_Raw_Data'!AJ74 -> 0 | AK74: ='2.0_Raw_Data'!AK74 -> 0 | AM74: ='2.0_Raw_Data'!AM74 -> 320.89 | AR74: ='2.0_Raw_Data'!AR74 -> 320.889 | AW74: ='2.0_Raw_Data'!AW74 -> 0 | BB74: ='2.0_Raw_Data'!BB74 -> 0
C75: C3 | D75: ='2.0_Raw_Data'!D75 -> 0 | E75: ='2.0_Raw_Data'!E75 -> 0 | F75: ='2.0_Raw_Data'!F75 -> 185.7208698 | G75: ='2.0_Raw_Data'!G75 -> 0 | H75: ='2.0_Raw_Data'!H75 -> 0 | I75: C3 | J75: ='2.0_Raw_Data'!J75 -> 16.45017552 | K75: ='2.0_Raw_Data'!K75 -> 0 | L75: ='2.0_Raw_Data'!L75 -> -16.45017552 | M75: ='2.0_Raw_Data'!M75 -> 0 | N75: ='2.0_Raw_Data'!N75 -> 0 | Z75: C3 | AA75: ='2.0_Raw_Data'!AA75 -> 0 | AB75: ='2.0_Raw_Data'!AB75 -> 0 | AC75: ='2.0_Raw_Data'!AC75 -> 0 | AD75: ='2.0_Raw_Data'!AD75 -> 0 | AE75: ='2.0_Raw_Data'!AE75 -> 0 | AF75: C3 | AG75: ='2.0_Raw_Data'!AG75 -> 0 | AH75: ='2.0_Raw_Data'!AH75 -> 0 | AI75: ='2.0_Raw_Data'!AI75 -> 0 | AJ75: ='2.0_Raw_Data'!AJ75 -> 0 | AK75: ='2.0_Raw_Data'!AK75 -> 0
C76: C2 | D76: ='2.0_Raw_Data'!D76 -> 0 | E76: ='2.0_Raw_Data'!E76 -> 296.126 | F76: ='2.0_Raw_Data'!F76 -> 74.00525898 | G76: ='2.0_Raw_Data'!G76 -> 0 | H76: ='2.0_Raw_Data'!H76 -> 0 | I76: C2 | J76: ='2.0_Raw_Data'!J76 -> 0.2211744254 | K76: ='2.0_Raw_Data'!K76 -> 0 | L76: ='2.0_Raw_Data'!L76 -> -0.2211744254 | M76: ='2.0_Raw_Data'!M76 -> 0 | N76: ='2.0_Raw_Data'!N76 -> 0 | Z76: C2 | AA76: ='2.0_Raw_Data'!AA76 -> 0 | AB76: ='2.0_Raw_Data'!AB76 -> 0 | AC76: ='2.0_Raw_Data'!AC76 -> 0 | AD76: ='2.0_Raw_Data'!AD76 -> 0 | AE76: ='2.0_Raw_Data'!AE76 -> 0 | AF76: C2 | AG76: ='2.0_Raw_Data'!AG76 -> 0 | AH76: ='2.0_Raw_Data'!AH76 -> 0 | AI76: ='2.0_Raw_Data'!AI76 -> 0 | AJ76: ='2.0_Raw_Data'!AJ76 -> 0 | AK76: ='2.0_Raw_Data'!AK76 -> 0
C77: C1 | D77: ='2.0_Raw_Data'!D77 -> 0 | E77: ='2.0_Raw_Data'!E77 -> 124.631 | F77: ='2.0_Raw_Data'!F77 -> 0 | G77: ='2.0_Raw_Data'!G77 -> 0 | H77: ='2.0_Raw_Data'!H77 -> 0 | I77: C1 | J77: ='2.0_Raw_Data'!J77 -> 0 | K77: ='2.0_Raw_Data'!K77 -> 0 | L77: ='2.0_Raw_Data'!L77 -> 0 | M77: ='2.0_Raw_Data'!M77 -> 0 | N77: ='2.0_Raw_Data'!N77 -> 0 | Z77: C1 | AA77: ='2.0_Raw_Data'!AA77 -> 0 | AB77: ='2.0_Raw_Data'!AB77 -> 280.95855 | AC77: ='2.0_Raw_Data'!AC77 -> 159.45258 | AD77: ='2.0_Raw_Data'!AD77 -> 0 | AE77: ='2.0_Raw_Data'!AE77 -> 1072.68902 | AF77: C1 | AG77: ='2.0_Raw_Data'!AG77 -> 0 | AH77: ='2.0_Raw_Data'!AH77 -> -0.85925 | AI77: ='2.0_Raw_Data'!AI77 -> -0.8737 | AJ77: ='2.0_Raw_Data'!AJ77 -> 0 | AK77: ='2.0_Raw_Data'!AK77 -> -38.18339
C79: ='2.0_Raw_Data'!C79:D79 -> Distribution Mains (other)
C81: Original Targets | Z81: Rebased Targets
C82: =C72 -> Asset Distribution_End of RIIO-GD1 without investment | I82: =I72 -> Volume Impact of Intervention | Z82: =Z72 -> Asset Distribution_End of RIIO-GD1 without investment | AF82: =AF72 -> Volume Impact of Intervention | AM82: ='2.0_Raw_Data'!AM82 -> Original Targets Intervention Volume | AR82: ='2.0_Raw_Data'!AR82 -> Rebased Targets Intervention Volume | AW82: Original Targets Refurbishment Volume | BB82: Rebased Targets Refurbishment Volume
B83: Unit | D83: H1 | E83: H2 | F83: H3 | G83: H4 | H83: H5 | J83: H1 | K83: H2 | L83: H3 | M83: H4 | N83: H5 | AA83: H1 | AB83: H2 | AC83: H3 | AD83: H4 | AE83: H5 | AG83: H1 | AH83: H2 | AI83: H3 | AJ83: H4 | AK83: H5 | AM83: ='2.0_Raw_Data'!AM83 -> (Replacement & Refurbishment) | AR83: ='2.0_Raw_Data'!AR83 -> (Replacement & Refurbishment)
B84: Km | C84: ='2.0_Raw_Data'!C84 -> C4 | D84: ='2.0_Raw_Data'!D84 -> 0 | E84: ='2.0_Raw_Data'!E84 -> 0 | F84: ='2.0_Raw_Data'!F84 -> 0 | G84: ='2.0_Raw_Data'!G84 -> 0 | H84: ='2.0_Raw_Data'!H84 -> 0 | I84: ='2.0_Raw_Data'!I84 -> C4 | J84: ='2.0_Raw_Data'!J84 -> 0 | K84: ='2.0_Raw_Data'!K84 -> 0 | L84: ='2.0_Raw_Data'!L84 -> 0 | M84: ='2.0_Raw_Data'!M84 -> 0 | N84: ='2.0_Raw_Data'!N84 -> 0 | Z84: ='2.0_Raw_Data'!Z84 -> C4 | AA84: ='2.0_Raw_Data'!AA84 -> 0 | AB84: ='2.0_Raw_Data'!AB84 -> 0 | AC84: ='2.0_Raw_Data'!AC84 -> 0 | AD84: ='2.0_Raw_Data'!AD84 -> 0 | AE84: ='2.0_Raw_Data'!AE84 -> 0 | AF84: ='2.0_Raw_Data'!AF84 -> C4 | AG84: ='2.0_Raw_Data'!AG84 -> 0 | AH84: ='2.0_Raw_Data'!AH84 -> 0 | AI84: ='2.0_Raw_Data'!AI84 -> 0 | AJ84: ='2.0_Raw_Data'!AJ84 -> 0 | AK84: ='2.0_Raw_Data'!AK84 -> 0 | AM84: ='2.0_Raw_Data'!AM84 -> 64.6 | AR84: ='2.0_Raw_Data'!AR84 -> 66.032 | AW84: ='2.0_Raw_Data'!AW84 -> 0 | BB84: ='2.0_Raw_Data'!BB84 -> 0
C85: ='2.0_Raw_Data'!C85 -> C3 | D85: ='2.0_Raw_Data'!D85 -> 0 | E85: ='2.0_Raw_Data'!E85 -> 0 | F85: ='2.0_Raw_Data'!F85 -> 0 | G85: ='2.0_Raw_Data'!G85 -> 0 | H85: ='2.0_Raw_Data'!H85 -> 0 | I85: ='2.0_Raw_Data'!I85 -> C3 | J85: ='2.0_Raw_Data'!J85 -> 0 | K85: ='2.0_Raw_Data'!K85 -> 0 | L85: ='2.0_Raw_Data'!L85 -> 0 | M85: ='2.0_Raw_Data'!M85 -> 0 | N85: ='2.0_Raw_Data'!N85 -> 0 | Z85: ='2.0_Raw_Data'!Z85 -> C3 | AA85: ='2.0_Raw_Data'!AA85 -> 0 | AB85: ='2.0_Raw_Data'!AB85 -> 0 | AC85: ='2.0_Raw_Data'!AC85 -> 0 | AD85: ='2.0_Raw_Data'!AD85 -> 0 | AE85: ='2.0_Raw_Data'!AE85 -> 0 | AF85: ='2.0_Raw_Data'!AF85 -> C3 | AG85: ='2.0_Raw_Data'!AG85 -> 0 | AH85: ='2.0_Raw_Data'!AH85 -> 0 | AI85: ='2.0_Raw_Data'!AI85 -> 0 | AJ85: ='2.0_Raw_Data'!AJ85 -> 0 | AK85: ='2.0_Raw_Data'!AK85 -> 0
C86: ='2.0_Raw_Data'!C86 -> C2 | D86: ='2.0_Raw_Data'!D86 -> 0 | E86: ='2.0_Raw_Data'!E86 -> 0 | F86: ='2.0_Raw_Data'!F86 -> 0 | G86: ='2.0_Raw_Data'!G86 -> 0 | H86: ='2.0_Raw_Data'!H86 -> 0 | I86: ='2.0_Raw_Data'!I86 -> C2 | J86: ='2.0_Raw_Data'!J86 -> 0 | K86: ='2.0_Raw_Data'!K86 -> 0 | L86: ='2.0_Raw_Data'!L86 -> 0 | M86: ='2.0_Raw_Data'!M86 -> 0 | N86: ='2.0_Raw_Data'!N86 -> 0 | Z86: ='2.0_Raw_Data'!Z86 -> C2 | AA86: ='2.0_Raw_Data'!AA86 -> 0 | AB86: ='2.0_Raw_Data'!AB86 -> 0 | AC86: ='2.0_Raw_Data'!AC86 -> 0 | AD86: ='2.0_Raw_Data'!AD86 -> 0 | AE86: ='2.0_Raw_Data'!AE86 -> 0 | AF86: ='2.0_Raw_Data'!AF86 -> C2 | AG86: ='2.0_Raw_Data'!AG86 -> 0 | AH86: ='2.0_Raw_Data'!AH86 -> 0 | AI86: ='2.0_Raw_Data'!AI86 -> 99.95165 | AJ86: ='2.0_Raw_Data'!AJ86 -> 0 | AK86: ='2.0_Raw_Data'!AK86 -> 0
C87: ='2.0_Raw_Data'!C87 -> C1 | D87: ='2.0_Raw_Data'!D87 -> 0 | E87: ='2.0_Raw_Data'!E87 -> 0 | F87: ='2.0_Raw_Data'!F87 -> 0 | G87: ='2.0_Raw_Data'!G87 -> 0 | H87: ='2.0_Raw_Data'!H87 -> 119 | I87: ='2.0_Raw_Data'!I87 -> C1 | J87: ='2.0_Raw_Data'!J87 -> 64.6 | K87: ='2.0_Raw_Data'!K87 -> 0 | L87: ='2.0_Raw_Data'!L87 -> 0 | M87: ='2.0_Raw_Data'!M87 -> 0 | N87: ='2.0_Raw_Data'!N87 -> -64.6 | Z87: ='2.0_Raw_Data'!Z87 -> C1 | AA87: ='2.0_Raw_Data'!AA87 -> 0 | AB87: ='2.0_Raw_Data'!AB87 -> 0 | AC87: ='2.0_Raw_Data'!AC87 -> 0 | AD87: ='2.0_Raw_Data'!AD87 -> 1.24137 | AE87: ='2.0_Raw_Data'!AE87 -> 112.91145 | AF87: ='2.0_Raw_Data'!AF87 -> C1 | AG87: ='2.0_Raw_Data'!AG87 -> 0 | AH87: ='2.0_Raw_Data'!AH87 -> 0 | AI87: ='2.0_Raw_Data'!AI87 -> 0 | AJ87: ='2.0_Raw_Data'!AJ87 -> 4.61327 | AK87: ='2.0_Raw_Data'!AK87 -> -112.91145
C89: ='2.0_Raw_Data'!C89:D89 -> Services
C91: Original Targets | Z91: Rebased Targets
C92: =C82 -> Asset Distribution_End of RIIO-GD1 without investment | I92: =I82 -> Volume Impact of Intervention | Z92: =Z82 -> Asset Distribution_End of RIIO-GD1 without investment | AF92: =AF82 -> Volume Impact of Intervention | AM92: ='2.0_Raw_Data'!AM92 -> Original Targets Intervention Volume | AR92: ='2.0_Raw_Data'!AR92 -> Rebased Targets Intervention Volume | AW92: Original Targets Refurbishment Volume | BB92: Rebased Targets Refurbishment Volume
B93: Unit | D93: H1 | E93: H2 | F93: H3 | G93: H4 | H93: H5 | J93: H1 | K93: H2 | L93: H3 | M93: H4 | N93: H5 | AA93: H1 | AB93: H2 | AC93: H3 | AD93: H4 | AE93: H5 | AG93: H1 | AH93: H2 | AI93: H3 | AJ93: H4 | AK93: H5 | AM93: ='2.0_Raw_Data'!AM93 -> (Replacement & Refurbishment) | AR93: ='2.0_Raw_Data'!AR93 -> (Replacement & Refurbishment)
B94: Number of | C94: ='2.0_Raw_Data'!C94 -> C4 | D94: ='2.0_Raw_Data'!D94 -> 2258933 | E94: ='2.0_Raw_Data'!E94 -> 0 | F94: ='2.0_Raw_Data'!F94 -> 0 | G94: ='2.0_Raw_Data'!G94 -> 24331 | H94: ='2.0_Raw_Data'!H94 -> 367135 | I94: ='2.0_Raw_Data'!I94 -> C4 | J94: ='2.0_Raw_Data'!J94 -> 296330 | K94: ='2.0_Raw_Data'!K94 -> 0 | L94: ='2.0_Raw_Data'!L94 -> 0 | M94: ='2.0_Raw_Data'!M94 -> -500 | N94: ='2.0_Raw_Data'!N94 -> -226566 | Z94: ='2.0_Raw_Data'!Z94 -> C4 | AA94: ='2.0_Raw_Data'!AA94 -> 2208652.553 | AB94: ='2.0_Raw_Data'!AB94 -> 0 | AC94: ='2.0_Raw_Data'!AC94 -> 0 | AD94: ='2.0_Raw_Data'!AD94 -> 0 | AE94: ='2.0_Raw_Data'!AE94 -> 0 | AF94: ='2.0_Raw_Data'!AF94 -> C4 | AG94: ='2.0_Raw_Data'!AG94 -> 223207 | AH94: ='2.0_Raw_Data'!AH94 -> 0 | AI94: ='2.0_Raw_Data'!AI94 -> 0 | AJ94: ='2.0_Raw_Data'!AJ94 -> 0 | AK94: ='2.0_Raw_Data'!AK94 -> 0 | AM94: ='2.0_Raw_Data'!AM94 -> 229785 | AR94: ='2.0_Raw_Data'!AR94 -> 229785 | AW94: ='2.0_Raw_Data'!AW94 -> 0 | BB94: ='2.0_Raw_Data'!BB94 -> 0
C95: ='2.0_Raw_Data'!C95 -> C3 | D95: ='2.0_Raw_Data'!D95 -> 0 | E95: ='2.0_Raw_Data'!E95 -> 0 | F95: ='2.0_Raw_Data'!F95 -> 0 | G95: ='2.0_Raw_Data'!G95 -> 0 | H95: ='2.0_Raw_Data'!H95 -> 0 | I95: ='2.0_Raw_Data'!I95 -> C3 | J95: ='2.0_Raw_Data'!J95 -> 0 | K95: ='2.0_Raw_Data'!K95 -> 0 | L95: ='2.0_Raw_Data'!L95 -> 0 | M95: ='2.0_Raw_Data'!M95 -> 0 | N95: ='2.0_Raw_Data'!N95 -> 0 | Z95: ='2.0_Raw_Data'!Z95 -> C3 | AA95: ='2.0_Raw_Data'!AA95 -> 22952 | AB95: ='2.0_Raw_Data'!AB95 -> 0 | AC95: ='2.0_Raw_Data'!AC95 -> 0 | AD95: ='2.0_Raw_Data'!AD95 -> 0 | AE95: ='2.0_Raw_Data'!AE95 -> 0 | AF95: ='2.0_Raw_Data'!AF95 -> C3 | AG95: ='2.0_Raw_Data'!AG95 -> 31 | AH95: ='2.0_Raw_Data'!AH95 -> 0 | AI95: ='2.0_Raw_Data'!AI95 -> 0 | AJ95: ='2.0_Raw_Data'!AJ95 -> 0 | AK95: ='2.0_Raw_Data'!AK95 -> 0
C96: ='2.0_Raw_Data'!C96 -> C2 | D96: ='2.0_Raw_Data'!D96 -> 0 | E96: ='2.0_Raw_Data'!E96 -> 0 | F96: ='2.0_Raw_Data'!F96 -> 0 | G96: ='2.0_Raw_Data'!G96 -> 0 | H96: ='2.0_Raw_Data'!H96 -> 0 | I96: ='2.0_Raw_Data'!I96 -> C2 | J96: ='2.0_Raw_Data'!J96 -> 0 | K96: ='2.0_Raw_Data'!K96 -> 0 | L96: ='2.0_Raw_Data'!L96 -> 0 | M96: ='2.0_Raw_Data'!M96 -> 0 | N96: ='2.0_Raw_Data'!N96 -> 0 | Z96: ='2.0_Raw_Data'!Z96 -> C2 | AA96: ='2.0_Raw_Data'!AA96 -> 0 | AB96: ='2.0_Raw_Data'!AB96 -> 0 | AC96: ='2.0_Raw_Data'!AC96 -> 0 | AD96: ='2.0_Raw_Data'!AD96 -> 0 | AE96: ='2.0_Raw_Data'!AE96 -> 0 | AF96: ='2.0_Raw_Data'!AF96 -> C2 | AG96: ='2.0_Raw_Data'!AG96 -> 0 | AH96: ='2.0_Raw_Data'!AH96 -> 0 | AI96: ='2.0_Raw_Data'!AI96 -> 0 | AJ96: ='2.0_Raw_Data'!AJ96 -> 0 | AK96: ='2.0_Raw_Data'!AK96 -> 0
C97: ='2.0_Raw_Data'!C97 -> C1 | D97: ='2.0_Raw_Data'!D97 -> 0 | E97: ='2.0_Raw_Data'!E97 -> 0 | F97: ='2.0_Raw_Data'!F97 -> 0 | G97: ='2.0_Raw_Data'!G97 -> 0 | H97: ='2.0_Raw_Data'!H97 -> 0 | I97: ='2.0_Raw_Data'!I97 -> C1 | J97: ='2.0_Raw_Data'!J97 -> 0 | K97: ='2.0_Raw_Data'!K97 -> 0 | L97: ='2.0_Raw_Data'!L97 -> 0 | M97: ='2.0_Raw_Data'!M97 -> 0 | N97: ='2.0_Raw_Data'!N97 -> 0 | Z97: ='2.0_Raw_Data'!Z97 -> C1 | AA97: ='2.0_Raw_Data'!AA97 -> 0 | AB97: ='2.0_Raw_Data'!AB97 -> 0 | AC97: ='2.0_Raw_Data'!AC97 -> 0 | AD97: ='2.0_Raw_Data'!AD97 -> 0 | AE97: ='2.0_Raw_Data'!AE97 -> 441377.4479 | AF97: ='2.0_Raw_Data'!AF97 -> C1 | AG97: ='2.0_Raw_Data'!AG97 -> 0 | AH97: ='2.0_Raw_Data'!AH97 -> 0 | AI97: ='2.0_Raw_Data'!AI97 -> 0 | AJ97: ='2.0_Raw_Data'!AJ97 -> 0 | AK97: ='2.0_Raw_Data'!AK97 -> -223238
C99: ='2.0_Raw_Data'!C99:D99 -> MOB Risers
C101: Original Targets | Z101: Rebased Targets
C102: =C92 -> Asset Distribution_End of RIIO-GD1 without investment | I102: =I92 -> Volume Impact of Intervention | Z102: =Z92 -> Asset Distribution_End of RIIO-GD1 without investment | AF102: =AF92 -> Volume Impact of Intervention | AM102: ='2.0_Raw_Data'!AM102 -> Original Targets Intervention Volume | AR102: ='2.0_Raw_Data'!AR102 -> Rebased Targets Intervention Volume | AW102: Original Targets Refurbishment Volume | BB102: Rebased Targets Refurbishment Volume
B103: Unit | D103: H1 | E103: H2 | F103: H3 | G103: H4 | H103: H5 | J103: H1 | K103: H2 | L103: H3 | M103: H4 | N103: H5 | AA103: H1 | AB103: H2 | AC103: H3 | AD103: H4 | AE103: H5 | AG103: H1 | AH103: H2 | AI103: H3 | AJ103: H4 | AK103: H5 | AM103: ='2.0_Raw_Data'!AM103 -> (Replacement & Refurbishment) | AR103: ='2.0_Raw_Data'!AR103 -> (Replacement & Refurbishment)
B104: Number of | C104: ='2.0_Raw_Data'!C104 -> C4 | D104: ='2.0_Raw_Data'!D104 -> 0 | E104: ='2.0_Raw_Data'!E104 -> 0 | F104: ='2.0_Raw_Data'!F104 -> 0 | G104: ='2.0_Raw_Data'!G104 -> 0 | H104: ='2.0_Raw_Data'!H104 -> 0 | I104: ='2.0_Raw_Data'!I104 -> C4 | J104: ='2.0_Raw_Data'!J104 -> 0 | K104: ='2.0_Raw_Data'!K104 -> 0 | L104: ='2.0_Raw_Data'!L104 -> 0 | M104: ='2.0_Raw_Data'!M104 -> 0 | N104: ='2.0_Raw_Data'!N104 -> 0 | Z104: ='2.0_Raw_Data'!Z104 -> C4 | AA104: ='2.0_Raw_Data'!AA104 -> 961 | AB104: ='2.0_Raw_Data'!AB104 -> 33 | AC104: ='2.0_Raw_Data'!AC104 -> 1619 | AD104: ='2.0_Raw_Data'!AD104 -> 34 | AE104: ='2.0_Raw_Data'!AE104 -> 0 | AF104: ='2.0_Raw_Data'!AF104 -> C4 | AG104: ='2.0_Raw_Data'!AG104 -> 15 | AH104: ='2.0_Raw_Data'!AH104 -> 128 | AI104: ='2.0_Raw_Data'!AI104 -> -25 | AJ104: ='2.0_Raw_Data'!AJ104 -> 0 | AK104: ='2.0_Raw_Data'!AK104 -> 0 | AM104: ='2.0_Raw_Data'!AM104 -> 246 | AR104: ='2.0_Raw_Data'!AR104 -> 246 | AW104: ='2.0_Raw_Data'!AW104 -> 0 | BB104: ='2.0_Raw_Data'!BB104 -> 0
C105: ='2.0_Raw_Data'!C105 -> C3 | D105: ='2.0_Raw_Data'!D105 -> 0 | E105: ='2.0_Raw_Data'!E105 -> 0 | F105: ='2.0_Raw_Data'!F105 -> 0 | G105: ='2.0_Raw_Data'!G105 -> 0 | H105: ='2.0_Raw_Data'!H105 -> 0 | I105: ='2.0_Raw_Data'!I105 -> C3 | J105: ='2.0_Raw_Data'!J105 -> 0 | K105: ='2.0_Raw_Data'!K105 -> 0 | L105: ='2.0_Raw_Data'!L105 -> 0 | M105: ='2.0_Raw_Data'!M105 -> 0 | N105: ='2.0_Raw_Data'!N105 -> 0 | Z105: ='2.0_Raw_Data'!Z105 -> C3 | AA105: ='2.0_Raw_Data'!AA105 -> 44 | AB105: ='2.0_Raw_Data'!AB105 -> 0 | AC105: ='2.0_Raw_Data'!AC105 -> 276 | AD105: ='2.0_Raw_Data'!AD105 -> 5412 | AE105: ='2.0_Raw_Data'!AE105 -> 444 | AF105: ='2.0_Raw_Data'!AF105 -> C3 | AG105: ='2.0_Raw_Data'!AG105 -> 0 | AH105: ='2.0_Raw_Data'!AH105 -> 8 | AI105: ='2.0_Raw_Data'!AI105 -> 4 | AJ105: ='2.0_Raw_Data'!AJ105 -> -88 | AK105: ='2.0_Raw_Data'!AK105 -> -9
C106: ='2.0_Raw_Data'!C106 -> C2 | D106: ='2.0_Raw_Data'!D106 -> 0 | E106: ='2.0_Raw_Data'!E106 -> 0 | F106: ='2.0_Raw_Data'!F106 -> 85145 | G106: ='2.0_Raw_Data'!G106 -> 974 | H106: ='2.0_Raw_Data'!H106 -> 0 | I106: ='2.0_Raw_Data'!I106 -> C2 | J106: ='2.0_Raw_Data'!J106 -> 0 | K106: ='2.0_Raw_Data'!K106 -> 0 | L106: ='2.0_Raw_Data'!L106 -> 196 | M106: ='2.0_Raw_Data'!M106 -> -196 | N106: ='2.0_Raw_Data'!N106 -> 0 | Z106: ='2.0_Raw_Data'!Z106 -> C2 | AA106: ='2.0_Raw_Data'!AA106 -> 25 | AB106: ='2.0_Raw_Data'!AB106 -> 0 | AC106: ='2.0_Raw_Data'!AC106 -> 0 | AD106: ='2.0_Raw_Data'!AD106 -> 123 | AE106: ='2.0_Raw_Data'!AE106 -> 554 | AF106: ='2.0_Raw_Data'!AF106 -> C2 | AG106: ='2.0_Raw_Data'!AG106 -> 0 | AH106: ='2.0_Raw_Data'!AH106 -> 0 | AI106: ='2.0_Raw_Data'!AI106 -> 3 | AJ106: ='2.0_Raw_Data'!AJ106 -> 3 | AK106: ='2.0_Raw_Data'!AK106 -> -4
C107: ='2.0_Raw_Data'!C107 -> C1 | D107: ='2.0_Raw_Data'!D107 -> 0 | E107: ='2.0_Raw_Data'!E107 -> 0 | F107: ='2.0_Raw_Data'!F107 -> 0 | G107: ='2.0_Raw_Data'!G107 -> 0 | H107: ='2.0_Raw_Data'!H107 -> 0 | I107: ='2.0_Raw_Data'!I107 -> C1 | J107: ='2.0_Raw_Data'!J107 -> 0 | K107: ='2.0_Raw_Data'!K107 -> 0 | L107: ='2.0_Raw_Data'!L107 -> 0 | M107: ='2.0_Raw_Data'!M107 -> 0 | N107: ='2.0_Raw_Data'!N107 -> 0 | Z107: ='2.0_Raw_Data'!Z107 -> C1 | AA107: ='2.0_Raw_Data'!AA107 -> 7 | AB107: ='2.0_Raw_Data'!AB107 -> 0 | AC107: ='2.0_Raw_Data'!AC107 -> 0 | AD107: ='2.0_Raw_Data'!AD107 -> 0 | AE107: ='2.0_Raw_Data'!AE107 -> 1290 | AF107: ='2.0_Raw_Data'!AF107 -> C1 | AG107: ='2.0_Raw_Data'!AG107 -> 0 | AH107: ='2.0_Raw_Data'!AH107 -> 0 | AI107: ='2.0_Raw_Data'!AI107 -> 1 | AJ107: ='2.0_Raw_Data'!AJ107 -> 1 | AK107: ='2.0_Raw_Data'!AK107 -> -37
C109: ='2.0_Raw_Data'!C109:D109 -> NTS Offtakes
C111: Original Targets | Z111: Rebased Targets
C112: =C102 -> Asset Distribution_End of RIIO-GD1 without investment | I112: =I102 -> Volume Impact of Intervention | Z112: =Z102 -> Asset Distribution_End of RIIO-GD1 without investment | AF112: =AF102 -> Volume Impact of Intervention | AM112: ='2.0_Raw_Data'!AM112 -> Original Targets Intervention Volume | AR112: ='2.0_Raw_Data'!AR112 -> Rebased Targets Intervention Volume | AW112: Original Targets Refurbishment Volume | BB112: Rebased Targets Refurbishment Volume
B113: Unit | D113: H1 | E113: H2 | F113: H3 | G113: H4 | H113: H5 | J113: H1 | K113: H2 | L113: H3 | M113: H4 | N113: H5 | AA113: H1 | AB113: H2 | AC113: H3 | AD113: H4 | AE113: H5 | AG113: H1 | AH113: H2 | AI113: H3 | AJ113: H4 | AK113: H5 | AM113: ='2.0_Raw_Data'!AM113 -> (Replacement & Refurbishment) | AR113: ='2.0_Raw_Data'!AR113 -> (Replacement & Refurbishment)
B114: Number of | C114: ='2.0_Raw_Data'!C114 -> C4 | D114: ='2.0_Raw_Data'!D114 -> 0 | E114: ='2.0_Raw_Data'!E114 -> 0 | F114: ='2.0_Raw_Data'!F114 -> 0 | G114: ='2.0_Raw_Data'!G114 -> 0 | H114: ='2.0_Raw_Data'!H114 -> 0 | I114: ='2.0_Raw_Data'!I114 -> C4 | J114: ='2.0_Raw_Data'!J114 -> 0 | K114: ='2.0_Raw_Data'!K114 -> 0 | L114: ='2.0_Raw_Data'!L114 -> 0 | M114: ='2.0_Raw_Data'!M114 -> 0 | N114: ='2.0_Raw_Data'!N114 -> 0 | Z114: ='2.0_Raw_Data'!Z114 -> C4 | AA114: ='2.0_Raw_Data'!AA114 -> 0 | AB114: ='2.0_Raw_Data'!AB114 -> 0 | AC114: ='2.0_Raw_Data'!AC114 -> 0 | AD114: ='2.0_Raw_Data'!AD114 -> 0 | AE114: ='2.0_Raw_Data'!AE114 -> 3 | AF114: ='2.0_Raw_Data'!AF114 -> C4 | AG114: ='2.0_Raw_Data'!AG114 -> 11 | AH114: ='2.0_Raw_Data'!AH114 -> 6 | AI114: ='2.0_Raw_Data'!AI114 -> 0 | AJ114: ='2.0_Raw_Data'!AJ114 -> 1 | AK114: ='2.0_Raw_Data'!AK114 -> 0 | AM114: ='2.0_Raw_Data'!AM114 -> 81 | AR114: ='2.0_Raw_Data'!AR114 -> 81 | AW114: ='2.0_Raw_Data'!AW114 -> 0 | BB114: ='2.0_Raw_Data'!BB114 -> 0
C115: ='2.0_Raw_Data'!C115 -> C3 | D115: ='2.0_Raw_Data'!D115 -> 0 | E115: ='2.0_Raw_Data'!E115 -> 0 | F115: ='2.0_Raw_Data'!F115 -> 0 | G115: ='2.0_Raw_Data'!G115 -> 0 | H115: ='2.0_Raw_Data'!H115 -> 0 | I115: ='2.0_Raw_Data'!I115 -> C3 | J115: ='2.0_Raw_Data'!J115 -> 0 | K115: ='2.0_Raw_Data'!K115 -> 0 | L115: ='2.0_Raw_Data'!L115 -> 0 | M115: ='2.0_Raw_Data'!M115 -> 0 | N115: ='2.0_Raw_Data'!N115 -> 0 | Z115: ='2.0_Raw_Data'!Z115 -> C3 | AA115: ='2.0_Raw_Data'!AA115 -> 0 | AB115: ='2.0_Raw_Data'!AB115 -> 10 | AC115: ='2.0_Raw_Data'!AC115 -> 17 | AD115: ='2.0_Raw_Data'!AD115 -> 4 | AE115: ='2.0_Raw_Data'!AE115 -> 2 | AF115: ='2.0_Raw_Data'!AF115 -> C3 | AG115: ='2.0_Raw_Data'!AG115 -> 5 | AH115: ='2.0_Raw_Data'!AH115 -> -2 | AI115: ='2.0_Raw_Data'!AI115 -> -11 | AJ115: ='2.0_Raw_Data'!AJ115 -> -2 | AK115: ='2.0_Raw_Data'!AK115 -> -1
C116: ='2.0_Raw_Data'!C116 -> C2 | D116: ='2.0_Raw_Data'!D116 -> 0 | E116: ='2.0_Raw_Data'!E116 -> 0 | F116: ='2.0_Raw_Data'!F116 -> 0 | G116: ='2.0_Raw_Data'!G116 -> 0 | H116: ='2.0_Raw_Data'!H116 -> 0 | I116: ='2.0_Raw_Data'!I116 -> C2 | J116: ='2.0_Raw_Data'!J116 -> 0 | K116: ='2.0_Raw_Data'!K116 -> 0 | L116: ='2.0_Raw_Data'!L116 -> 0 | M116: ='2.0_Raw_Data'!M116 -> 0 | N116: ='2.0_Raw_Data'!N116 -> 0 | Z116: ='2.0_Raw_Data'!Z116 -> C2 | AA116: ='2.0_Raw_Data'!AA116 -> 0 | AB116: ='2.0_Raw_Data'!AB116 -> 1 | AC116: ='2.0_Raw_Data'!AC116 -> 1 | AD116: ='2.0_Raw_Data'!AD116 -> 1 | AE116: ='2.0_Raw_Data'!AE116 -> 9 | AF116: ='2.0_Raw_Data'!AF116 -> C2 | AG116: ='2.0_Raw_Data'!AG116 -> 2 | AH116: ='2.0_Raw_Data'!AH116 -> 2 | AI116: ='2.0_Raw_Data'!AI116 -> -1 | AJ116: ='2.0_Raw_Data'!AJ116 -> 1 | AK116: ='2.0_Raw_Data'!AK116 -> -3
C117: ='2.0_Raw_Data'!C117 -> C1 | D117: ='2.0_Raw_Data'!D117 -> 0 | E117: ='2.0_Raw_Data'!E117 -> 15.12 | F117: ='2.0_Raw_Data'!F117 -> 20.16 | G117: ='2.0_Raw_Data'!G117 -> 12.12 | H117: ='2.0_Raw_Data'!H117 -> 9.6 | I117: ='2.0_Raw_Data'!I117 -> C1 | J117: ='2.0_Raw_Data'!J117 -> 26.88 | K117: ='2.0_Raw_Data'!K117 -> 2.4 | L117: ='2.0_Raw_Data'!L117 -> -12.96 | M117: ='2.0_Raw_Data'!M117 -> -6.72 | N117: ='2.0_Raw_Data'!N117 -> -9.6 | Z117: ='2.0_Raw_Data'!Z117 -> C1 | AA117: ='2.0_Raw_Data'!AA117 -> 0 | AB117: ='2.0_Raw_Data'!AB117 -> 0 | AC117: ='2.0_Raw_Data'!AC117 -> 2 | AD117: ='2.0_Raw_Data'!AD117 -> 2 | AE117: ='2.0_Raw_Data'!AE117 -> 28 | AF117: ='2.0_Raw_Data'!AF117 -> C1 | AG117: ='2.0_Raw_Data'!AG117 -> 0 | AH117: ='2.0_Raw_Data'!AH117 -> 0 | AI117: ='2.0_Raw_Data'!AI117 -> -1 | AJ117: ='2.0_Raw_Data'!AJ117 -> 1 | AK117: ='2.0_Raw_Data'!AK117 -> -8
C119: ='2.0_Raw_Data'!C119:D119 -> PRSs
C121: Original Targets | Z121: Rebased Targets
C122: =C112 -> Asset Distribution_End of RIIO-GD1 without investment | I122: =I112 -> Volume Impact of Intervention | Z122: =Z112 -> Asset Distribution_End of RIIO-GD1 without investment | AF122: =AF112 -> Volume Impact of Intervention | AM122: ='2.0_Raw_Data'!AM122 -> Original Targets Intervention Volume | AR122: ='2.0_Raw_Data'!AR122 -> Rebased Targets Intervention Volume | AW122: Original Targets Refurbishment Volume | BB122: Rebased Targets Refurbishment Volume
B123: Unit | D123: H1 | E123: H2 | F123: H3 | G123: H4 | H123: H5 | J123: H1 | K123: H2 | L123: H3 | M123: H4 | N123: H5 | AA123: H1 | AB123: H2 | AC123: H3 | AD123: H4 | AE123: H5 | AG123: H1 | AH123: H2 | AI123: H3 | AJ123: H4 | AK123: H5 | AM123: ='2.0_Raw_Data'!AM123 -> (Replacement & Refurbishment) | AR123: ='2.0_Raw_Data'!AR123 -> (Replacement & Refurbishment)
B124: Number of | C124: ='2.0_Raw_Data'!C124 -> C4 | D124: ='2.0_Raw_Data'!D124 -> 0 | E124: ='2.0_Raw_Data'!E124 -> 0 | F124: ='2.0_Raw_Data'!F124 -> 0 | G124: ='2.0_Raw_Data'!G124 -> 0 | H124: ='2.0_Raw_Data'!H124 -> 0 | I124: ='2.0_Raw_Data'!I124 -> C4 | J124: ='2.0_Raw_Data'!J124 -> 0 | K124: ='2.0_Raw_Data'!K124 -> 0 | L124: ='2.0_Raw_Data'!L124 -> 0 | M124: ='2.0_Raw_Data'!M124 -> 0 | N124: ='2.0_Raw_Data'!N124 -> 0 | Z124: ='2.0_Raw_Data'!Z124 -> C4 | AA124: ='2.0_Raw_Data'!AA124 -> 0 | AB124: ='2.0_Raw_Data'!AB124 -> 23 | AC124: ='2.0_Raw_Data'!AC124 -> 2 | AD124: ='2.0_Raw_Data'!AD124 -> 3 | AE124: ='2.0_Raw_Data'!AE124 -> 0 | AF124: ='2.0_Raw_Data'!AF124 -> C4 | AG124: ='2.0_Raw_Data'!AG124 -> 97 | AH124: ='2.0_Raw_Data'!AH124 -> 23 | AI124: ='2.0_Raw_Data'!AI124 -> 2 | AJ124: ='2.0_Raw_Data'!AJ124 -> -1 | AK124: ='2.0_Raw_Data'!AK124 -> 0 | AM124: ='2.0_Raw_Data'!AM124 -> 520 | AR124: ='2.0_Raw_Data'!AR124 -> 520 | AW124: ='2.0_Raw_Data'!AW124 -> 0 | BB124: ='2.0_Raw_Data'!BB124 -> 0
C125: ='2.0_Raw_Data'!C125 -> C3 | D125: ='2.0_Raw_Data'!D125 -> 0 | E125: ='2.0_Raw_Data'!E125 -> 0 | F125: ='2.0_Raw_Data'!F125 -> 0 | G125: ='2.0_Raw_Data'!G125 -> 0 | H125: ='2.0_Raw_Data'!H125 -> 0 | I125: ='2.0_Raw_Data'!I125 -> C3 | J125: ='2.0_Raw_Data'!J125 -> 0 | K125: ='2.0_Raw_Data'!K125 -> 0 | L125: ='2.0_Raw_Data'!L125 -> 0 | M125: ='2.0_Raw_Data'!M125 -> 0 | N125: ='2.0_Raw_Data'!N125 -> 0 | Z125: ='2.0_Raw_Data'!Z125 -> C3 | AA125: ='2.0_Raw_Data'!AA125 -> 0 | AB125: ='2.0_Raw_Data'!AB125 -> 103 | AC125: ='2.0_Raw_Data'!AC125 -> 49 | AD125: ='2.0_Raw_Data'!AD125 -> 27 | AE125: ='2.0_Raw_Data'!AE125 -> 13 | AF125: ='2.0_Raw_Data'!AF125 -> C3 | AG125: ='2.0_Raw_Data'!AG125 -> 21 | AH125: ='2.0_Raw_Data'!AH125 -> -25 | AI125: ='2.0_Raw_Data'!AI125 -> -19 | AJ125: ='2.0_Raw_Data'!AJ125 -> -4 | AK125: ='2.0_Raw_Data'!AK125 -> -4
C126: ='2.0_Raw_Data'!C126 -> C2 | D126: ='2.0_Raw_Data'!D126 -> 0 | E126: ='2.0_Raw_Data'!E126 -> 79.56 | F126: ='2.0_Raw_Data'!F126 -> 106.08 | G126: ='2.0_Raw_Data'!G126 -> 57.32 | H126: ='2.0_Raw_Data'!H126 -> 50.04 | I126: ='2.0_Raw_Data'!I126 -> C2 | J126: ='2.0_Raw_Data'!J126 -> 141.44 | K126: ='2.0_Raw_Data'!K126 -> 9.76 | L126: ='2.0_Raw_Data'!L126 -> -75.04 | M126: ='2.0_Raw_Data'!M126 -> -30.08 | N126: ='2.0_Raw_Data'!N126 -> -46.08 | Z126: ='2.0_Raw_Data'!Z126 -> C2 | AA126: ='2.0_Raw_Data'!AA126 -> 0 | AB126: ='2.0_Raw_Data'!AB126 -> 12 | AC126: ='2.0_Raw_Data'!AC126 -> 14 | AD126: ='2.0_Raw_Data'!AD126 -> 21 | AE126: ='2.0_Raw_Data'!AE126 -> 23 | AF126: ='2.0_Raw_Data'!AF126 -> C2 | AG126: ='2.0_Raw_Data'!AG126 -> 3 | AH126: ='2.0_Raw_Data'!AH126 -> -7 | AI126: ='2.0_Raw_Data'!AI126 -> -7 | AJ126: ='2.0_Raw_Data'!AJ126 -> -12 | AK126: ='2.0_Raw_Data'!AK126 -> -7
C127: ='2.0_Raw_Data'!C127 -> C1 | D127: ='2.0_Raw_Data'!D127 -> 0 | E127: ='2.0_Raw_Data'!E127 -> 60.12 | F127: ='2.0_Raw_Data'!F127 -> 80.16 | G127: ='2.0_Raw_Data'!G127 -> 33.2 | H127: ='2.0_Raw_Data'!H127 -> 13.52 | I127: ='2.0_Raw_Data'!I127 -> C1 | J127: ='2.0_Raw_Data'!J127 -> 106.88 | K127: ='2.0_Raw_Data'!K127 -> 2.88 | L127: ='2.0_Raw_Data'!L127 -> -71.2 | M127: ='2.0_Raw_Data'!M127 -> -25.76 | N127: ='2.0_Raw_Data'!N127 -> -12.8 | Z127: ='2.0_Raw_Data'!Z127 -> C1 | AA127: ='2.0_Raw_Data'!AA127 -> 0 | AB127: ='2.0_Raw_Data'!AB127 -> 13 | AC127: ='2.0_Raw_Data'!AC127 -> 11 | AD127: ='2.0_Raw_Data'!AD127 -> 21 | AE127: ='2.0_Raw_Data'!AE127 -> 110 | AF127: ='2.0_Raw_Data'!AF127 -> C1 | AG127: ='2.0_Raw_Data'!AG127 -> 3 | AH127: ='2.0_Raw_Data'!AH127 -> -2 | AI127: ='2.0_Raw_Data'!AI127 -> -2 | AJ127: ='2.0_Raw_Data'!AJ127 -> -10 | AK127: ='2.0_Raw_Data'!AK127 -> -49
C129: ='2.0_Raw_Data'!C129:D129 -> District Governors
C131: Original Targets | Z131: Rebased Targets
C132: =C122 -> Asset Distribution_End of RIIO-GD1 without investment | I132: =I122 -> Volume Impact of Intervention | Z132: =Z122 -> Asset Distribution_End of RIIO-GD1 without investment | AF132: =AF122 -> Volume Impact of Intervention | AM132: ='2.0_Raw_Data'!AM132 -> Original Targets Intervention Volume | AR132: ='2.0_Raw_Data'!AR132 -> Rebased Targets Intervention Volume | AW132: Original Targets Refurbishment Volume | BB132: Rebased Targets Refurbishment Volume
B133: Unit | D133: H1 | E133: H2 | F133: H3 | G133: H4 | H133: H5 | J133: H1 | K133: H2 | L133: H3 | M133: H4 | N133: H5 | AA133: H1 | AB133: H2 | AC133: H3 | AD133: H4 | AE133: H5 | AG133: H1 | AH133: H2 | AI133: H3 | AJ133: H4 | AK133: H5 | AM133: ='2.0_Raw_Data'!AM133 -> (Replacement & Refurbishment) | AR133: ='2.0_Raw_Data'!AR133 -> (Replacement & Refurbishment)
B134: Number of | C134: ='2.0_Raw_Data'!C134 -> C4 | D134: ='2.0_Raw_Data'!D134 -> 26.3568 | E134: ='2.0_Raw_Data'!E134 -> 75.208 | F134: ='2.0_Raw_Data'!F134 -> 154.0768 | G134: ='2.0_Raw_Data'!G134 -> 168.9216 | H134: ='2.0_Raw_Data'!H134 -> 122.4368 | I134: ='2.0_Raw_Data'!I134 -> C4 | J134: ='2.0_Raw_Data'!J134 -> 37.6432 | K134: ='2.0_Raw_Data'!K134 -> 33.792 | L134: ='2.0_Raw_Data'!L134 -> 63.9232 | M134: ='2.0_Raw_Data'!M134 -> -32.9216 | N134: ='2.0_Raw_Data'!N134 -> -95.4368 | Z134: ='2.0_Raw_Data'!Z134 -> C4 | AA134: ='2.0_Raw_Data'!AA134 -> 0 | AB134: ='2.0_Raw_Data'!AB134 -> 0 | AC134: ='2.0_Raw_Data'!AC134 -> 0 | AD134: ='2.0_Raw_Data'!AD134 -> 0 | AE134: ='2.0_Raw_Data'!AE134 -> 0 | AF134: ='2.0_Raw_Data'!AF134 -> C4 | AG134: ='2.0_Raw_Data'!AG134 -> 0 | AH134: ='2.0_Raw_Data'!AH134 -> 0 | AI134: ='2.0_Raw_Data'!AI134 -> 0 | AJ134: ='2.0_Raw_Data'!AJ134 -> 0 | AK134: ='2.0_Raw_Data'!AK134 -> 0 | AM134: ='2.0_Raw_Data'!AM134 -> 837 | AR134: ='2.0_Raw_Data'!AR134 -> 837 | AW134: ='2.0_Raw_Data'!AW134 -> 632 | BB134: ='2.0_Raw_Data'!BB134 -> 623
C135: ='2.0_Raw_Data'!C135 -> C3 | D135: ='2.0_Raw_Data'!D135 -> 92.48 | E135: ='2.0_Raw_Data'!E135 -> 263.2144 | F135: ='2.0_Raw_Data'!F135 -> 539.1024 | G135: ='2.0_Raw_Data'!G135 -> 591.6368 | H135: ='2.0_Raw_Data'!H135 -> 430.5664 | I135: ='2.0_Raw_Data'!I135 -> C3 | J135: ='2.0_Raw_Data'!J135 -> 132.52 | K135: ='2.0_Raw_Data'!K135 -> 117.7856 | L135: ='2.0_Raw_Data'!L135 -> 223.8976 | M135: ='2.0_Raw_Data'!M135 -> -114.6368 | N135: ='2.0_Raw_Data'!N135 -> -334.5664 | Z135: ='2.0_Raw_Data'!Z135 -> C3 | AA135: ='2.0_Raw_Data'!AA135 -> 566 | AB135: ='2.0_Raw_Data'!AB135 -> 1011 | AC135: ='2.0_Raw_Data'!AC135 -> 225 | AD135: ='2.0_Raw_Data'!AD135 -> 33 | AE135: ='2.0_Raw_Data'!AE135 -> 133 | AF135: ='2.0_Raw_Data'!AF135 -> C3 | AG135: ='2.0_Raw_Data'!AG135 -> 423 | AH135: ='2.0_Raw_Data'!AH135 -> -227 | AI135: ='2.0_Raw_Data'!AI135 -> -56 | AJ135: ='2.0_Raw_Data'!AJ135 -> 27 | AK135: ='2.0_Raw_Data'!AK135 -> -28
C136: ='2.0_Raw_Data'!C136 -> C2 | D136: ='2.0_Raw_Data'!D136 -> 12.9472 | E136: ='2.0_Raw_Data'!E136 -> 37.1552 | F136: ='2.0_Raw_Data'!F136 -> 76.7696 | G136: ='2.0_Raw_Data'!G136 -> 84.4096 | H136: ='2.0_Raw_Data'!H136 -> 61.7184 | I136: ='2.0_Raw_Data'!I136 -> C2 | J136: ='2.0_Raw_Data'!J136 -> 19.0528 | K136: ='2.0_Raw_Data'!K136 -> 16.8448 | L136: ='2.0_Raw_Data'!L136 -> 32.2304 | M136: ='2.0_Raw_Data'!M136 -> -16.4096 | N136: ='2.0_Raw_Data'!N136 -> -47.7184 | Z136: ='2.0_Raw_Data'!Z136 -> C2 | AA136: ='2.0_Raw_Data'!AA136 -> 10 | AB136: ='2.0_Raw_Data'!AB136 -> 189 | AC136: ='2.0_Raw_Data'!AC136 -> 167 | AD136: ='2.0_Raw_Data'!AD136 -> 78 | AE136: ='2.0_Raw_Data'!AE136 -> 213 | AF136: ='2.0_Raw_Data'!AF136 -> C2 | AG136: ='2.0_Raw_Data'!AG136 -> 4 | AH136: ='2.0_Raw_Data'!AH136 -> -26 | AI136: ='2.0_Raw_Data'!AI136 -> -52 | AJ136: ='2.0_Raw_Data'!AJ136 -> -9 | AK136: ='2.0_Raw_Data'!AK136 -> -53
C137: ='2.0_Raw_Data'!C137 -> C1 | D137: ='2.0_Raw_Data'!D137 -> 0 | E137: ='2.0_Raw_Data'!E137 -> 0 | F137: ='2.0_Raw_Data'!F137 -> 0 | G137: ='2.0_Raw_Data'!G137 -> 0 | H137: ='2.0_Raw_Data'!H137 -> 0 | I137: ='2.0_Raw_Data'!I137 -> C1 | J137: ='2.0_Raw_Data'!J137 -> 0 | K137: ='2.0_Raw_Data'!K137 -> 0 | L137: ='2.0_Raw_Data'!L137 -> 0 | M137: ='2.0_Raw_Data'!M137 -> 0 | N137: ='2.0_Raw_Data'!N137 -> 0 | Z137: ='2.0_Raw_Data'!Z137 -> C1 | AA137: ='2.0_Raw_Data'!AA137 -> 0 | AB137: ='2.0_Raw_Data'!AB137 -> 0 | AC137: ='2.0_Raw_Data'!AC137 -> 1 | AD137: ='2.0_Raw_Data'!AD137 -> 2 | AE137: ='2.0_Raw_Data'!AE137 -> 102 | AF137: ='2.0_Raw_Data'!AF137 -> C1 | AG137: ='2.0_Raw_Data'!AG137 -> 0 | AH137: ='2.0_Raw_Data'!AH137 -> 0 | AI137: ='2.0_Raw_Data'!AI137 -> 0 | AJ137: ='2.0_Raw_Data'!AJ137 -> 2 | AK137: ='2.0_Raw_Data'!AK137 -> -5
C139: ='2.0_Raw_Data'!C139:D139 -> I&C Governors
C141: Original Targets | Z141: Rebased Targets
C142: =C132 -> Asset Distribution_End of RIIO-GD1 without investment | I142: =I132 -> Volume Impact of Intervention | Z142: =Z132 -> Asset Distribution_End of RIIO-GD1 without investment | AF142: =AF132 -> Volume Impact of Intervention | AM142: ='2.0_Raw_Data'!AM142 -> Original Targets Intervention Volume | AR142: ='2.0_Raw_Data'!AR142 -> Rebased Targets Intervention Volume | AW142: Original Targets Refurbishment Volume | BB142: Rebased Targets Refurbishment Volume
B143: Unit | D143: H1 | E143: H2 | F143: H3 | G143: H4 | H143: H5 | J143: H1 | K143: H2 | L143: H3 | M143: H4 | N143: H5 | AA143: H1 | AB143: H2 | AC143: H3 | AD143: H4 | AE143: H5 | AG143: H1 | AH143: H2 | AI143: H3 | AJ143: H4 | AK143: H5 | AM143: ='2.0_Raw_Data'!AM143 -> (Replacement & Refurbishment) | AR143: ='2.0_Raw_Data'!AR143 -> (Replacement & Refurbishment)
B144: Number of | C144: ='2.0_Raw_Data'!C144 -> C4 | D144: ='2.0_Raw_Data'!D144 -> 22.1952 | E144: ='2.0_Raw_Data'!E144 -> 64.8176 | F144: ='2.0_Raw_Data'!F144 -> 134.1152 | G144: ='2.0_Raw_Data'!G144 -> 147.4416 | H144: ='2.0_Raw_Data'!H144 -> 107.4304 | I144: ='2.0_Raw_Data'!I144 -> C4 | J144: ='2.0_Raw_Data'!J144 -> 25.8048 | K144: ='2.0_Raw_Data'!K144 -> 30.1824 | L144: ='2.0_Raw_Data'!L144 -> 55.8848 | M144: ='2.0_Raw_Data'!M144 -> -28.4416 | N144: ='2.0_Raw_Data'!N144 -> -83.4304 | Z144: ='2.0_Raw_Data'!Z144 -> C4 | AA144: ='2.0_Raw_Data'!AA144 -> 0 | AB144: ='2.0_Raw_Data'!AB144 -> 0 | AC144: ='2.0_Raw_Data'!AC144 -> 0 | AD144: ='2.0_Raw_Data'!AD144 -> 0 | AE144: ='2.0_Raw_Data'!AE144 -> 0 | AF144: ='2.0_Raw_Data'!AF144 -> C4 | AG144: ='2.0_Raw_Data'!AG144 -> 26 | AH144: ='2.0_Raw_Data'!AH144 -> 4 | AI144: ='2.0_Raw_Data'!AI144 -> 1 | AJ144: ='2.0_Raw_Data'!AJ144 -> 0 | AK144: ='2.0_Raw_Data'!AK144 -> 0 | AM144: ='2.0_Raw_Data'!AM144 -> 490 | AR144: ='2.0_Raw_Data'!AR144 -> 490 | AW144: ='2.0_Raw_Data'!AW144 -> 401 | BB144: ='2.0_Raw_Data'!BB144 -> 397
C145: ='2.0_Raw_Data'!C145 -> C3 | D145: ='2.0_Raw_Data'!D145 -> 77.2208 | E145: ='2.0_Raw_Data'!E145 -> 226.6576 | F145: ='2.0_Raw_Data'!F145 -> 469.9808 | G145: ='2.0_Raw_Data'!G145 -> 516.3008 | H145: ='2.0_Raw_Data'!H145 -> 374.84 | I145: ='2.0_Raw_Data'!I145 -> C3 | J145: ='2.0_Raw_Data'!J145 -> 89.7792 | K145: ='2.0_Raw_Data'!K145 -> 106.3424 | L145: ='2.0_Raw_Data'!L145 -> 196.0192 | M145: ='2.0_Raw_Data'!M145 -> -100.3008 | N145: ='2.0_Raw_Data'!N145 -> -291.84 | Z145: ='2.0_Raw_Data'!Z145 -> C3 | AA145: ='2.0_Raw_Data'!AA145 -> 109 | AB145: ='2.0_Raw_Data'!AB145 -> 772 | AC145: ='2.0_Raw_Data'!AC145 -> 5 | AD145: ='2.0_Raw_Data'!AD145 -> 3 | AE145: ='2.0_Raw_Data'!AE145 -> 154 | AF145: ='2.0_Raw_Data'!AF145 -> C3 | AG145: ='2.0_Raw_Data'!AG145 -> 188 | AH145: ='2.0_Raw_Data'!AH145 -> -198 | AI145: ='2.0_Raw_Data'!AI145 -> 2 | AJ145: ='2.0_Raw_Data'!AJ145 -> 3 | AK145: ='2.0_Raw_Data'!AK145 -> -16
C146: ='2.0_Raw_Data'!C146 -> C2 | D146: ='2.0_Raw_Data'!D146 -> 11.0976 | E146: ='2.0_Raw_Data'!E146 -> 32.64 | F146: ='2.0_Raw_Data'!F146 -> 67.2752 | G146: ='2.0_Raw_Data'!G146 -> 74.0032 | H146: ='2.0_Raw_Data'!H146 -> 53.984 | I146: ='2.0_Raw_Data'!I146 -> C2 | J146: ='2.0_Raw_Data'!J146 -> 12.9024 | K146: ='2.0_Raw_Data'!K146 -> 15.36 | L146: ='2.0_Raw_Data'!L146 -> 27.7248 | M146: ='2.0_Raw_Data'!M146 -> -14.0032 | N146: ='2.0_Raw_Data'!N146 -> -41.984 | Z146: ='2.0_Raw_Data'!Z146 -> C2 | AA146: ='2.0_Raw_Data'!AA146 -> 4 | AB146: ='2.0_Raw_Data'!AB146 -> 557 | AC146: ='2.0_Raw_Data'!AC146 -> 4 | AD146: ='2.0_Raw_Data'!AD146 -> 0 | AE146: ='2.0_Raw_Data'!AE146 -> 28 | AF146: ='2.0_Raw_Data'!AF146 -> C2 | AG146: ='2.0_Raw_Data'!AG146 -> 157 | AH146: ='2.0_Raw_Data'!AH146 -> -156 | AI146: ='2.0_Raw_Data'!AI146 -> -1 | AJ146: ='2.0_Raw_Data'!AJ146 -> 0 | AK146: ='2.0_Raw_Data'!AK146 -> -7
C147: ='2.0_Raw_Data'!C147 -> C1 | D147: ='2.0_Raw_Data'!D147 -> 0 | E147: ='2.0_Raw_Data'!E147 -> 0 | F147: ='2.0_Raw_Data'!F147 -> 0 | G147: ='2.0_Raw_Data'!G147 -> 0 | H147: ='2.0_Raw_Data'!H147 -> 0 | I147: ='2.0_Raw_Data'!I147 -> C1 | J147: ='2.0_Raw_Data'!J147 -> 0 | K147: ='2.0_Raw_Data'!K147 -> 0 | L147: ='2.0_Raw_Data'!L147 -> 0 | M147: ='2.0_Raw_Data'!M147 -> 0 | N147: ='2.0_Raw_Data'!N147 -> 0 | Z147: ='2.0_Raw_Data'!Z147 -> C1 | AA147: ='2.0_Raw_Data'!AA147 -> 0 | AB147: ='2.0_Raw_Data'!AB147 -> 4 | AC147: ='2.0_Raw_Data'!AC147 -> 0 | AD147: ='2.0_Raw_Data'!AD147 -> 2 | AE147: ='2.0_Raw_Data'!AE147 -> 36 | AF147: ='2.0_Raw_Data'!AF147 -> C1 | AG147: ='2.0_Raw_Data'!AG147 -> 3 | AH147: ='2.0_Raw_Data'!AH147 -> 0 | AI147: ='2.0_Raw_Data'!AI147 -> 0 | AJ147: ='2.0_Raw_Data'!AJ147 -> 0 | AK147: ='2.0_Raw_Data'!AK147 -> -6
C149: ='2.0_Raw_Data'!C149:D149 -> Service Governors
C151: Original Targets | Z151: Rebased Targets
C152: =C142 -> Asset Distribution_End of RIIO-GD1 without investment | I152: =I142 -> Volume Impact of Intervention | Z152: =Z142 -> Asset Distribution_End of RIIO-GD1 without investment | AF152: =AF142 -> Volume Impact of Intervention | AM152: ='2.0_Raw_Data'!AM152 -> Original Targets Intervention Volume | AR152: ='2.0_Raw_Data'!AR152 -> Rebased Targets Intervention Volume | AW152: Original Targets Refurbishment Volume | BB152: Rebased Targets Refurbishment Volume
B153: Unit | D153: H1 | E153: H2 | F153: H3 | G153: H4 | H153: H5 | J153: H1 | K153: H2 | L153: H3 | M153: H4 | N153: H5 | AA153: H1 | AB153: H2 | AC153: H3 | AD153: H4 | AE153: H5 | AG153: H1 | AH153: H2 | AI153: H3 | AJ153: H4 | AK153: H5 | AM153: ='2.0_Raw_Data'!AM153 -> (Replacement & Refurbishment) | AR153: ='2.0_Raw_Data'!AR153 -> (Replacement & Refurbishment)
B154: Number of | C154: ='2.0_Raw_Data'!C154 -> C4 | D154: ='2.0_Raw_Data'!D154 -> 109 | E154: ='2.0_Raw_Data'!E154 -> 1196 | F154: ='2.0_Raw_Data'!F154 -> 199 | G154: ='2.0_Raw_Data'!G154 -> 199 | H154: ='2.0_Raw_Data'!H154 -> 291 | I154: ='2.0_Raw_Data'!I154 -> C4 | J154: ='2.0_Raw_Data'!J154 -> 291 | K154: ='2.0_Raw_Data'!K154 -> 0 | L154: ='2.0_Raw_Data'!L154 -> 0 | M154: ='2.0_Raw_Data'!M154 -> 0 | N154: ='2.0_Raw_Data'!N154 -> -291 | Z154: ='2.0_Raw_Data'!Z154 -> C4 | AA154: ='2.0_Raw_Data'!AA154 -> 0 | AB154: ='2.0_Raw_Data'!AB154 -> 0 | AC154: ='2.0_Raw_Data'!AC154 -> 0 | AD154: ='2.0_Raw_Data'!AD154 -> 0 | AE154: ='2.0_Raw_Data'!AE154 -> 0 | AF154: ='2.0_Raw_Data'!AF154 -> C4 | AG154: ='2.0_Raw_Data'!AG154 -> 252 | AH154: ='2.0_Raw_Data'!AH154 -> 0 | AI154: ='2.0_Raw_Data'!AI154 -> 0 | AJ154: ='2.0_Raw_Data'!AJ154 -> 0 | AK154: ='2.0_Raw_Data'!AK154 -> 0 | AM154: ='2.0_Raw_Data'!AM154 -> 252 | AR154: ='2.0_Raw_Data'!AR154 -> 252 | AW154: ='2.0_Raw_Data'!AW154 -> 0 | BB154: ='2.0_Raw_Data'!BB154 -> 0
C155: ='2.0_Raw_Data'!C155 -> C3 | D155: ='2.0_Raw_Data'!D155 -> 0 | E155: ='2.0_Raw_Data'!E155 -> 0 | F155: ='2.0_Raw_Data'!F155 -> 0 | G155: ='2.0_Raw_Data'!G155 -> 0 | H155: ='2.0_Raw_Data'!H155 -> 0 | I155: ='2.0_Raw_Data'!I155 -> C3 | J155: ='2.0_Raw_Data'!J155 -> 0 | K155: ='2.0_Raw_Data'!K155 -> 0 | L155: ='2.0_Raw_Data'!L155 -> 0 | M155: ='2.0_Raw_Data'!M155 -> 0 | N155: ='2.0_Raw_Data'!N155 -> 0 | Z155: ='2.0_Raw_Data'!Z155 -> C3 | AA155: ='2.0_Raw_Data'!AA155 -> 5 | AB155: ='2.0_Raw_Data'!AB155 -> 0 | AC155: ='2.0_Raw_Data'!AC155 -> 1 | AD155: ='2.0_Raw_Data'!AD155 -> 0 | AE155: ='2.0_Raw_Data'!AE155 -> 0 | AF155: ='2.0_Raw_Data'!AF155 -> C3 | AG155: ='2.0_Raw_Data'!AG155 -> -1 | AH155: ='2.0_Raw_Data'!AH155 -> 0 | AI155: ='2.0_Raw_Data'!AI155 -> 0 | AJ155: ='2.0_Raw_Data'!AJ155 -> 0 | AK155: ='2.0_Raw_Data'!AK155 -> 0
C156: ='2.0_Raw_Data'!C156 -> C2 | D156: ='2.0_Raw_Data'!D156 -> 0 | E156: ='2.0_Raw_Data'!E156 -> 0 | F156: ='2.0_Raw_Data'!F156 -> 0 | G156: ='2.0_Raw_Data'!G156 -> 0 | H156: ='2.0_Raw_Data'!H156 -> 0 | I156: ='2.0_Raw_Data'!I156 -> C2 | J156: ='2.0_Raw_Data'!J156 -> 0 | K156: ='2.0_Raw_Data'!K156 -> 0 | L156: ='2.0_Raw_Data'!L156 -> 0 | M156: ='2.0_Raw_Data'!M156 -> 0 | N156: ='2.0_Raw_Data'!N156 -> 0 | Z156: ='2.0_Raw_Data'!Z156 -> C2 | AA156: ='2.0_Raw_Data'!AA156 -> 0 | AB156: ='2.0_Raw_Data'!AB156 -> 0 | AC156: ='2.0_Raw_Data'!AC156 -> 1870 | AD156: ='2.0_Raw_Data'!AD156 -> 1 | AE156: ='2.0_Raw_Data'!AE156 -> 0 | AF156: ='2.0_Raw_Data'!AF156 -> C2 | AG156: ='2.0_Raw_Data'!AG156 -> 0 | AH156: ='2.0_Raw_Data'!AH156 -> 0 | AI156: ='2.0_Raw_Data'!AI156 -> -188 | AJ156: ='2.0_Raw_Data'!AJ156 -> 0 | AK156: ='2.0_Raw_Data'!AK156 -> 0
C157: ='2.0_Raw_Data'!C157 -> C1 | D157: ='2.0_Raw_Data'!D157 -> 0 | E157: ='2.0_Raw_Data'!E157 -> 0 | F157: ='2.0_Raw_Data'!F157 -> 0 | G157: ='2.0_Raw_Data'!G157 -> 0 | H157: ='2.0_Raw_Data'!H157 -> 0 | I157: ='2.0_Raw_Data'!I157 -> C1 | J157: ='2.0_Raw_Data'!J157 -> 0 | K157: ='2.0_Raw_Data'!K157 -> 0 | L157: ='2.0_Raw_Data'!L157 -> 0 | M157: ='2.0_Raw_Data'!M157 -> 0 | N157: ='2.0_Raw_Data'!N157 -> 0 | Z157: ='2.0_Raw_Data'!Z157 -> C1 | AA157: ='2.0_Raw_Data'!AA157 -> 0 | AB157: ='2.0_Raw_Data'!AB157 -> 0 | AC157: ='2.0_Raw_Data'!AC157 -> 0 | AD157: ='2.0_Raw_Data'!AD157 -> 0 | AE157: ='2.0_Raw_Data'!AE157 -> 628 | AF157: ='2.0_Raw_Data'!AF157 -> C1 | AG157: ='2.0_Raw_Data'!AG157 -> 0 | AH157: ='2.0_Raw_Data'!AH157 -> 0 | AI157: ='2.0_Raw_Data'!AI157 -> 0 | AJ157: ='2.0_Raw_Data'!AJ157 -> 0 | AK157: ='2.0_Raw_Data'!AK157 -> -63

Sheet 4.0_Check_1
D2: ='Cover Sheet'!B3 -> Ofgem Quantitative Analysis Model and Result: Cadent NW
D4: Check 1: The volume of intervention
C9: ='3.0_Data_Copy'!C9:D9 -> Block Valves
C12: Intervention Volume Check | D12: Original Interventions Volume | H12: Rebased Interventions Volume | L12: Rebased/Original
D14: ='3.0_Data_Copy'!AM14 -> 34 | H14: ='3.0_Data_Copy'!AR14 -> 0 | L14: =IFERROR(H14/D14, "-") -> 0
C19: ='3.0_Data_Copy'!C19:D19 -> Sleeves (Nitrogen & other)
C22: Intervention Volume Check | D22: Original Interventions Volume | H22: Rebased Interventions Volume | L22: Rebased/Original
D24: ='3.0_Data_Copy'!AM24 -> 190 | H24: ='3.0_Data_Copy'!AR24 -> 190 | L24: =IFERROR(H24/D24, "-") -> 1
C29: ='3.0_Data_Copy'!C29:D29 -> LTS Pipelines - Piggable
C32: Intervention Volume Check | D32: Original Interventions Volume | H32: Rebased Interventions Volume | L32: Rebased/Original
D34: ='3.0_Data_Copy'!AM34 -> 65 | H34: ='3.0_Data_Copy'!AR34 -> 65 | L34: =IFERROR(H34/D34, "-") -> 1
C39: ='3.0_Data_Copy'!C39:D39 -> LTS Pipelines – Non Piggable | D39: LV Switchgear (at s/s) | E39: LV Switchgear (at s/s) | F39: LV Switchgear (at s/s)
C42: Intervention Volume Check | D42: Original Interventions Volume | H42: Rebased Interventions Volume | L42: Rebased/Original
D44: ='3.0_Data_Copy'!AM44 -> 136 | H44: ='3.0_Data_Copy'!AR44 -> 136 | L44: =IFERROR(H44/D44, "-") -> 1
C49: ='3.0_Data_Copy'!C49:D49 -> Distribution Mains (Iron) | D49: LV UGB and LV Pillar OD (not at s/s) | E49: LV UGB and LV Pillar OD (not at s/s) | F49: LV UGB and LV Pillar OD (not at s/s)
C52: Intervention Volume Check | D52: Original Interventions Volume | H52: Rebased Interventions Volume | L52: Rebased/Original
D54: ='3.0_Data_Copy'!AM54 -> 3526.394218 | H54: ='3.0_Data_Copy'!AR54 -> 3526.395 | L54: =IFERROR(H54/D54, "-") -> 1.000000222
C59: ='3.0_Data_Copy'!C59:D59 -> Distribution Mains (PE)
C62: Intervention Volume Check | D62: Original Interventions Volume | H62: Rebased Interventions Volume | L62: Rebased/Original
D64: ='3.0_Data_Copy'!AM64 -> 0 | H64: ='3.0_Data_Copy'!AR64 -> 0 | L64: =IFERROR(H64/D64, "-") -> -
C69: ='3.0_Data_Copy'!C69:D69 -> Distribution Mains (Steel)
C72: Intervention Volume Check | D72: Original Interventions Volume | H72: Rebased Interventions Volume | L72: Rebased/Original
D74: ='3.0_Data_Copy'!AM74 -> 320.89 | H74: ='3.0_Data_Copy'!AR74 -> 320.889 | L74: =IFERROR(H74/D74, "-") -> 0.9999968837
C79: ='3.0_Data_Copy'!C79:D79 -> Distribution Mains (other)
C82: Intervention Volume Check | D82: Original Interventions Volume | H82: Rebased Interventions Volume | L82: Rebased/Original
D84: ='3.0_Data_Copy'!AM84 -> 64.6 | H84: ='3.0_Data_Copy'!AR84 -> 66.032 | L84: =IFERROR(H84/D84, "-") -> 1.022167183
C89: ='3.0_Data_Copy'!C89:D89 -> Services
C92: Intervention Volume Check | D92: Original Interventions Volume | H92: Rebased Interventions Volume | L92: Rebased/Original
D94: ='3.0_Data_Copy'!AM94 -> 229785 | H94: ='3.0_Data_Copy'!AR94 -> 229785 | L94: =IFERROR(H94/D94, "-") -> 1
C99: ='3.0_Data_Copy'!C99:D99 -> MOB Risers
C102: Intervention Volume Check | D102: Original Interventions Volume | H102: Rebased Interventions Volume | L102: Rebased/Original
D104: ='3.0_Data_Copy'!AM104 -> 246 | H104: ='3.0_Data_Copy'!AR104 -> 246 | L104: =IFERROR(H104/D104, "-") -> 1
C109: ='3.0_Data_Copy'!C109:D109 -> NTS Offtakes
C112: Intervention Volume Check | D112: Original Interventions Volume | H112: Rebased Interventions Volume | L112: Rebased/Original
D114: ='3.0_Data_Copy'!AM114 -> 81 | H114: ='3.0_Data_Copy'!AR114 -> 81 | L114: =IFERROR(H114/D114, "-") -> 1
C119: ='3.0_Data_Copy'!C119:D119 -> PRSs
C122: Intervention Volume Check | D122: Original Interventions Volume | H122: Rebased Interventions Volume | L122: Rebased/Original
D124: ='3.0_Data_Copy'!AM124 -> 520 | H124: ='3.0_Data_Copy'!AR124 -> 520 | L124: =IFERROR(H124/D124, "-") -> 1
C129: ='3.0_Data_Copy'!C129:D129 -> District Governors
C132: Intervention Volume Check | D132: Original Interventions Volume | H132: Rebased Interventions Volume | L132: Rebased/Original
D134: ='3.0_Data_Copy'!AM134 -> 837 | H134: ='3.0_Data_Copy'!AR134 -> 837 | L134: =IFERROR(H134/D134, "-") -> 1
C139: ='3.0_Data_Copy'!C139:D139 -> I&C Governors
C142: Intervention Volume Check | D142: Original Interventions Volume | H142: Rebased Interventions Volume | L142: Rebased/Original
D144: ='3.0_Data_Copy'!AM144 -> 490 | H144: ='3.0_Data_Copy'!AR144 -> 490 | L144: =IFERROR(H144/D144, "-") -> 1
C149: ='3.0_Data_Copy'!C149:D149 -> Service Governors
C152: Intervention Volume Check | D152: Original Interventions Volume | H152: Rebased Interventions Volume | L152: Rebased/Original
D154: ='3.0_Data_Copy'!AM154 -> 252 | H154: ='3.0_Data_Copy'!AR154 -> 252 | L154: =IFERROR(H154/D154, "-") -> 1

Sheet 5.0_Check_2
D2: ='Cover Sheet'!B3 -> Ofgem Quantitative Analysis Model and Result: Cadent NW
D4: Check 2: The intervention split between replacement and refurbishment
C9: ='3.0_Data_Copy'!C9:D9 -> Block Valves
C12: Replace & Refurb Split Check | D12: Original [%, Refurb / (Replace + Refurb)] | H12: Rebased [%, Refurb / (Replace + Refurb)] | L12: Outcome
D14: =IF('3.0_Data_Copy'!AM14=0, "No Intervention", '3.0_Data_Copy'!AW14/'3.0_Data_Copy'!AM14) -> 1 | H14: =IF('3.0_Data_Copy'!AR14=0, "No Intervention", '3.0_Data_Copy'!BB14/'3.0_Data_Copy'!AR14) -> No Intervention | L14: =IFERROR(IF(ABS(D14-H14)<=5%,"Same/Similar Split","Different Split"),"-") -> -
C22: ='3.0_Data_Copy'!C19:D19 -> Sleeves (Nitrogen & other)
C25: Replace & Refurb Split Check | D25: Original [%, Refurb / (Replace + Refurb)] | H25: Rebased [%, Refurb / (Replace + Refurb)] | L25: Outcome
D27: =IF('3.0_Data_Copy'!AM24=0, "No Intervention", '3.0_Data_Copy'!AW24/'3.0_Data_Copy'!AM24) -> 1 | H27: =IF('3.0_Data_Copy'!AR24=0, "No Intervention", '3.0_Data_Copy'!BB24/'3.0_Data_Copy'!AR24) -> 1 | L27: =IFERROR(IF(ABS(D27-H27)<=5%,"Same/Similar Split","Different Split"),"-") -> Same/Similar Split
C35: ='3.0_Data_Copy'!C29:D29 -> LTS Pipelines - Piggable
C38: Replace & Refurb Split Check | D38: Original [%, Refurb / (Replace + Refurb)] | H38: Rebased [%, Refurb / (Replace + Refurb)] | L38: Outcome
D40: =IF('3.0_Data_Copy'!AM34=0, "No Intervention", '3.0_Data_Copy'!AW34/'3.0_Data_Copy'!AM34) -> 1 | H40: =IF('3.0_Data_Copy'!AR34=0, "No Intervention", '3.0_Data_Copy'!BB34/'3.0_Data_Copy'!AR34) -> 1 | L40: =IFERROR(IF(ABS(D40-H40)<=5%,"Same/Similar Split","Different Split"),"-") -> Same/Similar Split
C48: ='3.0_Data_Copy'!C39:D39 -> LTS Pipelines – Non Piggable | D48: LV Switchgear (at s/s) | E48: LV Switchgear (at s/s) | F48: LV Switchgear (at s/s)
C51: Replace & Refurb Split Check | D51: Original [%, Refurb / (Replace + Refurb)] | H51: Rebased [%, Refurb / (Replace + Refurb)] | L51: Outcome
D53: =IF('3.0_Data_Copy'!AM44=0, "No Intervention", '3.0_Data_Copy'!AW44/'3.0_Data_Copy'!AM44) -> 1 | H53: =IF('3.0_Data_Copy'!AR44=0, "No Intervention", '3.0_Data_Copy'!BB44/'3.0_Data_Copy'!AR44) -> 1 | L53: =IFERROR(IF(ABS(D53-H53)<=5%,"Same/Similar Split","Different Split"),"-") -> Same/Similar Split
C61: ='3.0_Data_Copy'!C49:D49 -> Distribution Mains (Iron) | D61: LV UGB and LV Pillar OD (not at s/s) | E61: LV UGB and LV Pillar OD (not at s/s) | F61: LV UGB and LV Pillar OD (not at s/s)
C64: Replace & Refurb Split Check | D64: Original [%, Refurb / (Replace + Refurb)] | H64: Rebased [%, Refurb / (Replace + Refurb)] | L64: Outcome
D66: =IF('3.0_Data_Copy'!AM54=0, "No Intervention", '3.0_Data_Copy'!AW54/'3.0_Data_Copy'!AM54) -> 0 | H66: =IF('3.0_Data_Copy'!AR54=0, "No Intervention", '3.0_Data_Copy'!BB54/'3.0_Data_Copy'!AR54) -> 0 | L66: =IFERROR(IF(ABS(D66-H66)<=5%,"Same/Similar Split","Different Split"),"-") -> Same/Similar Split
C74: ='3.0_Data_Copy'!C59:D59 -> Distribution Mains (PE)
C77: Replace & Refurb Split Check | D77: Original [%, Refurb / (Replace + Refurb)] | H77: Rebased [%, Refurb / (Replace + Refurb)] | L77: Outcome
D79: =IF('3.0_Data_Copy'!AM64=0, "No Intervention", '3.0_Data_Copy'!AW64/'3.0_Data_Copy'!AM64) -> No Intervention | H79: =IF('3.0_Data_Copy'!AR64=0, "No Intervention", '3.0_Data_Copy'!BB64/'3.0_Data_Copy'!AR64) -> No Intervention | L79: =IFERROR(IF(ABS(D79-H79)<=5%,"Same/Similar Split","Different Split"),"-") -> -
C87: ='3.0_Data_Copy'!C69:D69 -> Distribution Mains (Steel)
C90: Replace & Refurb Split Check | D90: Original [%, Refurb / (Replace + Refurb)] | H90: Rebased [%, Refurb / (Replace + Refurb)] | L90: Outcome
D92: =IF('3.0_Data_Copy'!AM74=0, "No Intervention", '3.0_Data_Copy'!AW74/'3.0_Data_Copy'!AM74) -> 0 | H92: =IF('3.0_Data_Copy'!AR74=0, "No Intervention", '3.0_Data_Copy'!BB74/'3.0_Data_Copy'!AR74) -> 0 | L92: =IFERROR(IF(ABS(D92-H92)<=5%,"Same/Similar Split","Different Split"),"-") -> Same/Similar Split
C100: ='3.0_Data_Copy'!C79:D79 -> Distribution Mains (other)
C103: Replace & Refurb Split Check | D103: Original [%, Refurb / (Replace + Refurb)] | H103: Rebased [%, Refurb / (Replace + Refurb)] | L103: Outcome
D105: =IF('3.0_Data_Copy'!AM84=0, "No Intervention", '3.0_Data_Copy'!AW84/'3.0_Data_Copy'!AM84) -> 0 | H105: =IF('3.0_Data_Copy'!AR84=0, "No Intervention", '3.0_Data_Copy'!BB84/'3.0_Data_Copy'!AR84) -> 0 | L105: =IFERROR(IF(ABS(D105-H105)<=5%,"Same/Similar Split","Different Split"),"-") -> Same/Similar Split
C113: ='3.0_Data_Copy'!C89:D89 -> Services
C116: Replace & Refurb Split Check | D116: Original [%, Refurb / (Replace + Refurb)] | H116: Rebased [%, Refurb / (Replace + Refurb)] | L116: Outcome
D118: =IF('3.0_Data_Copy'!AM94=0, "No Intervention", '3.0_Data_Copy'!AW94/'3.0_Data_Copy'!AM94) -> 0 | H118: =IF('3.0_Data_Copy'!AR94=0, "No Intervention", '3.0_Data_Copy'!BB94/'3.0_Data_Copy'!AR94) -> 0 | L118: =IFERROR(IF(ABS(D118-H118)<=5%,"Same/Similar Split","Different Split"),"-") -> Same/Similar Split
C126: ='3.0_Data_Copy'!C99:D99 -> MOB Risers
C129: Replace & Refurb Split Check | D129: Original [%, Refurb / (Replace + Refurb)] | H129: Rebased [%, Refurb / (Replace + Refurb)] | L129: Outcome
D131: =IF('3.0_Data_Copy'!AM104=0, "No Intervention", '3.0_Data_Copy'!AW104/'3.0_Data_Copy'!AM104) -> 0 | H131: =IF('3.0_Data_Copy'!AR104=0, "No Intervention", '3.0_Data_Copy'!BB104/'3.0_Data_Copy'!AR104) -> 0 | L131: =IFERROR(IF(ABS(D131-H131)<=5%,"Same/Similar Split","Different Split"),"-") -> Same/Similar Split
C139: ='3.0_Data_Copy'!C109:D109 -> NTS Offtakes
C142: Replace & Refurb Split Check | D142: Original [%, Refurb / (Replace + Refurb)] | H142: Rebased [%, Refurb / (Replace + Refurb)] | L142: Outcome
D144: =IF('3.0_Data_Copy'!AM114=0, "No Intervention", '3.0_Data_Copy'!AW114/'3.0_Data_Copy'!AM114) -> 0 | H144: =IF('3.0_Data_Copy'!AR114=0, "No Intervention", '3.0_Data_Copy'!BB114/'3.0_Data_Copy'!AR114) -> 0 | L144: =IFERROR(IF(ABS(D144-H144)<=5%,"Same/Similar Split","Different Split"),"-") -> Same/Similar Split
C152: ='3.0_Data_Copy'!C119:D119 -> PRSs
C155: Replace & Refurb Split Check | D155: Original [%, Refurb / (Replace + Refurb)] | H155: Rebased [%, Refurb / (Replace + Refurb)] | L155: Outcome
D157: =IF('3.0_Data_Copy'!AM124=0, "No Intervention", '3.0_Data_Copy'!AW124/'3.0_Data_Copy'!AM124) -> 0 | H157: =IF('3.0_Data_Copy'!AR124=0, "No Intervention", '3.0_Data_Copy'!BB124/'3.0_Data_Copy'!AR124) -> 0 | L157: =IFERROR(IF(ABS(D157-H157)<=5%,"Same/Similar Split","Different Split"),"-") -> Same/Similar Split
C165: ='3.0_Data_Copy'!C129:D129 -> District Governors
C168: Replace & Refurb Split Check | D168: Original [%, Refurb / (Replace + Refurb)] | H168: Rebased [%, Refurb / (Replace + Refurb)] | L168: Outcome
D170: =IF('3.0_Data_Copy'!AM134=0, "No Intervention", '3.0_Data_Copy'!AW134/'3.0_Data_Copy'!AM134) -> 0.7550776583 | H170: =IF('3.0_Data_Copy'!AR134=0, "No Intervention", '3.0_Data_Copy'!BB134/'3.0_Data_Copy'!AR134) -> 0.7443249701 | L170: =IFERROR(IF(ABS(D170-H170)<=5%,"Same/Similar Split","Different Split"),"-") -> Same/Similar Split
C178: ='3.0_Data_Copy'!C139:D139 -> I&C Governors
C181: Replace & Refurb Split Check | D181: Original [%, Refurb / (Replace + Refurb)] | H181: Rebased [%, Refurb / (Replace + Refurb)] | L181: Outcome
D183: =IF('3.0_Data_Copy'!AM144=0, "No Intervention", '3.0_Data_Copy'!AW144/'3.0_Data_Copy'!AM144) -> 0.8183673469 | H183: =IF('3.0_Data_Copy'!AR144=0, "No Intervention", '3.0_Data_Copy'!BB144/'3.0_Data_Copy'!AR144) -> 0.8102040816 | L183: =IFERROR(IF(ABS(D183-H183)<=5%,"Same/Similar Split","Different Split"),"-") -> Same/Similar Split
C191: ='3.0_Data_Copy'!C149:D149 -> Service Governors
C194: Replace & Refurb Split Check | D194: Original [%, Refurb / (Replace + Refurb)] | H194: Rebased [%, Refurb / (Replace + Refurb)] | L194: Outcome
D196: =IF('3.0_Data_Copy'!AM154=0, "No Intervention", '3.0_Data_Copy'!AW154/'3.0_Data_Copy'!AM154) -> 0 | H196: =IF('3.0_Data_Copy'!AR154=0, "No Intervention", '3.0_Data_Copy'!BB154/'3.0_Data_Copy'!AR154) -> 0 | L196: =IFERROR(IF(ABS(D196-H196)<=5%,"Same/Similar Split","Different Split"),"-") -> Same/Similar Split

Sheet 6.0_Check_3
D2: ='Cover Sheet'!B3 -> Ofgem Quantitative Analysis Model and Result: Cadent NW
D4: Check 3: The potential to outperform (PTO)
C7: Potential To Outperform (PTO, criticality perspective)= {[(Vol_C# + Impact_C#)/Vol_C#] x [(Impact_Total - Impact_C#)/Impact_Total]}^0.5 x Vol_C#
C8: Potential To Outperform (PTO, asset health perspective)={[(Vol_HI# + Impact_HI#)/Vol_HI#] x [(Impact_Total - Impact_HI#)/Impact_Total]}^0.5 x Vol_HI#
C11: ='3.0_Data_Copy'!C9:D9 -> Block Valves
C13: Original Targets | X13: Rebased Targets
C14: Asset Population | J14: Intervention Impact Volumes | X14: Asset Population | AE14: =J14 -> Intervention Impact Volumes
D15: HI1 | E15: HI2 | F15: HI3 | G15: HI4 | H15: HI5 | I15: Total | K15: HI1 | L15: HI2 | M15: HI3 | N15: HI4 | O15: HI5 | P15: Total | Y15: HI1 | Z15: HI2 | AA15: HI3 | AB15: HI4 | AC15: HI5 | AD15: Total | AF15: HI1 | AG15: HI2 | AH15: HI3 | AI15: HI4 | AJ15: HI5 | AK15: Total
C16: C4 | D16: =OFFSET('3.0_Data_Copy'!$C$9,MATCH('6.0_Check_3'!$C11,'3.0_Data_Copy'!$C$9:$C$160,0)+4,1,4,5) -> 0 | E16: 0 | F16: 0 | G16: 0 | H16: 0 | I16: =SUM(D16:H16) -> 0 | J16: C4 | K16: =IF(OFFSET('3.0_Data_Copy'!$C$9,MATCH('6.0_Check_3'!$C11,'3.0_Data_Copy'!$C$9:$C$160,0)+4,7,4,5)<0,OFFSET('3.0_Data_Copy'!$C$9,MATCH('6.0_Check_3'!$C11,'3.0_Data_Copy'!$C$9:$C$160,0)+4,7,4,5),"-") -> - | L16: - | M16: - | N16: - | O16: - | P16: =SUM(K16:O16) -> 0 | X16: C4 | Y16: =OFFSET('3.0_Data_Copy'!$C$9,MATCH('6.0_Check_3'!$C11,'3.0_Data_Copy'!$C$9:$C$160,0)+4,24,4,5) -> 18 | Z16: 16 | AA16: 16 | AB16: 16 | AC16: 52 | AD16: =SUM(Y16:AC16) -> 118 | AE16: C4 | AF16: =IF(OFFSET('3.0_Data_Copy'!$C$9,MATCH('6.0_Check_3'!$C11,'3.0_Data_Copy'!$C$9:$C$160,0)+4,30,4,5)<0,OFFSET('3.0_Data_Copy'!$C$9,MATCH('6.0_Check_3'!$C11,'3.0_Data_Copy'!$C$9:$C$160,0)+4,30,4,5),"-") -> - | AG16: - | AH16: - | AI16: - | AJ16: - | AK16: =SUM(AF16:AJ16) -> 0
C17: C3 | D17: 0 | E17: 0 | F17: 0 | G17: 0 | H17: 0 | I17: =SUM(D17:H17) -> 0 | J17: C3 | K17: - | L17: - | M17: - | N17: - | O17: - | P17: =SUM(K17:O17) -> 0 | X17: C3 | Y17: 14 | Z17: 26 | AA17: 14 | AB17: 10 | AC17: 8 | AD17: =SUM(Y17:AC17) -> 72 | AE17: C3 | AF17: - | AG17: - | AH17: - | AI17: - | AJ17: - | AK17: =SUM(AF17:AJ17) -> 0
C18: C2 | D18: 0 | E18: 0 | F18: 24 | G18: 4 | H18: 0 | I18: =SUM(D18:H18) -> 28 | J18: C2 | K18: - | L18: - | M18: - | N18: -4 | O18: - | P18: =SUM(K18:O18) -> -4 | X18: C2 | Y18: 2 | Z18: 26 | AA18: 4 | AB18: 0 | AC18: 6 | AD18: =SUM(Y18:AC18) -> 38 | AE18: C2 | AF18: - | AG18: - | AH18: - | AI18: - | AJ18: - | AK18: =SUM(AF18:AJ18) -> 0
C19: C1 | D19: 0 | E19: 0 | F19: 0 | G19: 0 | H19: 0 | I19: =SUM(D19:H19) -> 0 | J19: C1 | K19: - | L19: - | M19: - | N19: - | O19: - | P19: =SUM(K19:O19) -> 0 | X19: C1 | Y19: 20 | Z19: 14 | AA19: 2 | AB19: 0 | AC19: 0 | AD19: =SUM(Y19:AC19) -> 36 | AE19: C1 | AF19: - | AG19: - | AH19: - | AI19: - | AJ19: - | AK19: =SUM(AF19:AJ19) -> 0
C20: Total | D20: =SUM(D16:D19) -> 0 | E20: 0 | F20: 24 | G20: 4 | H20: 0 | I20: 28 | J20: Total | K20: =SUM(K16:K19) -> 0 | L20: 0 | M20: 0 | N20: -4 | O20: 0 | P20: -4 | X20: Total | Y20: =SUM(Y16:Y19) -> 54 | Z20: 82 | AA20: 36 | AB20: 26 | AC20: 66 | AD20: 264 | AE20: Total | AF20: =SUM(AF16:AF19) -> 0 | AG20: 0 | AH20: 0 | AI20: 0 | AJ20: 0 | AK20: 0
C22: Check 3a | D22: C1 | E22: Original | F22: Rebased | G22: C1+C2 | H22: Original | I22: Rebased | J22: C1+C2+C3 | K22: Original | L22: Rebased | M22: Check 3a | N22: C1 | O22: Original | P22: Rebased | Q22: C1+C2 | R22: Original | S22: Rebased | T22: C1+C2+C3 | U22: Original | V22: Rebased
C23: Criticality | D23: Part 1 of PTO | E23: =IF(SUM(G19,H19)<>0, ROUND((SUM(H19,G19,N19,O19)/(G19+H19)),4), "-") -> - | F23: =IF(SUM(AB19+AC19)<>0, ROUND((SUM(AB19,AC19,AI19,AJ19)/SUM(AB19,AC19)),4), "-") -> - | G23: =D23 -> Part 1 of PTO | H23: =IF(SUM(G18,H18,G19,H19)<>0, ROUND((SUM(G18,H18,G19,H19,N18,O18,N19,O19)/SUM(G18,H18,G19,H19)),4), "-") -> 0 | I23: =IF(SUM(AC18,AB18,AB19,AC19)<>0, ROUND((SUM(AC18,AB18,AB19,AC19,AI18,AJ18,AI19,AJ19)/SUM(AC18,AB18,AB19,AC19)),4), "-") -> 1 | J23: =G23 -> Part 1 of PTO | K23: =IF(SUM(G17,H17,G18,H18,G19,H19)<>0, ROUND((SUM(G17,H17,G18,H18,G19,H19,N17,O17,N18,O18,N19,O19)/SUM(G17,H17,G18,H18,G19,H19)),4), "-") -> 0 | L23: =IF(SUM(AB17,AC17,AB18,AC18,AB19,AC19)<>0, ROUND((SUM(AB17,AC17,AB18,AC18,AB19,AC19,AI17,AJ17,AI18,AJ18,AI19,AJ19)/SUM(AB17,AC17,AB18,AC18,AB19,AC19)),4), "-") -> 1 | M23: PTO's | N23: =N49 -> Unweighted intervention volume_Individual asset category | O23: ='3.0_Data_Copy'!AM14 -> 34 | P23: ='3.0_Data_Copy'!AR14 -> 0 | R23: =O23 -> 34 | S23: =P23 -> 0 | U23: =O23 -> 34 | V23: =P23 -> 0
C24: perspective | D24: Part 2 of PTO | E24: =IF(P20<>0, ROUND(((P20-SUM(N19,O19))/P20),4), "-") -> 1 | F24: =IF(AK20<>0, ROUND(((AK20-SUM(AJ19,AI19))/AK20),4), "-") -> - | G24: Part 2 of PTO | H24: =IF(P20<>0, ROUND(((P20-SUM(N18,O18,N19,O19))/P20),4), "-") -> 0 | I24: =IF(AK20<>0, ROUND(((AK20-SUM(AI18,AJ18,AI19,AJ19))/AK20),4), "-") -> - | J24: Part 2 of PTO | K24: =IF(P20<>0, ROUND((P20-SUM(N17:O19))/P20,4), "-") -> 0 | L24: =IF(AK20<>0, ROUND((AK20-SUM(AI17:AJ19))/AK20,4), "-") -> - | M24: % Interpretation | N24: =N50 -> Weighted intervention volume_Individual asset category | O24: =O23*F27 -> 0.0004536764973 | P24: =P23*F27 -> 0 | R24: =O24 -> 0.0004536764973 | S24: =P24 -> 0 | U24: =O24 -> 0.0004536764973 | V24: =P24 -> 0
D25: Part 3 of PTO | E25: =SUM(G19,H19) -> 0 | F25: =SUM(AB19,AC19) -> 0 | G25: Part 3 of PTO | H25: =SUM(G18,H18,G19,H19) -> 4 | I25: =SUM(AC18,AB18,AB19,AC19) -> 6 | J25: Part 3 of PTO | K25: =SUM(G17,H17,G18,H18,G19,H19) -> 4 | L25: =SUM(AB17,AC17,AB18,AC18,AB19,AC19) -> 24 | N25: =N51 -> Weighted original intervention volume_Network Level | O25: =O$407 -> 345.3073915 | R25: =O25 -> 345.3073915 | U25: =R25 -> 345.3073915
D26: PTO | E26: =IF(AND((G19+H19)<>0, P20<>0), SQRT(ABS(E23*E24))*E25, "Check C1+C2") -> Check C1+C2 | F26: =IF(AND((AB19+AC19)<>0, AK20<>0), SQRT(ABS(F23*F24))*F25, "Check C1+C2") -> Check C1+C2 | G26: PTO | H26: =IF(AND((G18+H18+G19+H19)<>0, P20<>0), SQRT(ABS(H23*H24))*H25, "Check C1+C2+C3") -> 0 | I26: =IF(AND((AC18+AB18+AB19+AC19)<>0, AK20<>0), SQRT(ABS(I23*I24))*I25, "Check C1+C2+C3") -> Check C1+C2+C3 | J26: PTO | K26: =IF(AND((G17+H17+G18+H18+G19+H19)<>0, P20<>0), SQRT(ABS(K23*K24))*K25, "No Asset or Intervention to Check") -> 0 | L26: =IF(AND((AB17+AC17+AB18+AC18+AB19+AC19)<>0, AK20<>0), SQRT(ABS(L23*L24))*L25, "No Asset or Intervention to Check") -> No Asset or Intervention to Check | N26: Weighted, Original PTO - Rebased PTO | O26: =IFERROR(E28-F28, "Check C1+C2") -> Check C1+C2 | R26: =IFERROR(H28-I28, "Check C1+C2+C3") -> Check C1+C2+C3 | U26: =IFERROR(K28-L28, "No Intervention to Check") -> No Intervention to Check
D27: Network weighting factor | E27: =F27 -> 1.334342639e-05 | F27: 1.334342639e-05 | G27: Network weighting factor | H27: =I27 -> 1.334342639e-05 | I27: =F27 -> 1.334342639e-05 | J27: Network weighting factor | K27: =L27 -> 1.334342639e-05 | L27: =F27 -> 1.334342639e-05 | N27: %, (Original PTO - Rebased PTO) / (network original intervention vol) | O27: =IF(O25=0, "No Intervention", IFERROR(O26/O25, O26)) -> Check C1+C2 | R27: =IF(R25=0, "No Intervention", IFERROR(R26/R25, R26)) -> Check C1+C2+C3 | U27: =IF(U25=0, "No Intervention", IFERROR(U26/U25, U26)) -> No Intervention to Check
D28: Weighted Network PTO | E28: =IFERROR(E26*E27,"Check C1+C2") -> Check C1+C2 | F28: =IFERROR(F26*F27,"Check C1+C2") -> Check C1+C2 | G28: Weighted Network PTO | H28: =IFERROR(H26*H27,"Check C1+C2") -> 0 | I28: =IFERROR(I26*I27,"Check C1+C2+C3") -> Check C1+C2+C3 | J28: Weighted Network PTO | K28: =IFERROR(K26*K27,"Check C1+C2") -> 0 | L28: =IFERROR(L26*L27,"No Asset or Intervention to Check") -> No Asset or Intervention to Check
C29: Check 3b | D29: HI5 | E29: Original | F29: Rebased | G29: HI5+HI4 | H29: Original | I29: Rebased | J29: HI5+HI4+HI3 | K29: Original | L29: Rebased | M29: Check 3b | N29: HI5 | O29: Original | P29: Rebased | Q29: HI5+HI4 | R29: Original | S29: Rebased | T29: HI5+HI4+HI3 | U29: Original | V29: Rebased
C30: Health | D30: =D23 -> Part 1 of PTO | E30: =IF(AND(H20<>0, P20<>0),ROUND((SUM(H20,O20)/H20),4), "-") -> - | F30: =IF(AC20<>0, ROUND((SUM(AC20,AJ20)/AC20),4), "-") -> 1 | G30: =D30 -> Part 1 of PTO | H30: =IF(SUM(H20,G20)<>0, ROUND((SUM(H20,G20,O20,N20)/SUM(H20,G20)),4), "-") -> 0 | I30: =IF(SUM(AC20,AB20)<>0, ROUND((SUM(AC20,AB20,AJ20,AI20)/SUM(AC20,AB20)), 4), "-") -> 1 | J30: =G30 -> Part 1 of PTO | K30: =IF(SUM(H20,G20,F20)<>0, ROUND((SUM(H20,G20,F20,O20,N20,M20)/SUM(H20,G20,F20)), 4), "-") -> 0.8571 | L30: =IF(SUM(AC20,AA20,AB20)<>0, ROUND((SUM(AC20,AA20,AB20,AJ20,AI20,AH20)/SUM(AC20,AA20,AB20)), 4), "-") -> 1 | M30: =M23 -> PTO's | N30: =N23 -> Unweighted intervention volume_Individual asset category | O30: =O23 -> 34 | P30: =P23 -> 0 | R30: =R23 -> 34 | S30: =S23 -> 0 | U30: =U23 -> 34 | V30: =V23 -> 0
C31: perspective | D31: =D24 -> Part 2 of PTO | E31: =IF(P20<>0, ROUND((P20-SUM(O20))/P20,4), "-") -> 1 | F31: =IF(AK20<>0, ROUND((AK20-SUM(AJ20))/AK20,4), "-") -> - | G31: =D31 -> Part 2 of PTO | H31: =IF(P20<>0, ROUND((P20-SUM(O20,N20))/P20,4), "-") -> 0 | I31: =IF(AK20<>0, ROUND((AK20-SUM(AJ20,AI20))/AK20,4), "-") -> - | J31: =G31 -> Part 2 of PTO | K31: =IF(P20<>0, ROUND((P20-SUM(O20,N20,M20))/P20,4), "-") -> 0 | L31: =IF(AK20<>0, ROUND((AK20-SUM(AJ20,AI20,AH20))/AK20,4), "-") -> - | M31: =M24 -> % Interpretation | N31: =N24 -> Weighted intervention volume_Individual asset category | O31: =O30*F34 -> 0.0004536764973 | P31: =P30*F34 -> 0 | R31: =O31 -> 0.0004536764973 | S31: =P31 -> 0 | U31: =O31 -> 0.0004536764973 | V31: =P31 -> 0
D32: =D25 -> Part 3 of PTO | E32: =H20 -> 0 | F32: =AC20 -> 66 | G32: =D32 -> Part 3 of PTO | H32: =SUM(H20,G20) -> 4 | I32: =SUM(AC20,AB20) -> 92 | J32: =G32 -> Part 3 of PTO | K32: =SUM(H20,G20,F20) -> 28 | L32: =SUM(AC20,AA20,AB20) -> 128 | N32: Weighted original intervention volume_Network Level | O32: =O$407 -> 345.3073915 | R32: =O32 -> 345.3073915 | U32: =R32 -> 345.3073915
D33: PTO | E33: =IF(AND(H20<>0, P20<>0), SQRT(ABS(E30*E31))*E32, "Check HI5+HI4") -> Check HI5+HI4 | F33: =IF(AND(AC20<>0, AK20<>0), SQRT(ABS(F30*F31))*F32, "Check HI5+HI4") -> Check HI5+HI4 | G33: =D33 -> PTO | H33: =IF(AND((H20+G20)<>0, P20<>0), SQRT(ABS(H30*H31))*H32, "Check HI5+HI4+HI3") -> 0 | I33: =IF(AND((AC20+AB20)<>0, AK20<>0), SQRT(ABS(I30*I31))*I32, "Check HI5+HI4+HI3") -> Check HI5+HI4+HI3 | J33: =G33 -> PTO | K33: =IF(AND((H20+G20+F20)<>0, P20<>0), SQRT(ABS(K30*K31))*K32, "No Asset or Intervention to Check") -> 0 | L33: =IF(AND((AC20+AA20+AB20)<>0, AK20<>0), SQRT(ABS(L30*L31))*L32, "No Asset or Intervention to Check") -> No Asset or Intervention to Check | N33: Weighted, Original PTO - Rebased PTO | O33: =IFERROR(E35-F35, "Check HI5+HI4") -> Check HI5+HI4 | R33: =IFERROR(H35-I35, "Check HI5+HI4+HI3") -> Check HI5+HI4+HI3 | U33: =IFERROR(K35-L35, "No Intervention to Check") -> No Intervention to Check
D34: =D27 -> Network weighting factor | E34: =F34 -> 1.334342639e-05 | F34: =F27 -> 1.334342639e-05 | G34: =G27 -> Network weighting factor | H34: =I34 -> 1.334342639e-05 | I34: =F34 -> 1.334342639e-05 | J34: =J27 -> Network weighting factor | K34: =L34 -> 1.334342639e-05 | L34: =F34 -> 1.334342639e-05 | N34: %, (Original PTO - Rebased PTO) / (network original intervention vol) | O34: =IF(O32=0, "No Intervention", IFERROR(O33/O32, O33)) -> Check HI5+HI4 | R34: =IF(R32=0, "No Intervention", IFERROR(R33/R32, R33)) -> Check HI5+HI4+HI3 | U34: =IF(U32=0, "No Intervention", IFERROR(U33/U32, U33)) -> No Intervention to Check
D35: =D28 -> Weighted Network PTO | E35: =IFERROR(E33*E34,"Check HI5+HI4") -> Check HI5+HI4 | F35: =IFERROR(F33*F34,"Check HI5+HI4") -> Check HI5+HI4 | G35: =D35 -> Weighted Network PTO | H35: =IFERROR(H33*H34,"Check HI5+HI4") -> 0 | I35: =IFERROR(I33*I34,"Check HI5+HI4+HI3") -> Check HI5+HI4+HI3 | J35: =G35 -> Weighted Network PTO | K35: =IFERROR(K33*K34,"Check C1+C2") -> 0 | L35: =IFERROR(L33*L34,"No Asset or Intervention to Check") -> No Asset or Intervention to Check
C37: ='3.0_Data_Copy'!C19:D19 -> Sleeves (Nitrogen & other)
C39: Original Targets | X39: Rebased Targets
C40: Asset Population | J40: Intervention Volumes | X40: Asset Population | AE40: Intervention Volumes
D41: HI1 | E41: HI2 | F41: HI3 | G41: HI4 | H41: HI5 | I41: Total | K41: HI1 | L41: HI2 | M41: HI3 | N41: HI4 | O41: HI5 | P41: Total | Y41: HI1 | Z41: HI2 | AA41: HI3 | AB41: HI4 | AC41: HI5 | AD41: Total | AF41: HI1 | AG41: HI2 | AH41: HI3 | AI41: HI4 | AJ41: HI5 | AK41: Total
C42: C4 | D42: =OFFSET('3.0_Data_Copy'!$C$9,MATCH('6.0_Check_3'!$C37,'3.0_Data_Copy'!$C$9:$C$160,0)+4,1,4,5) -> 0 | E42: 0 | F42: 0 | G42: 0 | H42: 0 | I42: =SUM(D42:H42) -> 0 | J42: C4 | K42: =IF(OFFSET('3.0_Data_Copy'!$C$9,MATCH('6.0_Check_3'!$C37,'3.0_Data_Copy'!$C$9:$C$160,0)+4,7,4,5)<0,OFFSET('3.0_Data_Copy'!$C$9,MATCH('6.0_Check_3'!$C37,'3.0_Data_Copy'!$C$9:$C$160,0)+4,7,4,5),"-") -> - | L42: - | M42: - | N42: - | O42: - | P42: =SUM(K42:O42) -> 0 | X42: C4 | Y42: =OFFSET('3.0_Data_Copy'!$C$9,MATCH('6.0_Check_3'!$C37,'3.0_Data_Copy'!$C$9:$C$160,0)+4,24,4,5) -> 118 | Z42: 58 | AA42: 8 | AB42: 4 | AC42: 0 | AD42: =SUM(Y42:AC42) -> 188 | AE42: C4 | AF42: =IF(OFFSET('3.0_Data_Copy'!$C$9,MATCH('6.0_Check_3'!$C37,'3.0_Data_Copy'!$C$9:$C$160,0)+4,30,4,5)<0,OFFSET('3.0_Data_Copy'!$C$9,MATCH('6.0_Check_3'!$C37,'3.0_Data_Copy'!$C$9:$C$160,0)+4,30,4,5),"-") -> - | AG42: -29 | AH42: -4 | AI42: -3 | AJ42: - | AK42: =SUM(AF42:AJ42) -> -36
C43: C3 | D43: 0 | E43: 0 | F43: 0 | G43: 0 | H43: 0 | I43: =SUM(D43:H43) -> 0 | J43: C3 | K43: - | L43: - | M43: - | N43: - | O43: - | P43: =SUM(K43:O43) -> 0 | X43: C3 | Y43: 20 | Z43: 25 | AA43: 21 | AB43: 15 | AC43: 27 | AD43: =SUM(Y43:AC43) -> 108 | AE43: C3 | AF43: - | AG43: -12 | AH43: -13 | AI43: -10 | AJ43: -15 | AK43: =SUM(AF43:AJ43) -> -50
C44: C2 | D44: 0 | E44: 35 | F44: 120 | G44: 88 | H44: 122 | I44: =SUM(D44:H44) -> 365 | J44: C2 | K44: - | L44: - | M44: - | N44: -64 | O44: -122 | P44: =SUM(K44:O44) -> -186 | X44: C2 | Y44: 0 | Z44: 9 | AA44: 5 | AB44: 7 | AC44: 9 | AD44: =SUM(Y44:AC44) -> 30 | AE44: C2 | AF44: - | AG44: -5 | AH44: -3 | AI44: -2 | AJ44: -5 | AK44: =SUM(AF44:AJ44) -> -15
C45: C1 | D45: 0 | E45: 0 | F45: 0 | G45: 0 | H45: 0 | I45: =SUM(D45:H45) -> 0 | J45: C1 | K45: - | L45: - | M45: - | N45: - | O45: - | P45: =SUM(K45:O45) -> 0 | X45: C1 | Y45: 4 | Z45: 19 | AA45: 16 | AB45: 3 | AC45: 23 | AD45: =SUM(Y45:AC45) -> 65 | AE45: C1 | AF45: - | AG45: -7 | AH45: -4 | AI45: -2 | AJ45: -10 | AK45: =SUM(AF45:AJ45) -> -23
C46: Total | D46: =SUM(D42:D45) -> 0 | E46: 35 | F46: 120 | G46: 88 | H46: 122 | I46: 365 | J46: Total | K46: =SUM(K42:K45) -> 0 | L46: 0 | M46: 0 | N46: -64 | O46: -122 | P46: -186 | X46: Total | Y46: =SUM(Y42:Y45) -> 142 | Z46: 111 | AA46: 50 | AB46: 29 | AC46: 59 | AD46: 391 | AE46: Total | AF46: =SUM(AF42:AF45) -> 0 | AG46: -53 | AH46: -24 | AI46: -17 | AJ46: -30 | AK46: -124
C48: Check 3a | D48: C1 | E48: Original | F48: Rebased | G48: C1+C2 | H48: Original | I48: Rebased | J48: C1+C2+C3 | K48: Original | L48: Rebased | M48: Check 3a | N48: C1 | O48: Original | P48: Rebased | Q48: C1+C2 | R48: Original | S48: Rebased | T48: C1+C2+C3 | U48: Original | V48: Rebased
C49: Criticality | D49: =D23 -> Part 1 of PTO | E49: =IF(SUM(G45,H45)<>0, ROUND((SUM(H45,G45,N45,O45)/(G45+H45)),4), "-") -> - | F49: =IF(SUM(AB45+AC45)<>0, ROUND((SUM(AB45,AC45,AI45,AJ45)/SUM(AB45,AC45)),4), "-") -> 0.5385 | G49: =D49 -> Part 1 of PTO | H49: =IF(SUM(G44,H44,G45,H45)<>0, ROUND((SUM(G44,H44,G45,H45,N44,O44,N45,O45)/SUM(G44,H44,G45,H45)),4), "-") -> 0.1143 | I49: =IF(SUM(AC44,AB44,AB45,AC45)<>0, ROUND((SUM(AC44,AB44,AB45,AC45,AI44,AJ44,AI45,AJ45)/SUM(AC44,AB44,AB45,AC45)),4), "-") -> 0.5476 | J49: =G49 -> Part 1 of PTO | K49: =IF(SUM(G43,H43,G44,H44,G45,H45)<>0, ROUND((SUM(G43,H43,G44,H44,G45,H45,N43,O43,N44,O44,N45,O45)/SUM(G43,H43,G44,H44,G45,H45)),4), "-") -> 0.1143 | L49: =IF(SUM(AB43,AC43,AB44,AC44,AB45,AC45)<>0, ROUND((SUM(AB43,AC43,AB44,AC44,AB45,AC45,AI43,AJ43,AI44,AJ44,AI45,AJ45)/SUM(AB43,AC43,AB44,AC44,AB45,AC45)),4), "-") -> 0.4762 | M49: PTO's | N49: =N75 -> Unweighted intervention volume_Individual asset category | O49: ='3.0_Data_Copy'!AM24 -> 190 | P49: ='3.0_Data_Copy'!AR24 -> 190 | R49: =O49 -> 190 | S49: =P49 -> 190 | U49: =O49 -> 190 | V49: =P49 -> 190
C50: perspective | D50: =D24 -> Part 2 of PTO | E50: =IF(P46<>0, ROUND(((P46-SUM(N45,O45))/P46),4), "-") -> 1 | F50: =IF(AK46<>0, ROUND(((AK46-SUM(AJ45,AI45))/AK46),4), "-") -> 0.9032 | G50: Part 2 of PTO | H50: =IF(P46<>0, ROUND(((P46-SUM(N44,O44,N45,O45))/P46),4), "-") -> 0 | I50: =IF(AK46<>0, ROUND(((AK46-SUM(AI44,AJ44,AI45,AJ45))/AK46),4), "-") -> 0.8468 | J50: Part 2 of PTO | K50: =IF(P46<>0, ROUND((P46-SUM(N43:O45))/P46,4), "-") -> 0 | L50: =IF(AK46<>0, ROUND((AK46-SUM(AI43:AJ45))/AK46,4), "-") -> 0.6452 | M50: % Interpretation | N50: =N76 -> Weighted intervention volume_Individual asset category | O50: =O49*F53 -> 0.01413520121 | P50: =P49*F53 -> 0.01413520121 | R50: =O50 -> 0.01413520121 | S50: =P50 -> 0.01413520121 | U50: =O50 -> 0.01413520121 | V50: =P50 -> 0.01413520121
D51: =D25 -> Part 3 of PTO | E51: =SUM(G45,H45) -> 0 | F51: =SUM(AB45,AC45) -> 26 | G51: Part 3 of PTO | H51: =SUM(G44,H44,G45,H45) -> 210 | I51: =SUM(AC44,AB44,AB45,AC45) -> 42 | J51: Part 3 of PTO | K51: =SUM(G43,H43,G44,H44,G45,H45) -> 210 | L51: =SUM(AB43,AC43,AB44,AC44,AB45,AC45) -> 84 | N51: =N77 -> Weighted original intervention volume_Network Level | O51: =O$407 -> 345.3073915 | R51: =O51 -> 345.3073915 | U51: =R51 -> 345.3073915
D52: PTO | E52: =IF(AND((G45+H45)<>0, P46<>0), SQRT(ABS(E49*E50))*E51, "Check C1+C2") -> Check C1+C2 | F52: =IF(AND((AB45+AC45)<>0, AK46<>0), SQRT(ABS(F49*F50))*F51, "Check C1+C2") -> 18.13252005 | G52: PTO | H52: =IF(AND((G44+H44+G45+H45)<>0, P46<>0), SQRT(ABS(H49*H50))*H51, "Check C1+C2+C3") -> 0 | I52: =IF(AND((AC44+AB44+AB45+AC45)<>0, AK46<>0), SQRT(ABS(I49*I50))*I51, "Check C1+C2+C3") -> 28.60035572 | J52: PTO | K52: =IF(AND((G43+H43+G44+H44+G45+H45)<>0, P46<>0), SQRT(ABS(K49*K50))*K51, "No Asset or Intervention to Check") -> 0 | L52: =IF(AND((AB43+AC43+AB44+AC44+AB45+AC45)<>0, AK46<>0), SQRT(ABS(L49*L50))*L51, "No Asset or Intervention to Check") -> 46.56087797 | N52: Weighted, Original PTO - Rebased PTO | O52: =IFERROR(E54-F54, "Check C1+C2") -> Check C1+C2 | R52: =IFERROR(H54-I54, "Check C1+C2+C3") -> -0.002127746226 | U52: =IFERROR(K54-L54, "No Intervention to Check") -> -0.003463933572
D53: Network weighting factor | E53: =F53 -> 7.439579586e-05 | F53: 7.439579586e-05 | G53: Network weighting factor | H53: =I53 -> 7.439579586e-05 | I53: =F53 -> 7.439579586e-05 | J53: Network weighting factor | K53: =L53 -> 7.439579586e-05 | L53: =F53 -> 7.439579586e-05 | N53: %, (Original PTO - Rebased PTO) / (network original intervention vol) | O53: =IF(O51=0, "No Intervention", IFERROR(O52/O51, O52)) -> Check C1+C2 | R53: =IF(R51=0, "No Intervention", IFERROR(R52/R51, R52)) -> -6.161890183e-06 | U53: =IF(U51=0, "No Intervention", IFERROR(U52/U51, U52)) -> -1.003144925e-05
D54: Weighted Network PTO | E54: =IFERROR(E52*E53,"Check C1+C2") -> Check C1+C2 | F54: =IFERROR(F52*F53,"Check C1+C2") -> 0.00134898326 | G54: Weighted Network PTO | H54: =IFERROR(H52*H53,"Check C1+C2") -> 0 | I54: =IFERROR(I52*I53,"Check C1+C2+C3") -> 0.002127746226 | J54: Weighted Network PTO | K54: =IFERROR(K52*K53,"Check C1+C2") -> 0 | L54: =IFERROR(L52*L53,"No Asset or Intervention to Check") -> 0.003463933572
C55: Check 3b | D55: HI5 | E55: Original | F55: Rebased | G55: HI5+HI4 | H55: Original | I55: Rebased | J55: HI5+HI4+HI3 | K55: Original | L55: Rebased | M55: Check 3b | N55: HI5 | O55: Original | P55: Rebased | Q55: HI5+HI4 | R55: Original | S55: Rebased | T55: HI5+HI4+HI3 | U55: Original | V55: Rebased
C56: Health | D56: =D30 -> Part 1 of PTO | E56: =IF(AND(H46<>0, P46<>0),ROUND((SUM(H46,O46)/H46),4), "-") -> 0 | F56: =IF(AC46<>0, ROUND((SUM(AC46,AJ46)/AC46),4), "-") -> 0.4915 | G56: =D56 -> Part 1 of PTO | H56: =IF(SUM(H46,G46)<>0, ROUND((SUM(H46,G46,O46,N46)/SUM(H46,G46)),4), "-") -> 0.1143 | I56: =IF(SUM(AC46,AB46)<>0, ROUND((SUM(AC46,AB46,AJ46,AI46)/SUM(AC46,AB46)), 4), "-") -> 0.4659 | J56: =G56 -> Part 1 of PTO | K56: =IF(SUM(H46,G46,F46)<>0, ROUND((SUM(H46,G46,F46,O46,N46,M46)/SUM(H46,G46,F46)), 4), "-") -> 0.4364 | L56: =IF(SUM(AC46,AA46,AB46)<>0, ROUND((SUM(AC46,AA46,AB46,AJ46,AI46,AH46)/SUM(AC46,AA46,AB46)), 4), "-") -> 0.4855 | M56: =M49 -> PTO's | N56: =N49 -> Unweighted intervention volume_Individual asset category | O56: =O49 -> 190 | P56: =P49 -> 190 | R56: =R49 -> 190 | S56: =S49 -> 190 | U56: =U49 -> 190 | V56: =V49 -> 190
C57: perspective | D57: =D31 -> Part 2 of PTO | E57: =IF(P46<>0, ROUND((P46-SUM(O46))/P46,4), "-") -> 0.3441 | F57: =IF(AK46<>0, ROUND((AK46-SUM(AJ46))/AK46,4), "-") -> 0.7581 | G57: =D57 -> Part 2 of PTO | H57: =IF(P46<>0, ROUND((P46-SUM(O46,N46))/P46,4), "-") -> 0 | I57: =IF(AK46<>0, ROUND((AK46-SUM(AJ46,AI46))/AK46,4), "-") -> 0.621 | J57: =G57 -> Part 2 of PTO | K57: =IF(P46<>0, ROUND((P46-SUM(O46,N46,M46))/P46,4), "-") -> 0 | L57: =IF(AK46<>0, ROUND((AK46-SUM(AJ46,AI46,AH46))/AK46,4), "-") -> 0.4274 | M57: =M50 -> % Interpretation | N57: =N50 -> Weighted intervention volume_Individual asset category | O57: =O56*F60 -> 0.01413520121 | P57: =P56*F60 -> 0.01413520121 | R57: =O57 -> 0.01413520121 | S57: =P57 -> 0.01413520121 | U57: =O57 -> 0.01413520121 | V57: =P57 -> 0.01413520121
D58: =D32 -> Part 3 of PTO | E58: =H46 -> 122 | F58: =AC46 -> 59 | G58: =D58 -> Part 3 of PTO | H58: =SUM(H46,G46) -> 210 | I58: =SUM(AC46,AB46) -> 88 | J58: =G58 -> Part 3 of PTO | K58: =SUM(H46,G46,F46) -> 330 | L58: =SUM(AC46,AA46,AB46) -> 138 | N58: Weighted original intervention volume_Network Level | O58: =O$407 -> 345.3073915 | R58: =O58 -> 345.3073915 | U58: =R58 -> 345.3073915
D59: PTO | E59: =IF(AND(H46<>0, P46<>0), SQRT(ABS(E56*E57))*E58, "Check HI5+HI4") -> 0 | F59: =IF(AND(AC46<>0, AK46<>0), SQRT(ABS(F56*F57))*F58, "Check HI5+HI4") -> 36.01446943 | G59: =D59 -> PTO | H59: =IF(AND((H46+G46)<>0, P46<>0), SQRT(ABS(H56*H57))*H58, "Check HI5+HI4+HI3") -> 0 | I59: =IF(AND((AC46+AB46)<>0, AK46<>0), SQRT(ABS(I56*I57))*I58, "Check HI5+HI4+HI3") -> 47.33417668 | J59: =G59 -> PTO | K59: =IF(AND((H46+G46+F46)<>0, P46<>0), SQRT(ABS(K56*K57))*K58, "No Asset or Intervention to Check") -> 0 | L59: =IF(AND((AC46+AA46+AB46)<>0, AK46<>0), SQRT(ABS(L56*L57))*L58, "No Asset or Intervention to Check") -> 62.86240068 | N59: Weighted, Original PTO - Rebased PTO | O59: =IFERROR(E61-F61, "Check HI5+HI4") -> -0.002679325115 | R59: =IFERROR(H61-I61, "Check HI5+HI4+HI3") -> -0.003521463745 | U59: =IFERROR(K61-L61, "No Intervention to Check") -> -0.004676698328
D60: =D53 -> Network weighting factor | E60: =F60 -> 7.439579586e-05 | F60: =F53 -> 7.439579586e-05 | G60: =G53 -> Network weighting factor | H60: =I60 -> 7.439579586e-05 | I60: =F60 -> 7.439579586e-05 | J60: =J53 -> Network weighting factor | K60: =L60 -> 7.439579586e-05 | L60: =F60 -> 7.439579586e-05 | N60: %, (Original PTO - Rebased PTO) / (network original intervention vol) | O60: =IF(O58=0, "No Intervention", IFERROR(O59/O58, O59)) -> -7.759246345e-06 | R60: =IF(R58=0, "No Intervention", IFERROR(R59/R58, R59)) -> -1.019805493e-05 | U60: =IF(U58=0, "No Intervention", IFERROR(U59/U58, U59)) -> -1.354358013e-05
D61: =D54 -> Weighted Network PTO | E61: =IFERROR(E59*E60,"Check HI5+HI4") -> 0 | F61: =IFERROR(F59*F60,"Check HI5+HI4") -> 0.002679325115 | G61: =D61 -> Weighted Network PTO | H61: =IFERROR(H59*H60,"Check HI5+HI4") -> 0 | I61: =IFERROR(I59*I60,"Check HI5+HI4+HI3") -> 0.003521463745 | J61: =G61 -> Weighted Network PTO | K61: =IFERROR(K59*K60,"Check C1+C2") -> 0 | L61: =IFERROR(L59*L60,"No Asset or Intervention to Check") -> 0.004676698328
C63: ='3.0_Data_Copy'!C29:D29 -> LTS Pipelines - Piggable
C65: Original Targets | X65: Rebased Targets
C66: Asset Population | J66: Intervention Volumes | X66: Asset Population | AE66: Intervention Volumes
D67: HI1 | E67: HI2 | F67: HI3 | G67: HI4 | H67: HI5 | I67: Total | K67: HI1 | L67: HI2 | M67: HI3 | N67: HI4 | O67: HI5 | P67: Total | Y67: HI1 | Z67: HI2 | AA67: HI3 | AB67: HI4 | AC67: HI5 | AD67: Total | AF67: HI1 | AG67: HI2 | AH67: HI3 | AI67: HI4 | AJ67: HI5 | AK67: Total
C68: C4 | D68: =OFFSET('3.0_Data_Copy'!$C$9,MATCH('6.0_Check_3'!$C63,'3.0_Data_Copy'!$C$9:$C$160,0)+4,1,4,5) -> 0 | E68: 0 | F68: 0 | G68: 0 | H68: 0 | I68: =SUM(D68:H68) -> 0 | J68: C4 | K68: =IF(OFFSET('3.0_Data_Copy'!$C$9,MATCH('6.0_Check_3'!$C63,'3.0_Data_Copy'!$C$9:$C$160,0)+4,7,4,5)<0,OFFSET('3.0_Data_Copy'!$C$9,MATCH('6.0_Check_3'!$C63,'3.0_Data_Copy'!$C$9:$C$160,0)+4,7,4,5),"-") -> - | L68: - | M68: - | N68: - | O68: - | P68: =SUM(K68:O68) -> 0 | X68: C4 | Y68: =OFFSET('3.0_Data_Copy'!$C$9,MATCH('6.0_Check_3'!$C63,'3.0_Data_Copy'!$C$9:$C$160,0)+4,24,4,5) -> 0 | Z68: 0 | AA68: 31.339 | AB68: 0.35 | AC68: 0 | AD68: =SUM(Y68:AC68) -> 31.689 | AE68: C4 | AF68: =IF(OFFSET('3.0_Data_Copy'!$C$9,MATCH('6.0_Check_3'!$C63,'3.0_Data_Copy'!$C$9:$C$160,0)+4,30,4,5)<0,OFFSET('3.0_Data_Copy'!$C$9,MATCH('6.0_Check_3'!$C63,'3.0_Data_Copy'!$C$9:$C$160,0)+4,30,4,5),"-") -> - | AG68: - | AH68: - | AI68: - | AJ68: - | AK68: =SUM(AF68:AJ68) -> 0
C69: C3 | D69: 0 | E69: 0 | F69: 0 | G69: 0 | H69: 0 | I69: =SUM(D69:H69) -> 0 | J69: C3 | K69: - | L69: - | M69: - | N69: - | O69: - | P69: =SUM(K69:O69) -> 0 | X69: C3 | Y69: 0 | Z69: 115.27 | AA69: 124.83 | AB69: 43.757 | AC69: 10.64 | AD69: =SUM(Y69:AC69) -> 294.497 | AE69: C3 | AF69: - | AG69: - | AH69: - | AI69: - | AJ69: - | AK69: =SUM(AF69:AJ69) -> 0
C70: C2 | D70: 0 | E70: 0 | F70: 0 | G70: 0 | H70: 0 | I70: =SUM(D70:H70) -> 0 | J70: C2 | K70: - | L70: - | M70: - | N70: - | O70: - | P70: =SUM(K70:O70) -> 0 | X70: C2 | Y70: 0 | Z70: 51.777 | AA70: 58.189 | AB70: 0 | AC70: 0 | AD70: =SUM(Y70:AC70) -> 109.966 | AE70: C2 | AF70: - | AG70: - | AH70: - | AI70: - | AJ70: - | AK70: =SUM(AF70:AJ70) -> 0
C71: C1 | D71: 0 | E71: 130.2 | F71: 450.5 | G71: 135.7 | H71: 49.5 | I71: =SUM(D71:H71) -> 765.9 | J71: C1 | K71: - | L71: - | M71: -430.7 | N71: -135.7 | O71: -49.5 | P71: =SUM(K71:O71) -> -615.9 | X71: C1 | Y71: 0 | Z71: 2.458 | AA71: 77.396 | AB71: 0 | AC71: 9.472 | AD71: =SUM(Y71:AC71) -> 89.326 | AE71: C1 | AF71: - | AG71: - | AH71: - | AI71: - | AJ71: - | AK71: =SUM(AF71:AJ71) -> 0
C72: Total | D72: =SUM(D68:D71) -> 0 | E72: 130.2 | F72: 450.5 | G72: 135.7 | H72: 49.5 | I72: 765.9 | J72: Total | K72: =SUM(K68:K71) -> 0 | L72: 0 | M72: -430.7 | N72: -135.7 | O72: -49.5 | P72: -615.9 | X72: Total | Y72: =SUM(Y68:Y71) -> 0 | Z72: 169.505 | AA72: 291.754 | AB72: 44.107 | AC72: 20.112 | AD72: 525.478 | AE72: Total | AF72: =SUM(AF68:AF71) -> 0 | AG72: 0 | AH72: 0 | AI72: 0 | AJ72: 0 | AK72: 0
C74: Check 3a | D74: C1 | E74: Original | F74: Rebased | G74: C1+C2 | H74: Original | I74: Rebased | J74: C1+C2+C3 | K74: Original | L74: Rebased | M74: Check 3a | N74: C1 | O74: Original | P74: Rebased | Q74: C1+C2 | R74: Original | S74: Rebased | T74: C1+C2+C3 | U74: Original | V74: Rebased
C75: Criticality | D75: =D49 -> Part 1 of PTO | E75: =IF(SUM(G71,H71)<>0, ROUND((SUM(H71,G71,N71,O71)/(G71+H71)),4), "-") -> 0 | F75: =IF(SUM(AB71+AC71)<>0, ROUND((SUM(AB71,AC71,AI71,AJ71)/SUM(AB71,AC71)),4), "-") -> 1 | G75: =D75 -> Part 1 of PTO | H75: =IF(SUM(G70,H70,G71,H71)<>0, ROUND((SUM(G70,H70,G71,H71,N70,O70,N71,O71)/SUM(G70,H70,G71,H71)),4), "-") -> 0 | I75: =IF(SUM(AC70,AB70,AB71,AC71)<>0, ROUND((SUM(AC70,AB70,AB71,AC71,AI70,AJ70,AI71,AJ71)/SUM(AC70,AB70,AB71,AC71)),4), "-") -> 1 | J75: =G75 -> Part 1 of PTO | K75: =IF(SUM(G69,H69,G70,H70,G71,H71)<>0, ROUND((SUM(G69,H69,G70,H70,G71,H71,N69,O69,N70,O70,N71,O71)/SUM(G69,H69,G70,H70,G71,H71)),4), "-") -> 0 | L75: =IF(SUM(AB69,AC69,AB70,AC70,AB71,AC71)<>0, ROUND((SUM(AB69,AC69,AB70,AC70,AB71,AC71,AI69,AJ69,AI70,AJ70,AI71,AJ71)/SUM(AB69,AC69,AB70,AC70,AB71,AC71)),4), "-") -> 1 | M75: PTO's | N75: =N101 -> Unweighted intervention volume_Individual asset category | O75: ='3.0_Data_Copy'!AM34 -> 65 | P75: ='3.0_Data_Copy'!AR34 -> 65 | R75: =O75 -> 65 | S75: =P75 -> 65 | U75: =O75 -> 65 | V75: =P75 -> 65
C76: perspective | D76: =D50 -> Part 2 of PTO | E76: =IF(P72<>0, ROUND(((P72-SUM(N71,O71))/P72),4), "-") -> 0.6993 | F76: =IF(AK72<>0, ROUND(((AK72-SUM(AJ71,AI71))/AK72),4), "-") -> - | G76: Part 2 of PTO | H76: =IF(P72<>0, ROUND(((P72-SUM(N70,O70,N71,O71))/P72),4), "-") -> 0.6993 | I76: =IF(AK72<>0, ROUND(((AK72-SUM(AI70,AJ70,AI71,AJ71))/AK72),4), "-") -> - | J76: Part 2 of PTO | K76: =IF(P72<>0, ROUND((P72-SUM(N69:O71))/P72,4), "-") -> 0.6993 | L76: =IF(AK72<>0, ROUND((AK72-SUM(AI69:AJ71))/AK72,4), "-") -> - | M76: % Interpretation | N76: =N102 -> Weighted intervention volume_Individual asset category | O76: =O75*F79 -> 0.01557477954 | P76: =P75*F79 -> 0.01557477954 | R76: =O76 -> 0.01557477954 | S76: =P76 -> 0.01557477954 | U76: =O76 -> 0.01557477954 | V76: =P76 -> 0.01557477954
D77: =D51 -> Part 3 of PTO | E77: =SUM(G71,H71) -> 185.2 | F77: =SUM(AB71,AC71) -> 9.472 | G77: Part 3 of PTO | H77: =SUM(G70,H70,G71,H71) -> 185.2 | I77: =SUM(AC70,AB70,AB71,AC71) -> 9.472 | J77: Part 3 of PTO | K77: =SUM(G69,H69,G70,H70,G71,H71) -> 185.2 | L77: =SUM(AB69,AC69,AB70,AC70,AB71,AC71) -> 63.869 | N77: =N103 -> Weighted original intervention volume_Network Level | O77: =O$407 -> 345.3073915 | R77: =O77 -> 345.3073915 | U77: =R77 -> 345.3073915
D78: PTO | E78: =IF(AND((G71+H71)<>0, P72<>0), SQRT(ABS(E75*E76))*E77, "Check C1+C2") -> 0 | F78: =IF(AND((AB71+AC71)<>0, AK72<>0), SQRT(ABS(F75*F76))*F77, "Check C1+C2") -> Check C1+C2 | G78: PTO | H78: =IF(AND((G70+H70+G71+H71)<>0, P72<>0), SQRT(ABS(H75*H76))*H77, "Check C1+C2+C3") -> 0 | I78: =IF(AND((AC70+AB70+AB71+AC71)<>0, AK72<>0), SQRT(ABS(I75*I76))*I77, "Check C1+C2+C3") -> Check C1+C2+C3 | J78: PTO | K78: =IF(AND((G69+H69+G70+H70+G71+H71)<>0, P72<>0), SQRT(ABS(K75*K76))*K77, "No Asset or Intervention to Check") -> 0 | L78: =IF(AND((AB69+AC69+AB70+AC70+AB71+AC71)<>0, AK72<>0), SQRT(ABS(L75*L76))*L77, "No Asset or Intervention to Check") -> No Asset or Intervention to Check | N78: Weighted, Original PTO - Rebased PTO | O78: =IFERROR(E80-F80, "Check C1+C2") -> Check C1+C2 | R78: =IFERROR(H80-I80, "Check C1+C2+C3") -> Check C1+C2+C3 | U78: =IFERROR(K80-L80, "No Intervention to Check") -> No Intervention to Check
D79: Network weighting factor | E79: =F79 -> 0.000239611993 | F79: 0.000239611993 | G79: Network weighting factor | H79: =I79 -> 0.000239611993 | I79: =F79 -> 0.000239611993 | J79: Network weighting factor | K79: =L79 -> 0.000239611993 | L79: =F79 -> 0.000239611993 | N79: %, (Original PTO - Rebased PTO) / (network original intervention vol) | O79: =IF(O77=0, "No Intervention", IFERROR(O78/O77, O78)) -> Check C1+C2 | R79: =IF(R77=0, "No Intervention", IFERROR(R78/R77, R78)) -> Check C1+C2+C3 | U79: =IF(U77=0, "No Intervention", IFERROR(U78/U77, U78)) -> No Intervention to Check
D80: Weighted Network PTO | E80: =IFERROR(E78*E79,"Check C1+C2") -> 0 | F80: =IFERROR(F78*F79,"Check C1+C2") -> Check C1+C2 | G80: Weighted Network PTO | H80: =IFERROR(H78*H79,"Check C1+C2") -> 0 | I80: =IFERROR(I78*I79,"Check C1+C2+C3") -> Check C1+C2+C3 | J80: Weighted Network PTO | K80: =IFERROR(K78*K79,"Check C1+C2") -> 0 | L80: =IFERROR(L78*L79,"No Asset or Intervention to Check") -> No Asset or Intervention to Check
C81: Check 3b | D81: HI5 | E81: Original | F81: Rebased | G81: HI5+HI4 | H81: Original | I81: Rebased | J81: HI5+HI4+HI3 | K81: Original | L81: Rebased | M81: Check 3b | N81: HI5 | O81: Original | P81: Rebased | Q81: HI5+HI4 | R81: Original | S81: Rebased | T81: HI5+HI4+HI3 | U81: Original | V81: Rebased
C82: Health | D82: =D56 -> Part 1 of PTO | E82: =IF(AND(H72<>0, P72<>0),ROUND((SUM(H72,O72)/H72),4), "-") -> 0 | F82: =IF(AC72<>0, ROUND((SUM(AC72,AJ72)/AC72),4), "-") -> 1 | G82: =D82 -> Part 1 of PTO | H82: =IF(SUM(H72,G72)<>0, ROUND((SUM(H72,G72,O72,N72)/SUM(H72,G72)),4), "-") -> 0 | I82: =IF(SUM(AC72,AB72)<>0, ROUND((SUM(AC72,AB72,AJ72,AI72)/SUM(AC72,AB72)), 4), "-") -> 1 | J82: =G82 -> Part 1 of PTO | K82: =IF(SUM(H72,G72,F72)<>0, ROUND((SUM(H72,G72,F72,O72,N72,M72)/SUM(H72,G72,F72)), 4), "-") -> 0.0311 | L82: =IF(SUM(AC72,AA72,AB72)<>0, ROUND((SUM(AC72,AA72,AB72,AJ72,AI72,AH72)/SUM(AC72,AA72,AB72)), 4), "-") -> 1 | M82: =M75 -> PTO's | N82: =N75 -> Unweighted intervention volume_Individual asset category | O82: =O75 -> 65 | P82: =P75 -> 65 | R82: =R75 -> 65 | S82: =S75 -> 65 | U82: =U75 -> 65 | V82: =V75 -> 65
C83: perspective | D83: =D57 -> Part 2 of PTO | E83: =IF(P72<>0, ROUND((P72-SUM(O72))/P72,4), "-") -> 0.9196 | F83: =IF(AK72<>0, ROUND((AK72-SUM(AJ72))/AK72,4), "-") -> - | G83: =D83 -> Part 2 of PTO | H83: =IF(P72<>0, ROUND((P72-SUM(O72,N72))/P72,4), "-") -> 0.6993 | I83: =IF(AK72<>0, ROUND((AK72-SUM(AJ72,AI72))/AK72,4), "-") -> - | J83: =G83 -> Part 2 of PTO | K83: =IF(P72<>0, ROUND((P72-SUM(O72,N72,M72))/P72,4), "-") -> 0 | L83: =IF(AK72<>0, ROUND((AK72-SUM(AJ72,AI72,AH72))/AK72,4), "-") -> - | M83: =M76 -> % Interpretation | N83: =N76 -> Weighted intervention volume_Individual asset category | O83: =O82*F86 -> 0.01557477954 | P83: =P82*F86 -> 0.01557477954 | R83: =O83 -> 0.01557477954 | S83: =P83 -> 0.01557477954 | U83: =O83 -> 0.01557477954 | V83: =P83 -> 0.01557477954
D84: =D58 -> Part 3 of PTO | E84: =H72 -> 49.5 | F84: =AC72 -> 20.112 | G84: =D84 -> Part 3 of PTO | H84: =SUM(H72,G72) -> 185.2 | I84: =SUM(AC72,AB72) -> 64.219 | J84: =G84 -> Part 3 of PTO | K84: =SUM(H72,G72,F72) -> 635.7 | L84: =SUM(AC72,AA72,AB72) -> 355.973 | N84: Weighted original intervention volume_Network Level | O84: =O$407 -> 345.3073915 | R84: =O84 -> 345.3073915 | U84: =R84 -> 345.3073915
D85: PTO | E85: =IF(AND(H72<>0, P72<>0), SQRT(ABS(E82*E83))*E84, "Check HI5+HI4") -> 0 | F85: =IF(AND(AC72<>0, AK72<>0), SQRT(ABS(F82*F83))*F84, "Check HI5+HI4") -> Check HI5+HI4 | G85: =D85 -> PTO | H85: =IF(AND((H72+G72)<>0, P72<>0), SQRT(ABS(H82*H83))*H84, "Check HI5+HI4+HI3") -> 0 | I85: =IF(AND((AC72+AB72)<>0, AK72<>0), SQRT(ABS(I82*I83))*I84, "Check HI5+HI4+HI3") -> Check HI5+HI4+HI3 | J85: =G85 -> PTO | K85: =IF(AND((H72+G72+F72)<>0, P72<>0), SQRT(ABS(K82*K83))*K84, "No Asset or Intervention to Check") -> 0 | L85: =IF(AND((AC72+AA72+AB72)<>0, AK72<>0), SQRT(ABS(L82*L83))*L84, "No Asset or Intervention to Check") -> No Asset or Intervention to Check | N85: Weighted, Original PTO - Rebased PTO | O85: =IFERROR(E87-F87, "Check HI5+HI4") -> Check HI5+HI4 | R85: =IFERROR(H87-I87, "Check HI5+HI4+HI3") -> Check HI5+HI4+HI3 | U85: =IFERROR(K87-L87, "No Intervention to Check") -> No Intervention to Check
D86: =D79 -> Network weighting factor | E86: =F86 -> 0.000239611993 | F86: =F79 -> 0.000239611993 | G86: =G79 -> Network weighting factor | H86: =I86 -> 0.000239611993 | I86: =F86 -> 0.000239611993 | J86: =J79 -> Network weighting factor | K86: =L86 -> 0.000239611993 | L86: =F86 -> 0.000239611993 | N86: %, (Original PTO - Rebased PTO) / (network original intervention vol) | O86: =IF(O84=0, "No Intervention", IFERROR(O85/O84, O85)) -> Check HI5+HI4 | R86: =IF(R84=0, "No Intervention", IFERROR(R85/R84, R85)) -> Check HI5+HI4+HI3 | U86: =IF(U84=0, "No Intervention", IFERROR(U85/U84, U85)) -> No Intervention to Check
D87: =D80 -> Weighted Network PTO | E87: =IFERROR(E85*E86,"Check HI5+HI4") -> 0 | F87: =IFERROR(F85*F86,"Check HI5+HI4") -> Check HI5+HI4 | G87: =D87 -> Weighted Network PTO | H87: =IFERROR(H85*H86,"Check HI5+HI4") -> 0 | I87: =IFERROR(I85*I86,"Check HI5+HI4+HI3") -> Check HI5+HI4+HI3 | J87: =G87 -> Weighted Network PTO | K87: =IFERROR(K85*K86,"Check C1+C2") -> 0 | L87: =IFERROR(L85*L86,"No Asset or Intervention to Check") -> No Asset or Intervention to Check
C89: ='3.0_Data_Copy'!C39:D39 -> LTS Pipelines – Non Piggable | D89: LV Switchgear (at s/s) | E89: LV Switchgear (at s/s) | F89: LV Switchgear (at s/s)
C91: Original Targets | X91: Rebased Targets
C92: Asset Population | J92: Intervention Volumes | X92: Asset Population | AE92: Intervention Volumes
D93: HI1 | E93: HI2 | F93: HI3 | G93: HI4 | H93: HI5 | I93: Total | K93: HI1 | L93: HI2 | M93: HI3 | N93: HI4 | O93: HI5 | P93: Total | Y93: HI1 | Z93: HI2 | AA93: HI3 | AB93: HI4 | AC93: HI5 | AD93: Total | AF93: HI1 | AG93: HI2 | AH93: HI3 | AI93: HI4 | AJ93: HI5 | AK93: Total
C94: C4 | D94: =OFFSET('3.0_Data_Copy'!$C$9,MATCH('6.0_Check_3'!$C89,'3.0_Data_Copy'!$C$9:$C$160,0)+4,1,4,5) -> 0 | E94: 0 | F94: 0 | G94: 0 | H94: 0 | I94: =SUM(D94:H94) -> 0 | J94: C4 | K94: =IF(OFFSET('3.0_Data_Copy'!$C$9,MATCH('6.0_Check_3'!$C89,'3.0_Data_Copy'!$C$9:$C$160,0)+4,7,4,5)<0,OFFSET('3.0_Data_Copy'!$C$9,MATCH('6.0_Check_3'!$C89,'3.0_Data_Copy'!$C$9:$C$160,0)+4,7,4,5),"-") -> - | L94: - | M94: - | N94: - | O94: - | P94: =SUM(K94:O94) -> 0 | X94: C4 | Y94: =OFFSET('3.0_Data_Copy'!$C$9,MATCH('6.0_Check_3'!$C89,'3.0_Data_Copy'!$C$9:$C$160,0)+4,24,4,5) -> 0 | Z94: 33.365 | AA94: 60.14 | AB94: 11.014 | AC94: 12.414 | AD94: =SUM(Y94:AC94) -> 116.933 | AE94: C4 | AF94: =IF(OFFSET('3.0_Data_Copy'!$C$9,MATCH('6.0_Check_3'!$C89,'3.0_Data_Copy'!$C$9:$C$160,0)+4,30,4,5)<0,OFFSET('3.0_Data_Copy'!$C$9,MATCH('6.0_Check_3'!$C89,'3.0_Data_Copy'!$C$9:$C$160,0)+4,30,4,5),"-") -> - | AG94: - | AH94: - | AI94: - | AJ94: - | AK94: =SUM(AF94:AJ94) -> 0
C95: C3 | D95: 0 | E95: 0 | F95: 0 | G95: 0 | H95: 0 | I95: =SUM(D95:H95) -> 0 | J95: C3 | K95: - | L95: - | M95: - | N95: - | O95: - | P95: =SUM(K95:O95) -> 0 | X95: C3 | Y95: 0 | Z95: 46.411 | AA95: 62.4 | AB95: 54.179 | AC95: 6.961 | AD95: =SUM(Y95:AC95) -> 169.951 | AE95: C3 | AF95: - | AG95: - | AH95: - | AI95: -10.893 | AJ95: - | AK95: =SUM(AF95:AJ95) -> -10.893
C96: C2 | D96: 0 | E96: 0 | F96: 0 | G96: 0 | H96: 0 | I96: =SUM(D96:H96) -> 0 | J96: C2 | K96: - | L96: - | M96: - | N96: - | O96: - | P96: =SUM(K96:O96) -> 0 | X96: C2 | Y96: 0 | Z96: 13.793 | AA96: 4.425 | AB96: 19.737 | AC96: 0 | AD96: =SUM(Y96:AC96) -> 37.955 | AE96: C2 | AF96: - | AG96: - | AH96: - | AI96: -14.203 | AJ96: - | AK96: =SUM(AF96:AJ96) -> -14.203
C97: C1 | D97: 0 | E97: 0 | F97: 61.13624047 | G97: 81.51498729 | H97: 61.13624047 | I97: =SUM(D97:H97) -> 203.7874682 | J97: C1 | K97: - | L97: - | M97: - | N97: -81.51498729 | O97: -61.13624047 | P97: =SUM(K97:O97) -> -142.6512278 | X97: C1 | Y97: 0 | Z97: 3.958 | AA97: 46.155 | AB97: 0.322 | AC97: 19.01 | AD97: =SUM(Y97:AC97) -> 69.445 | AE97: C1 | AF97: - | AG97: - | AH97: - | AI97: - | AJ97: - | AK97: =SUM(AF97:AJ97) -> 0
C98: Total | D98: =SUM(D94:D97) -> 0 | E98: 0 | F98: 61.13624047 | G98: 81.51498729 | H98: 61.13624047 | I98: 203.7874682 | J98: Total | K98: =SUM(K94:K97) -> 0 | L98: 0 | M98: 0 | N98: -81.51498729 | O98: -61.13624047 | P98: -142.6512278 | X98: Total | Y98: =SUM(Y94:Y97) -> 0 | Z98: 97.527 | AA98: 173.12 | AB98: 85.252 | AC98: 38.385 | AD98: 394.284 | AE98: Total | AF98: =SUM(AF94:AF97) -> 0 | AG98: 0 | AH98: 0 | AI98: -25.096 | AJ98: 0 | AK98: -25.096
C100: Check 3a | D100: C1 | E100: Original | F100: Rebased | G100: C1+C2 | H100: Original | I100: Rebased | J100: C1+C2+C3 | K100: Original | L100: Rebased | M100: Check 3a | N100: C1 | O100: Original | P100: Rebased | Q100: C1+C2 | R100: Original | S100: Rebased | T100: C1+C2+C3 | U100: Original | V100: Rebased
C101: Criticality | D101: =D75 -> Part 1 of PTO | E101: =IF(SUM(G97,H97)<>0, ROUND((SUM(H97,G97,N97,O97)/(G97+H97)),4), "-") -> 0 | F101: =IF(SUM(AB97+AC97)<>0, ROUND((SUM(AB97,AC97,AI97,AJ97)/SUM(AB97,AC97)),4), "-") -> 1 | G101: =D101 -> Part 1 of PTO | H101: =IF(SUM(G96,H96,G97,H97)<>0, ROUND((SUM(G96,H96,G97,H97,N96,O96,N97,O97)/SUM(G96,H96,G97,H97)),4), "-") -> 0 | I101: =IF(SUM(AC96,AB96,AB97,AC97)<>0, ROUND((SUM(AC96,AB96,AB97,AC97,AI96,AJ96,AI97,AJ97)/SUM(AC96,AB96,AB97,AC97)),4), "-") -> 0.6365 | J101: =G101 -> Part 1 of PTO | K101: =IF(SUM(G95,H95,G96,H96,G97,H97)<>0, ROUND((SUM(G95,H95,G96,H96,G97,H97,N95,O95,N96,O96,N97,O97)/SUM(G95,H95,G96,H96,G97,H97)),4), "-") -> 0 | L101: =IF(SUM(AB95,AC95,AB96,AC96,AB97,AC97)<>0, ROUND((SUM(AB95,AC95,AB96,AC96,AB97,AC97,AI95,AJ95,AI96,AJ96,AI97,AJ97)/SUM(AB95,AC95,AB96,AC96,AB97,AC97)),4), "-") -> 0.7496 | M101: PTO's | N101: =N127 -> Unweighted intervention volume_Individual asset category | O101: ='3.0_Data_Copy'!AM44 -> 136 | P101: ='3.0_Data_Copy'!AR44 -> 136 | R101: =O101 -> 136 | S101: =P101 -> 136 | U101: =O101 -> 136 | V101: =P101 -> 136
C102: perspective | D102: =D76 -> Part 2 of PTO | E102: =IF(P98<>0, ROUND(((P98-SUM(N97,O97))/P98),4), "-") -> 0 | F102: =IF(AK98<>0, ROUND(((AK98-SUM(AJ97,AI97))/AK98),4), "-") -> 1 | G102: Part 2 of PTO | H102: =IF(P98<>0, ROUND(((P98-SUM(N96,O96,N97,O97))/P98),4), "-") -> 0 | I102: =IF(AK98<>0, ROUND(((AK98-SUM(AI96,AJ96,AI97,AJ97))/AK98),4), "-") -> 0.4341 | J102: Part 2 of PTO | K102: =IF(P98<>0, ROUND((P98-SUM(N95:O97))/P98,4), "-") -> 0 | L102: =IF(AK98<>0, ROUND((AK98-SUM(AI95:AJ97))/AK98,4), "-") -> 0 | M102: % Interpretation | N102: =N128 -> Weighted intervention volume_Individual asset category | O102: =O101*F105 -> 0.8595306189 | P102: =P101*F105 -> 0.8595306189 | R102: =O102 -> 0.8595306189 | S102: =P102 -> 0.8595306189 | U102: =O102 -> 0.8595306189 | V102: =P102 -> 0.8595306189
D103: =D77 -> Part 3 of PTO | E103: =SUM(G97,H97) -> 142.6512278 | F103: =SUM(AB97,AC97) -> 19.332 | G103: Part 3 of PTO | H103: =SUM(G96,H96,G97,H97) -> 142.6512278 | I103: =SUM(AC96,AB96,AB97,AC97) -> 39.069 | J103: Part 3 of PTO | K103: =SUM(G95,H95,G96,H96,G97,H97) -> 142.6512278 | L103: =SUM(AB95,AC95,AB96,AC96,AB97,AC97) -> 100.209 | N103: =N129 -> Weighted original intervention volume_Network Level | O103: =O$407 -> 345.3073915 | R103: =O103 -> 345.3073915 | U103: =R103 -> 345.3073915
D104: PTO | E104: =IF(AND((G97+H97)<>0, P98<>0), SQRT(ABS(E101*E102))*E103, "Check C1+C2") -> 0 | F104: =IF(AND((AB97+AC97)<>0, AK98<>0), SQRT(ABS(F101*F102))*F103, "Check C1+C2") -> 19.332 | G104: PTO | H104: =IF(AND((G96+H96+G97+H97)<>0, P98<>0), SQRT(ABS(H101*H102))*H103, "Check C1+C2+C3") -> 0 | I104: =IF(AND((AC96+AB96+AB97+AC97)<>0, AK98<>0), SQRT(ABS(I101*I102))*I103, "Check C1+C2+C3") -> 20.53649824 | J104: PTO | K104: =IF(AND((G95+H95+G96+H96+G97+H97)<>0, P98<>0), SQRT(ABS(K101*K102))*K103, "No Asset or Intervention to Check") -> 0 | L104: =IF(AND((AB95+AC95+AB96+AC96+AB97+AC97)<>0, AK98<>0), SQRT(ABS(L101*L102))*L103, "No Asset or Intervention to Check") -> 0 | N104: Weighted, Original PTO - Rebased PTO | O104: =IFERROR(E106-F106, "Check C1+C2") -> -0.1221797494 | R104: =IFERROR(H106-I106, "Check C1+C2+C3") -> -0.1297922723 | U104: =IFERROR(K106-L106, "No Intervention to Check") -> 0
D105: Network weighting factor | E105: =F105 -> 0.00632007808 | F105: 0.00632007808 | G105: Network weighting factor | H105: =I105 -> 0.00632007808 | I105: =F105 -> 0.00632007808 | J105: Network weighting factor | K105: =L105 -> 0.00632007808 | L105: =F105 -> 0.00632007808 | N105: %, (Original PTO - Rebased PTO) / (network original intervention vol) | O105: =IF(O103=0, "No Intervention", IFERROR(O104/O103, O104)) -> -0.0003538289433 | R105: =IF(R103=0, "No Intervention", IFERROR(R104/R103, R104)) -> -0.0003758745846 | U105: =IF(U103=0, "No Intervention", IFERROR(U104/U103, U104)) -> 0
D106: Weighted Network PTO | E106: =IFERROR(E104*E105,"Check C1+C2") -> 0 | F106: =IFERROR(F104*F105,"Check C1+C2") -> 0.1221797494 | G106: Weighted Network PTO | H106: =IFERROR(H104*H105,"Check C1+C2") -> 0 | I106: =IFERROR(I104*I105,"Check C1+C2+C3") -> 0.1297922723 | J106: Weighted Network PTO | K106: =IFERROR(K104*K105,"Check C1+C2") -> 0 | L106: =IFERROR(L104*L105,"No Asset or Intervention to Check") -> 0
C107: Check 3b | D107: HI5 | E107: Original | F107: Rebased | G107: HI5+HI4 | H107: Original | I107: Rebased | J107: HI5+HI4+HI3 | K107: Original | L107: Rebased | M107: Check 3b | N107: HI5 | O107: Original | P107: Rebased | Q107: HI5+HI4 | R107: Original | S107: Rebased | T107: HI5+HI4+HI3 | U107: Original | V107: Rebased
C108: Health | D108: =D82 -> Part 1 of PTO | E108: =IF(AND(H98<>0, P98<>0),ROUND((SUM(H98,O98)/H98),4), "-") -> 0 | F108: =IF(AC98<>0, ROUND((SUM(AC98,AJ98)/AC98),4), "-") -> 1 | G108: =D108 -> Part 1 of PTO | H108: =IF(SUM(H98,G98)<>0, ROUND((SUM(H98,G98,O98,N98)/SUM(H98,G98)),4), "-") -> 0 | I108: =IF(SUM(AC98,AB98)<>0, ROUND((SUM(AC98,AB98,AJ98,AI98)/SUM(AC98,AB98)), 4), "-") -> 0.797 | J108: =G108 -> Part 1 of PTO | K108: =IF(SUM(H98,G98,F98)<>0, ROUND((SUM(H98,G98,F98,O98,N98,M98)/SUM(H98,G98,F98)), 4), "-") -> 0.3 | L108: =IF(SUM(AC98,AA98,AB98)<>0, ROUND((SUM(AC98,AA98,AB98,AJ98,AI98,AH98)/SUM(AC98,AA98,AB98)), 4), "-") -> 0.9154 | M108: =M101 -> PTO's | N108: =N101 -> Unweighted intervention volume_Individual asset category | O108: =O101 -> 136 | P108: =P101 -> 136 | R108: =R101 -> 136 | S108: =S101 -> 136 | U108: =U101 -> 136 | V108: =V101 -> 136
C109: perspective | D109: =D83 -> Part 2 of PTO | E109: =IF(P98<>0, ROUND((P98-SUM(O98))/P98,4), "-") -> 0.5714 | F109: =IF(AK98<>0, ROUND((AK98-SUM(AJ98))/AK98,4), "-") -> 1 | G109: =D109 -> Part 2 of PTO | H109: =IF(P98<>0, ROUND((P98-SUM(O98,N98))/P98,4), "-") -> 0 | I109: =IF(AK98<>0, ROUND((AK98-SUM(AJ98,AI98))/AK98,4), "-") -> 0 | J109: =G109 -> Part 2 of PTO | K109: =IF(P98<>0, ROUND((P98-SUM(O98,N98,M98))/P98,4), "-") -> 0 | L109: =IF(AK98<>0, ROUND((AK98-SUM(AJ98,AI98,AH98))/AK98,4), "-") -> 0 | M109: =M102 -> % Interpretation | N109: =N102 -> Weighted intervention volume_Individual asset category | O109: =O108*F112 -> 0.8595306189 | P109: =P108*F112 -> 0.8595306189 | R109: =O109 -> 0.8595306189 | S109: =P109 -> 0.8595306189 | U109: =O109 -> 0.8595306189 | V109: =P109 -> 0.8595306189
D110: =D84 -> Part 3 of PTO | E110: =H98 -> 61.13624047 | F110: =AC98 -> 38.385 | G110: =D110 -> Part 3 of PTO | H110: =SUM(H98,G98) -> 142.6512278 | I110: =SUM(AC98,AB98) -> 123.637 | J110: =G110 -> Part 3 of PTO | K110: =SUM(H98,G98,F98) -> 203.7874682 | L110: =SUM(AC98,AA98,AB98) -> 296.757 | N110: Weighted original intervention volume_Network Level | O110: =O$407 -> 345.3073915 | R110: =O110 -> 345.3073915 | U110: =R110 -> 345.3073915
D111: PTO | E111: =IF(AND(H98<>0, P98<>0), SQRT(ABS(E108*E109))*E110, "Check HI5+HI4") -> 0 | F111: =IF(AND(AC98<>0, AK98<>0), SQRT(ABS(F108*F109))*F110, "Check HI5+HI4") -> 38.385 | G111: =D111 -> PTO | H111: =IF(AND((H98+G98)<>0, P98<>0), SQRT(ABS(H108*H109))*H110, "Check HI5+HI4+HI3") -> 0 | I111: =IF(AND((AC98+AB98)<>0, AK98<>0), SQRT(ABS(I108*I109))*I110, "Check HI5+HI4+HI3") -> 0 | J111: =G111 -> PTO | K111: =IF(AND((H98+G98+F98)<>0, P98<>0), SQRT(ABS(K108*K109))*K110, "No Asset or Intervention to Check") -> 0 | L111: =IF(AND((AC98+AA98+AB98)<>0, AK98<>0), SQRT(ABS(L108*L109))*L110, "No Asset or Intervention to Check") -> 0 | N111: Weighted, Original PTO - Rebased PTO | O111: =IFERROR(E113-F113, "Check HI5+HI4") -> -0.2425961971 | R111: =IFERROR(H113-I113, "Check HI5+HI4+HI3") -> 0 | U111: =IFERROR(K113-L113, "No Intervention to Check") -> 0
D112: =D105 -> Network weighting factor | E112: =F112 -> 0.00632007808 | F112: =F105 -> 0.00632007808 | G112: =G105 -> Network weighting factor | H112: =I112 -> 0.00632007808 | I112: =F112 -> 0.00632007808 | J112: =J105 -> Network weighting factor | K112: =L112 -> 0.00632007808 | L112: =F112 -> 0.00632007808 | N112: %, (Original PTO - Rebased PTO) / (network original intervention vol) | O112: =IF(O110=0, "No Intervention", IFERROR(O111/O110, O111)) -> -0.0007025514167 | R112: =IF(R110=0, "No Intervention", IFERROR(R111/R110, R111)) -> 0 | U112: =IF(U110=0, "No Intervention", IFERROR(U111/U110, U111)) -> 0
D113: =D106 -> Weighted Network PTO | E113: =IFERROR(E111*E112,"Check HI5+HI4") -> 0 | F113: =IFERROR(F111*F112,"Check HI5+HI4") -> 0.2425961971 | G113: =D113 -> Weighted Network PTO | H113: =IFERROR(H111*H112,"Check HI5+HI4") -> 0 | I113: =IFERROR(I111*I112,"Check HI5+HI4+HI3") -> 0 | J113: =G113 -> Weighted Network PTO | K113: =IFERROR(K111*K112,"Check C1+C2") -> 0 | L113: =IFERROR(L111*L112,"No Asset or Intervention to Check") -> 0
C115: ='3.0_Data_Copy'!C49:D49 -> Distribution Mains (Iron) | D115: LV UGB and LV Pillar OD (not at s/s) | E115: LV UGB and LV Pillar OD (not at s/s) | F115: LV UGB and LV Pillar OD (not at s/s)
C117: Original Targets | X117: Rebased Targets
C118: Asset Population | J118: Intervention Volumes | X118: Asset Population | AE118: Intervention Volumes
D119: HI1 | E119: HI2 | F119: HI3 | G119: HI4 | H119: HI5 | I119: Total | K119: HI1 | L119: HI2 | M119: HI3 | N119: HI4 | O119: HI5 | P119: Total | Y119: HI1 | Z119: HI2 | AA119: HI3 | AB119: HI4 | AC119: HI5 | AD119: Total | AF119: HI1 | AG119: HI2 | AH119: HI3 | AI119: HI4 | AJ119: HI5 | AK119: Total
C120: C4 | D120: =OFFSET('3.0_Data_Copy'!$C$9,MATCH('6.0_Check_3'!$C115,'3.0_Data_Copy'!$C$9:$C$160,0)+4,1,4,5) -> 20 | E120: 0 | F120: 0 | G120: 0 | H120: 116.074367 | I120: =SUM(D120:H120) -> 136.074367 | J120: C4 | K120: =IF(OFFSET('3.0_Data_Copy'!$C$9,MATCH('6.0_Check_3'!$C115,'3.0_Data_Copy'!$C$9:$C$160,0)+4,7,4,5)<0,OFFSET('3.0_Data_Copy'!$C$9,MATCH('6.0_Check_3'!$C115,'3.0_Data_Copy'!$C$9:$C$160,0)+4,7,4,5),"-") -> - | L120: - | M120: - | N120: - | O120: -100 | P120: =SUM(K120:O120) -> -100 | X120: C4 | Y120: =OFFSET('3.0_Data_Copy'!$C$9,MATCH('6.0_Check_3'!$C115,'3.0_Data_Copy'!$C$9:$C$160,0)+4,24,4,5) -> 0 | Z120: 0 | AA120: 0 | AB120: 0 | AC120: 0 | AD120: =SUM(Y120:AC120) -> 0 | AE120: C4 | AF120: =IF(OFFSET('3.0_Data_Copy'!$C$9,MATCH('6.0_Check_3'!$C115,'3.0_Data_Copy'!$C$9:$C$160,0)+4,30,4,5)<0,OFFSET('3.0_Data_Copy'!$C$9,MATCH('6.0_Check_3'!$C115,'3.0_Data_Copy'!$C$9:$C$160,0)+4,30,4,5),"-") -> - | AG120: - | AH120: - | AI120: - | AJ120: - | AK120: =SUM(AF120:AJ120) -> 0
C121: C3 | D121: 0 | E121: 0 | F121: 0 | G121: 0 | H121: 0 | I121: =SUM(D121:H121) -> 0 | J121: C3 | K121: - | L121: - | M121: - | N121: - | O121: - | P121: =SUM(K121:O121) -> 0 | X121: C3 | Y121: 0 | Z121: 0 | AA121: 139.11914 | AB121: 0 | AC121: 0 | AD121: =SUM(Y121:AC121) -> 139.11914 | AE121: C3 | AF121: - | AG121: - | AH121: -0.62506 | AI121: - | AJ121: - | AK121: =SUM(AF121:AJ121) -> -0.62506
C122: C2 | D122: 0 | E122: 0 | F122: 0 | G122: 0 | H122: 0 | I122: =SUM(D122:H122) -> 0 | J122: C2 | K122: - | L122: - | M122: - | N122: - | O122: - | P122: =SUM(K122:O122) -> 0 | X122: C2 | Y122: 0 | Z122: 0 | AA122: 0 | AB122: 1154.13443 | AC122: 0 | AD122: =SUM(Y122:AC122) -> 1154.13443 | AE122: C2 | AF122: - | AG122: - | AH122: - | AI122: - | AJ122: - | AK122: =SUM(AF122:AJ122) -> 0
C123: C1 | D123: 1040.795359 | E123: 0 | F123: 0 | G123: 0 | H123: 9290.389274 | I123: =SUM(D123:H123) -> 10331.18463 | J123: C1 | K123: - | L123: - | M123: - | N123: - | O123: -3785.702538 | P123: =SUM(K123:O123) -> -3785.702538 | X123: C1 | Y123: 0 | Z123: 0 | AA123: 0 | AB123: 0 | AC123: 7976.38798 | AD123: =SUM(Y123:AC123) -> 7976.38798 | AE123: C1 | AF123: - | AG123: - | AH123: - | AI123: - | AJ123: -2742.07354 | AK123: =SUM(AF123:AJ123) -> -2742.07354
C124: Total | D124: =SUM(D120:D123) -> 1060.795359 | E124: 0 | F124: 0 | G124: 0 | H124: 9406.463641 | I124: 10467.259 | J124: Total | K124: =SUM(K120:K123) -> 0 | L124: 0 | M124: 0 | N124: 0 | O124: -3885.702538 | P124: -3885.702538 | X124: Total | Y124: =SUM(Y120:Y123) -> 0 | Z124: 0 | AA124: 139.11914 | AB124: 1154.13443 | AC124: 7976.38798 | AD124: 9269.64155 | AE124: Total | AF124: =SUM(AF120:AF123) -> 0 | AG124: 0 | AH124: -0.62506 | AI124: 0 | AJ124: -2742.07354 | AK124: -2742.6986
C126: Check 3a | D126: C1 | E126: Original | F126: Rebased | G126: C1+C2 | H126: Original | I126: Rebased | J126: C1+C2+C3 | K126: Original | L126: Rebased | M126: Check 3a | N126: C1 | O126: Original | P126: Rebased | Q126: C1+C2 | R126: Original | S126: Rebased | T126: C1+C2+C3 | U126: Original | V126: Rebased
C127: Criticality | D127: =D101 -> Part 1 of PTO | E127: =IF(SUM(G123,H123)<>0, ROUND((SUM(H123,G123,N123,O123)/(G123+H123)),4), "-") -> 0.5925 | F127: =IF(SUM(AB123+AC123)<>0, ROUND((SUM(AB123,AC123,AI123,AJ123)/SUM(AB123,AC123)),4), "-") -> 0.6562 | G127: =D127 -> Part 1 of PTO | H127: =IF(SUM(G122,H122,G123,H123)<>0, ROUND((SUM(G122,H122,G123,H123,N122,O122,N123,O123)/SUM(G122,H122,G123,H123)),4), "-") -> 0.5925 | I127: =IF(SUM(AC122,AB122,AB123,AC123)<>0, ROUND((SUM(AC122,AB122,AB123,AC123,AI122,AJ122,AI123,AJ123)/SUM(AC122,AB122,AB123,AC123)),4), "-") -> 0.6997 | J127: =G127 -> Part 1 of PTO | K127: =IF(SUM(G121,H121,G122,H122,G123,H123)<>0, ROUND((SUM(G121,H121,G122,H122,G123,H123,N121,O121,N122,O122,N123,O123)/SUM(G121,H121,G122,H122,G123,H123)),4), "-") -> 0.5925 | L127: =IF(SUM(AB121,AC121,AB122,AC122,AB123,AC123)<>0, ROUND((SUM(AB121,AC121,AB122,AC122,AB123,AC123,AI121,AJ121,AI122,AJ122,AI123,AJ123)/SUM(AB121,AC121,AB122,AC122,AB123,AC123)),4), "-") -> 0.6997 | M127: PTO's | N127: =N153 -> Unweighted intervention volume_Individual asset category | O127: 1870.6 | P127: 1870.6 | R127: =O127 -> 1870.6 | S127: =P127 -> 1870.6 | U127: =O127 -> 1870.6 | V127: =P127 -> 1870.6
C128: perspective | D128: =D102 -> Part 2 of PTO | E128: =IF(P124<>0, ROUND(((P124-SUM(N123,O123))/P124),4), "-") -> 0.0257 | F128: =IF(AK124<>0, ROUND(((AK124-SUM(AJ123,AI123))/AK124),4), "-") -> 0.0002 | G128: Part 2 of PTO | H128: =IF(P124<>0, ROUND(((P124-SUM(N122,O122,N123,O123))/P124),4), "-") -> 0.0257 | I128: =IF(AK124<>0, ROUND(((AK124-SUM(AI122,AJ122,AI123,AJ123))/AK124),4), "-") -> 0.0002 | J128: Part 2 of PTO | K128: =IF(P124<>0, ROUND((P124-SUM(N121:O123))/P124,4), "-") -> 0.0257 | L128: =IF(AK124<>0, ROUND((AK124-SUM(AI121:AJ123))/AK124,4), "-") -> 0.0002 | M128: % Interpretation | N128: =N154 -> Weighted intervention volume_Individual asset category | O128: =O127*F131 -> 82.3425348 | P128: =P127*F131 -> 82.3425348 | R128: =O128 -> 82.3425348 | S128: =P128 -> 82.3425348 | U128: =O128 -> 82.3425348 | V128: =P128 -> 82.3425348
D129: =D103 -> Part 3 of PTO | E129: =SUM(G123,H123) -> 9290.389274 | F129: =SUM(AB123,AC123) -> 7976.38798 | G129: Part 3 of PTO | H129: =SUM(G122,H122,G123,H123) -> 9290.389274 | I129: =SUM(AC122,AB122,AB123,AC123) -> 9130.52241 | J129: Part 3 of PTO | K129: =SUM(G121,H121,G122,H122,G123,H123) -> 9290.389274 | L129: =SUM(AB121,AC121,AB122,AC122,AB123,AC123) -> 9130.52241 | N129: =N155 -> Weighted original intervention volume_Network Level | O129: =O$407 -> 345.3073915 | R129: =O129 -> 345.3073915 | U129: =R129 -> 345.3073915
D130: PTO | E130: =IF(AND((G123+H123)<>0, P124<>0), SQRT(ABS(E127*E128))*E129, "Check C1+C2") -> 1146.422367 | F130: =IF(AND((AB123+AC123)<>0, AK124<>0), SQRT(ABS(F127*F128))*F129, "Check C1+C2") -> 91.37752298 | G130: PTO | H130: =IF(AND((G122+H122+G123+H123)<>0, P124<>0), SQRT(ABS(H127*H128))*H129, "Check C1+C2+C3") -> 1146.422367 | I130: =IF(AND((AC122+AB122+AB123+AC123)<>0, AK124<>0), SQRT(ABS(I127*I128))*I129, "Check C1+C2+C3") -> 108.0106455 | J130: PTO | K130: =IF(AND((G121+H121+G122+H122+G123+H123)<>0, P124<>0), SQRT(ABS(K127*K128))*K129, "No Asset or Intervention to Check") -> 1146.422367 | L130: =IF(AND((AB121+AC121+AB122+AC122+AB123+AC123)<>0, AK124<>0), SQRT(ABS(L127*L128))*L129, "No Asset or Intervention to Check") -> 108.0106455 | N130: Weighted, Original PTO - Rebased PTO | O130: =IFERROR(E132-F132, "Check C1+C2") -> 46.44235367 | R130: =IFERROR(H132-I132, "Check C1+C2+C3") -> 45.71017497 | U130: =IFERROR(K132-L132, "No Intervention to Check") -> 45.71017497
D131: Network weighting factor | E131: =F131 -> 0.04401931722 | F131: 0.04401931722 | G131: Network weighting factor | H131: =I131 -> 0.04401931722 | I131: =F131 -> 0.04401931722 | J131: Network weighting factor | K131: =L131 -> 0.04401931722 | L131: =F131 -> 0.04401931722 | N131: %, (Original PTO - Rebased PTO) / (network original intervention vol) | O131: =IF(O129=0, "No Intervention", IFERROR(O130/O129, O130)) -> 0.1344956836 | R131: =IF(R129=0, "No Intervention", IFERROR(R130/R129, R130)) -> 0.1323753157 | U131: =IF(U129=0, "No Intervention", IFERROR(U130/U129, U130)) -> 0.1323753157
D132: Weighted Network PTO | E132: =IFERROR(E130*E131,"Check C1+C2") -> 50.46472984 | F132: =IFERROR(F130*F131,"Check C1+C2") -> 4.022376171 | G132: Weighted Network PTO | H132: =IFERROR(H130*H131,"Check C1+C2") -> 50.46472984 | I132: =IFERROR(I130*I131,"Check C1+C2+C3") -> 4.754554868 | J132: Weighted Network PTO | K132: =IFERROR(K130*K131,"Check C1+C2") -> 50.46472984 | L132: =IFERROR(L130*L131,"No Asset or Intervention to Check") -> 4.754554868
C133: Check 3b | D133: HI5 | E133: Original | F133: Rebased | G133: HI5+HI4 | H133: Original | I133: Rebased | J133: HI5+HI4+HI3 | K133: Original | L133: Rebased | M133: Check 3b | N133: HI5 | O133: Original | P133: Rebased | Q133: HI5+HI4 | R133: Original | S133: Rebased | T133: HI5+HI4+HI3 | U133: Original | V133: Rebased
C134: Health | D134: =D108 -> Part 1 of PTO | E134: =IF(AND(H124<>0, P124<>0),ROUND((SUM(H124,O124)/H124),4), "-") -> 0.5869 | F134: =IF(AC124<>0, ROUND((SUM(AC124,AJ124)/AC124),4), "-") -> 0.6562 | G134: =D134 -> Part 1 of PTO | H134: =IF(SUM(H124,G124)<>0, ROUND((SUM(H124,G124,O124,N124)/SUM(H124,G124)),4), "-") -> 0.5869 | I134: =IF(SUM(AC124,AB124)<>0, ROUND((SUM(AC124,AB124,AJ124,AI124)/SUM(AC124,AB124)), 4), "-") -> 0.6997 | J134: =G134 -> Part 1 of PTO | K134: =IF(SUM(H124,G124,F124)<>0, ROUND((SUM(H124,G124,F124,O124,N124,M124)/SUM(H124,G124,F124)), 4), "-") -> 0.5869 | L134: =IF(SUM(AC124,AA124,AB124)<>0, ROUND((SUM(AC124,AA124,AB124,AJ124,AI124,AH124)/SUM(AC124,AA124,AB124)), 4), "-") -> 0.7041 | M134: =M127 -> PTO's | N134: =N127 -> Unweighted intervention volume_Individual asset category | O134: =O127 -> 1870.6 | P134: =P127 -> 1870.6 | R134: =R127 -> 1870.6 | S134: =S127 -> 1870.6 | U134: =U127 -> 1870.6 | V134: =V127 -> 1870.6
C135: perspective | D135: =D109 -> Part 2 of PTO | E135: =IF(P124<>0, ROUND((P124-SUM(O124))/P124,4), "-") -> 0 | F135: =IF(AK124<>0, ROUND((AK124-SUM(AJ124))/AK124,4), "-") -> 0.0002 | G135: =D135 -> Part 2 of PTO | H135: =IF(P124<>0, ROUND((P124-SUM(O124,N124))/P124,4), "-") -> 0 | I135: =IF(AK124<>0, ROUND((AK124-SUM(AJ124,AI124))/AK124,4), "-") -> 0.0002 | J135: =G135 -> Part 2 of PTO | K135: =IF(P124<>0, ROUND((P124-SUM(O124,N124,M124))/P124,4), "-") -> 0 | L135: =IF(AK124<>0, ROUND((AK124-SUM(AJ124,AI124,AH124))/AK124,4), "-") -> 0 | M135: =M128 -> % Interpretation | N135: =N128 -> Weighted intervention volume_Individual asset category | O135: =O134*F138 -> 82.3425348 | P135: =P134*F138 -> 82.3425348 | R135: =O135 -> 82.3425348 | S135: =P135 -> 82.3425348 | U135: =O135 -> 82.3425348 | V135: =P135 -> 82.3425348
D136: =D110 -> Part 3 of PTO | E136: =H124 -> 9406.463641 | F136: =AC124 -> 7976.38798 | G136: =D136 -> Part 3 of PTO | H136: =SUM(H124,G124) -> 9406.463641 | I136: =SUM(AC124,AB124) -> 9130.52241 | J136: =G136 -> Part 3 of PTO | K136: =SUM(H124,G124,F124) -> 9406.463641 | L136: =SUM(AC124,AA124,AB124) -> 9269.64155 | N136: Weighted original intervention volume_Network Level | O136: =O$407 -> 345.3073915 | R136: =O136 -> 345.3073915 | U136: =R136 -> 345.3073915
D137: PTO | E137: =IF(AND(H124<>0, P124<>0), SQRT(ABS(E134*E135))*E136, "Check HI5+HI4") -> 0 | F137: =IF(AND(AC124<>0, AK124<>0), SQRT(ABS(F134*F135))*F136, "Check HI5+HI4") -> 91.37752298 | G137: =D137 -> PTO | H137: =IF(AND((H124+G124)<>0, P124<>0), SQRT(ABS(H134*H135))*H136, "Check HI5+HI4+HI3") -> 0 | I137: =IF(AND((AC124+AB124)<>0, AK124<>0), SQRT(ABS(I134*I135))*I136, "Check HI5+HI4+HI3") -> 108.0106455 | J137: =G137 -> PTO | K137: =IF(AND((H124+G124+F124)<>0, P124<>0), SQRT(ABS(K134*K135))*K136, "No Asset or Intervention to Check") -> 0 | L137: =IF(AND((AC124+AA124+AB124)<>0, AK124<>0), SQRT(ABS(L134*L135))*L136, "No Asset or Intervention to Check") -> 0 | N137: Weighted, Original PTO - Rebased PTO | O137: =IFERROR(E139-F139, "Check HI5+HI4") -> -4.022376171 | R137: =IFERROR(H139-I139, "Check HI5+HI4+HI3") -> -4.754554868 | U137: =IFERROR(K139-L139, "No Intervention to Check") -> 0
D138: =D131 -> Network weighting factor | E138: =F138 -> 0.04401931722 | F138: =F131 -> 0.04401931722 | G138: =G131 -> Network weighting factor | H138: =I138 -> 0.04401931722 | I138: =F138 -> 0.04401931722 | J138: =J131 -> Network weighting factor | K138: =L138 -> 0.04401931722 | L138: =F138 -> 0.04401931722 | N138: %, (Original PTO - Rebased PTO) / (network original intervention vol) | O138: =IF(O136=0, "No Intervention", IFERROR(O137/O136, O137)) -> -0.01164868251 | R138: =IF(R136=0, "No Intervention", IFERROR(R137/R136, R137)) -> -0.01376905037 | U138: =IF(U136=0, "No Intervention", IFERROR(U137/U136, U137)) -> 0
D139: =D132 -> Weighted Network PTO | E139: =IFERROR(E137*E138,"Check HI5+HI4") -> 0 | F139: =IFERROR(F137*F138,"Check HI5+HI4") -> 4.022376171 | G139: =D139 -> Weighted Network PTO | H139: =IFERROR(H137*H138,"Check HI5+HI4") -> 0 | I139: =IFERROR(I137*I138,"Check HI5+HI4+HI3") -> 4.754554868 | J139: =G139 -> Weighted Network PTO | K139: =IFERROR(K137*K138,"Check C1+C2") -> 0 | L139: =IFERROR(L137*L138,"No Asset or Intervention to Check") -> 0
C141: ='3.0_Data_Copy'!C59:D59 -> Distribution Mains (PE)
C143: Original Targets | X143: Rebased Targets
C144: Asset Population | J144: Intervention Volumes | X144: Asset Population | AE144: Intervention Volumes
D145: HI1 | E145: HI2 | F145: HI3 | G145: HI4 | H145: HI5 | I145: Total | K145: HI1 | L145: HI2 | M145: HI3 | N145: HI4 | O145: HI5 | P145: Total | Y145: HI1 | Z145: HI2 | AA145: HI3 | AB145: HI4 | AC145: HI5 | AD145: Total | AF145: HI1 | AG145: HI2 | AH145: HI3 | AI145: HI4 | AJ145: HI5 | AK145: Total
C146: C4 | D146: =OFFSET('3.0_Data_Copy'!$C$9,MATCH('6.0_Check_3'!$C141,'3.0_Data_Copy'!$C$9:$C$160,0)+4,1,4,5) -> 19519.70554 | E146: 185.80606 | F146: 0 | G146: 0 | H146: 0 | I146: =SUM(D146:H146) -> 19705.5116 | J146: C4 | K146: =IF(OFFSET('3.0_Data_Copy'!$C$9,MATCH('6.0_Check_3'!$C141,'3.0_Data_Copy'!$C$9:$C$160,0)+4,7,4,5)<0,OFFSET('3.0_Data_Copy'!$C$9,MATCH('6.0_Check_3'!$C141,'3.0_Data_Copy'!$C$9:$C$160,0)+4,7,4,5),"-") -> - | L146: - | M146: - | N146: - | O146: - | P146: =SUM(K146:O146) -> 0 | X146: C4 | Y146: =OFFSET('3.0_Data_Copy'!$C$9,MATCH('6.0_Check_3'!$C141,'3.0_Data_Copy'!$C$9:$C$160,0)+4,24,4,5) -> 22505.9858 | Z146: 0 | AA146: 0 | AB146: 0 | AC146: 0 | AD146: =SUM(Y146:AC146) -> 22505.9858 | AE146: C4 | AF146: =IF(OFFSET('3.0_Data_Copy'!$C$9,MATCH('6.0_Check_3'!$C141,'3.0_Data_Copy'!$C$9:$C$160,0)+4,30,4,5)<0,OFFSET('3.0_Data_Copy'!$C$9,MATCH('6.0_Check_3'!$C141,'3.0_Data_Copy'!$C$9:$C$160,0)+4,30,4,5),"-") -> - | AG146: - | AH146: - | AI146: - | AJ146: - | AK146: =SUM(AF146:AJ146) -> 0
C147: C3 | D147: 2487.756808 | E147: 0 | F147: 0 | G147: 0 | H147: 0 | I147: =SUM(D147:H147) -> 2487.756808 | J147: C3 | K147: - | L147: - | M147: - | N147: - | O147: - | P147: =SUM(K147:O147) -> 0 | X147: C3 | Y147: 0 | Z147: 0 | AA147: 0 | AB147: 0 | AC147: 0 | AD147: =SUM(Y147:AC147) -> 0 | AE147: C3 | AF147: - | AG147: - | AH147: - | AI147: - | AJ147: - | AK147: =SUM(AF147:AJ147) -> 0
C148: C2 | D148: 278.7139731 | E148: 0 | F148: 0 | G148: 0 | H148: 0 | I148: =SUM(D148:H148) -> 278.7139731 | J148: C2 | K148: - | L148: - | M148: - | N148: - | O148: - | P148: =SUM(K148:O148) -> 0 | X148: C2 | Y148: 0 | Z148: 0 | AA148: 0 | AB148: 0 | AC148: 0 | AD148: =SUM(Y148:AC148) -> 0 | AE148: C2 | AF148: - | AG148: - | AH148: - | AI148: - | AJ148: - | AK148: =SUM(AF148:AJ148) -> 0
C149: C1 | D149: 0 | E149: 0 | F149: 0 | G149: 0 | H149: 0 | I149: =SUM(D149:H149) -> 0 | J149: C1 | K149: - | L149: - | M149: - | N149: - | O149: - | P149: =SUM(K149:O149) -> 0 | X149: C1 | Y149: 0 | Z149: 0 | AA149: 0 | AB149: 0 | AC149: 0 | AD149: =SUM(Y149:AC149) -> 0 | AE149: C1 | AF149: - | AG149: - | AH149: - | AI149: - | AJ149: - | AK149: =SUM(AF149:AJ149) -> 0
C150: Total | D150: =SUM(D146:D149) -> 22286.17632 | E150: 185.80606 | F150: 0 | G150: 0 | H150: 0 | I150: 22471.98238 | J150: Total | K150: =SUM(K146:K149) -> 0 | L150: 0 | M150: 0 | N150: 0 | O150: 0 | P150: 0 | X150: Total | Y150: =SUM(Y146:Y149) -> 22505.9858 | Z150: 0 | AA150: 0 | AB150: 0 | AC150: 0 | AD150: 22505.9858 | AE150: Total | AF150: =SUM(AF146:AF149) -> 0 | AG150: 0 | AH150: 0 | AI150: 0 | AJ150: 0 | AK150: 0
C152: Check 3a | D152: C1 | E152: Original | F152: Rebased | G152: C1+C2 | H152: Original | I152: Rebased | J152: C1+C2+C3 | K152: Original | L152: Rebased | M152: Check 3a | N152: C1 | O152: Original | P152: Rebased | Q152: C1+C2 | R152: Original | S152: Rebased | T152: C1+C2+C3 | U152: Original | V152: Rebased
C153: Criticality | D153: =D127 -> Part 1 of PTO | E153: =IF(SUM(G149,H149)<>0, ROUND((SUM(H149,G149,N149,O149)/(G149+H149)),4), "-") -> - | F153: =IF(SUM(AB149+AC149)<>0, ROUND((SUM(AB149,AC149,AI149,AJ149)/SUM(AB149,AC149)),4), "-") -> - | G153: =D153 -> Part 1 of PTO | H153: =IF(SUM(G148,H148,G149,H149)<>0, ROUND((SUM(G148,H148,G149,H149,N148,O148,N149,O149)/SUM(G148,H148,G149,H149)),4), "-") -> - | I153: =IF(SUM(AC148,AB148,AB149,AC149)<>0, ROUND((SUM(AC148,AB148,AB149,AC149,AI148,AJ148,AI149,AJ149)/SUM(AC148,AB148,AB149,AC149)),4), "-") -> - | J153: =G153 -> Part 1 of PTO | K153: =IF(SUM(G147,H147,G148,H148,G149,H149)<>0, ROUND((SUM(G147,H147,G148,H148,G149,H149,N147,O147,N148,O148,N149,O149)/SUM(G147,H147,G148,H148,G149,H149)),4), "-") -> - | L153: =IF(SUM(AB147,AC147,AB148,AC148,AB149,AC149)<>0, ROUND((SUM(AB147,AC147,AB148,AC148,AB149,AC149,AI147,AJ147,AI148,AJ148,AI149,AJ149)/SUM(AB147,AC147,AB148,AC148,AB149,AC149)),4), "-") -> - | M153: PTO's | N153: =N179 -> Unweighted intervention volume_Individual asset category | O153: 0 | P153: 0 | R153: =O153 -> 0 | S153: =P153 -> 0 | U153: =O153 -> 0 | V153: =P153 -> 0
C154: perspective | D154: =D128 -> Part 2 of PTO | E154: =IF(P150<>0, ROUND(((P150-SUM(N149,O149))/P150),4), "-") -> - | F154: =IF(AK150<>0, ROUND(((AK150-SUM(AJ149,AI149))/AK150),4), "-") -> - | G154: Part 2 of PTO | H154: =IF(P150<>0, ROUND(((P150-SUM(N148,O148,N149,O149))/P150),4), "-") -> - | I154: =IF(AK150<>0, ROUND(((AK150-SUM(AI148,AJ148,AI149,AJ149))/AK150),4), "-") -> - | J154: Part 2 of PTO | K154: =IF(P150<>0, ROUND((P150-SUM(N147:O149))/P150,4), "-") -> - | L154: =IF(AK150<>0, ROUND((AK150-SUM(AI147:AJ149))/AK150,4), "-") -> - | M154: % Interpretation | N154: =N180 -> Weighted intervention volume_Individual asset category | O154: =O153*F157 -> 0 | P154: =P153*F157 -> 0 | R154: =O154 -> 0 | S154: =P154 -> 0 | U154: =O154 -> 0 | V154: =P154 -> 0
D155: =D129 -> Part 3 of PTO | E155: =SUM(G149,H149) -> 0 | F155: =SUM(AB149,AC149) -> 0 | G155: Part 3 of PTO | H155: =SUM(G148,H148,G149,H149) -> 0 | I155: =SUM(AC148,AB148,AB149,AC149) -> 0 | J155: Part 3 of PTO | K155: =SUM(G147,H147,G148,H148,G149,H149) -> 0 | L155: =SUM(AB147,AC147,AB148,AC148,AB149,AC149) -> 0 | N155: =N181 -> Weighted original intervention volume_Network Level | O155: =O$407 -> 345.3073915 | R155: =O155 -> 345.3073915 | U155: =R155 -> 345.3073915
D156: PTO | E156: =IF(AND((G149+H149)<>0, P150<>0), SQRT(ABS(E153*E154))*E155, "Check C1+C2") -> Check C1+C2 | F156: =IF(AND((AB149+AC149)<>0, AK150<>0), SQRT(ABS(F153*F154))*F155, "Check C1+C2") -> Check C1+C2 | G156: PTO | H156: =IF(AND((G148+H148+G149+H149)<>0, P150<>0), SQRT(ABS(H153*H154))*H155, "Check C1+C2+C3") -> Check C1+C2+C3 | I156: =IF(AND((AC148+AB148+AB149+AC149)<>0, AK150<>0), SQRT(ABS(I153*I154))*I155, "Check C1+C2+C3") -> Check C1+C2+C3 | J156: PTO | K156: =IF(AND((G147+H147+G148+H148+G149+H149)<>0, P150<>0), SQRT(ABS(K153*K154))*K155, "No Asset or Intervention to Check") -> No Asset or Intervention to Check | L156: =IF(AND((AB147+AC147+AB148+AC148+AB149+AC149)<>0, AK150<>0), SQRT(ABS(L153*L154))*L155, "No Asset or Intervention to Check") -> No Asset or Intervention to Check | N156: Weighted, Original PTO - Rebased PTO | O156: =IFERROR(E158-F158, "Check C1+C2") -> Check C1+C2 | R156: =IFERROR(H158-I158, "Check C1+C2+C3") -> Check C1+C2+C3 | U156: =IFERROR(K158-L158, "No Intervention to Check") -> No Intervention to Check
D157: Network weighting factor | E157: =F157 -> 0 | F157: 0 | G157: Network weighting factor | H157: =I157 -> 0 | I157: =F157 -> 0 | J157: Network weighting factor | K157: =L157 -> 0 | L157: =F157 -> 0 | N157: %, (Original PTO - Rebased PTO) / (network original intervention vol) | O157: =IF(O155=0, "No Intervention", IFERROR(O156/O155, O156)) -> Check C1+C2 | R157: =IF(R155=0, "No Intervention", IFERROR(R156/R155, R156)) -> Check C1+C2+C3 | U157: =IF(U155=0, "No Intervention", IFERROR(U156/U155, U156)) -> No Intervention to Check
D158: Weighted Network PTO | E158: =IFERROR(E156*E157,"Check C1+C2") -> Check C1+C2 | F158: =IFERROR(F156*F157,"Check C1+C2") -> Check C1+C2 | G158: Weighted Network PTO | H158: =IFERROR(H156*H157,"Check C1+C2") -> Check C1+C2 | I158: =IFERROR(I156*I157,"Check C1+C2+C3") -> Check C1+C2+C3 | J158: Weighted Network PTO | K158: =IFERROR(K156*K157,"Check C1+C2") -> Check C1+C2 | L158: =IFERROR(L156*L157,"No Asset or Intervention to Check") -> No Asset or Intervention to Check
C159: Check 3b | D159: HI5 | E159: Original | F159: Rebased | G159: HI5+HI4 | H159: Original | I159: Rebased | J159: HI5+HI4+HI3 | K159: Original | L159: Rebased | M159: Check 3b | N159: HI5 | O159: Original | P159: Rebased | Q159: HI5+HI4 | R159: Original | S159: Rebased | T159: HI5+HI4+HI3 | U159: Original | V159: Rebased
C160: Health | D160: =D134 -> Part 1 of PTO | E160: =IF(AND(H150<>0, P150<>0),ROUND((SUM(H150,O150)/H150),4), "-") -> - | F160: =IF(AC150<>0, ROUND((SUM(AC150,AJ150)/AC150),4), "-") -> - | G160: =D160 -> Part 1 of PTO | H160: =IF(SUM(H150,G150)<>0, ROUND((SUM(H150,G150,O150,N150)/SUM(H150,G150)),4), "-") -> - | I160: =IF(SUM(AC150,AB150)<>0, ROUND((SUM(AC150,AB150,AJ150,AI150)/SUM(AC150,AB150)), 4), "-") -> - | J160: =G160 -> Part 1 of PTO | K160: =IF(SUM(H150,G150,F150)<>0, ROUND((SUM(H150,G150,F150,O150,N150,M150)/SUM(H150,G150,F150)), 4), "-") -> - | L160: =IF(SUM(AC150,AA150,AB150)<>0, ROUND((SUM(AC150,AA150,AB150,AJ150,AI150,AH150)/SUM(AC150,AA150,AB150)), 4), "-") -> - | M160: =M153 -> PTO's | N160: =N153 -> Unweighted intervention volume_Individual asset category | O160: =O153 -> 0 | P160: =P153 -> 0 | R160: =R153 -> 0 | S160: =S153 -> 0 | U160: =U153 -> 0 | V160: =V153 -> 0
C161: perspective | D161: =D135 -> Part 2 of PTO | E161: =IF(P150<>0, ROUND((P150-SUM(O150))/P150,4), "-") -> - | F161: =IF(AK150<>0, ROUND((AK150-SUM(AJ150))/AK150,4), "-") -> - | G161: =D161 -> Part 2 of PTO | H161: =IF(P150<>0, ROUND((P150-SUM(O150,N150))/P150,4), "-") -> - | I161: =IF(AK150<>0, ROUND((AK150-SUM(AJ150,AI150))/AK150,4), "-") -> - | J161: =G161 -> Part 2 of PTO | K161: =IF(P150<>0, ROUND((P150-SUM(O150,N150,M150))/P150,4), "-") -> - | L161: =IF(AK150<>0, ROUND((AK150-SUM(AJ150,AI150,AH150))/AK150,4), "-") -> - | M161: =M154 -> % Interpretation | N161: =N154 -> Weighted intervention volume_Individual asset category | O161: =O160*F164 -> 0 | P161: =P160*F164 -> 0 | R161: =O161 -> 0 | S161: =P161 -> 0 | U161: =O161 -> 0 | V161: =P161 -> 0
D162: =D136 -> Part 3 of PTO | E162: =H150 -> 0 | F162: =AC150 -> 0 | G162: =D162 -> Part 3 of PTO | H162: =SUM(H150,G150) -> 0 | I162: =SUM(AC150,AB150) -> 0 | J162: =G162 -> Part 3 of PTO | K162: =SUM(H150,G150,F150) -> 0 | L162: =SUM(AC150,AA150,AB150) -> 0 | N162: Weighted original intervention volume_Network Level | O162: =O$407 -> 345.3073915 | R162: =O162 -> 345.3073915 | U162: =R162 -> 345.3073915
D163: PTO | E163: =IF(AND(H150<>0, P150<>0), SQRT(ABS(E160*E161))*E162, "Check HI5+HI4") -> Check HI5+HI4 | F163: =IF(AND(AC150<>0, AK150<>0), SQRT(ABS(F160*F161))*F162, "Check HI5+HI4") -> Check HI5+HI4 | G163: =D163 -> PTO | H163: =IF(AND((H150+G150)<>0, P150<>0), SQRT(ABS(H160*H161))*H162, "Check HI5+HI4+HI3") -> Check HI5+HI4+HI3 | I163: =IF(AND((AC150+AB150)<>0, AK150<>0), SQRT(ABS(I160*I161))*I162, "Check HI5+HI4+HI3") -> Check HI5+HI4+HI3 | J163: =G163 -> PTO | K163: =IF(AND((H150+G150+F150)<>0, P150<>0), SQRT(ABS(K160*K161))*K162, "No Asset or Intervention to Check") -> No Asset or Intervention to Check | L163: =IF(AND((AC150+AA150+AB150)<>0, AK150<>0), SQRT(ABS(L160*L161))*L162, "No Asset or Intervention to Check") -> No Asset or Intervention to Check | N163: Weighted, Original PTO - Rebased PTO | O163: =IFERROR(E165-F165, "Check HI5+HI4") -> Check HI5+HI4 | R163: =IFERROR(H165-I165, "Check HI5+HI4+HI3") -> Check HI5+HI4+HI3 | U163: =IFERROR(K165-L165, "No Intervention to Check") -> No Intervention to Check
D164: =D157 -> Network weighting factor | E164: =F164 -> 0 | F164: =F157 -> 0 | G164: =G157 -> Network weighting factor | H164: =I164 -> 0 | I164: =F164 -> 0 | J164: =J157 -> Network weighting factor | K164: =L164 -> 0 | L164: =F164 -> 0 | N164: %, (Original PTO - Rebased PTO) / (network original intervention vol) | O164: =IF(O162=0, "No Intervention", IFERROR(O163/O162, O163)) -> Check HI5+HI4 | R164: =IF(R162=0, "No Intervention", IFERROR(R163/R162, R163)) -> Check HI5+HI4+HI3 | U164: =IF(U162=0, "No Intervention", IFERROR(U163/U162, U163)) -> No Intervention to Check
D165: =D158 -> Weighted Network PTO | E165: =IFERROR(E163*E164,"Check HI5+HI4") -> Check HI5+HI4 | F165: =IFERROR(F163*F164,"Check HI5+HI4") -> Check HI5+HI4 | G165: =D165 -> Weighted Network PTO | H165: =IFERROR(H163*H164,"Check HI5+HI4") -> Check HI5+HI4 | I165: =IFERROR(I163*I164,"Check HI5+HI4+HI3") -> Check HI5+HI4+HI3 | J165: =G165 -> Weighted Network PTO | K165: =IFERROR(K163*K164,"Check C1+C2") -> Check C1+C2 | L165: =IFERROR(L163*L164,"No Asset or Intervention to Check") -> No Asset or Intervention to Check
C167: ='3.0_Data_Copy'!C69:D69 -> Distribution Mains (Steel)
C169: Original Targets | X169: Rebased Targets
C170: Asset Population | J170: Intervention Volumes | X170: Asset Population | AE170: Intervention Volumes
D171: HI1 | E171: HI2 | F171: HI3 | G171: HI4 | H171: HI5 | I171: Total | K171: HI1 | L171: HI2 | M171: HI3 | N171: HI4 | O171: HI5 | P171: Total | Y171: HI1 | Z171: HI2 | AA171: HI3 | AB171: HI4 | AC171: HI5 | AD171: Total | AF171: HI1 | AG171: HI2 | AH171: HI3 | AI171: HI4 | AJ171: HI5 | AK171: Total
C172: C4 | D172: =OFFSET('3.0_Data_Copy'!$C$9,MATCH('6.0_Check_3'!$C167,'3.0_Data_Copy'!$C$9:$C$160,0)+4,1,4,5) -> 0 | E172: 0 | F172: 858.4108507 | G172: 0 | H172: 0 | I172: =SUM(D172:H172) -> 858.4108507 | J172: C4 | K172: =IF(OFFSET('3.0_Data_Copy'!$C$9,MATCH('6.0_Check_3'!$C167,'3.0_Data_Copy'!$C$9:$C$160,0)+4,7,4,5)<0,OFFSET('3.0_Data_Copy'!$C$9,MATCH('6.0_Check_3'!$C167,'3.0_Data_Copy'!$C$9:$C$160,0)+4,7,4,5),"-") -> - | L172: - | M172: -305.6786501 | N172: - | O172: - | P172: =SUM(K172:O172) -> -305.6786501 | X172: C4 | Y172: =OFFSET('3.0_Data_Copy'!$C$9,MATCH('6.0_Check_3'!$C167,'3.0_Data_Copy'!$C$9:$C$160,0)+4,24,4,5) -> 0 | Z172: 0 | AA172: 0 | AB172: 0 | AC172: 0 | AD172: =SUM(Y172:AC172) -> 0 | AE172: C4 | AF172: =IF(OFFSET('3.0_Data_Copy'!$C$9,MATCH('6.0_Check_3'!$C167,'3.0_Data_Copy'!$C$9:$C$160,0)+4,30,4,5)<0,OFFSET('3.0_Data_Copy'!$C$9,MATCH('6.0_Check_3'!$C167,'3.0_Data_Copy'!$C$9:$C$160,0)+4,30,4,5),"-") -> - | AG172: - | AH172: - | AI172: - | AJ172: - | AK172: =SUM(AF172:AJ172) -> 0
C173: C3 | D173: 0 | E173: 0 | F173: 185.7208698 | G173: 0 | H173: 0 | I173: =SUM(D173:H173) -> 185.7208698 | J173: C3 | K173: - | L173: - | M173: -16.45017552 | N173: - | O173: - | P173: =SUM(K173:O173) -> -16.45017552 | X173: C3 | Y173: 0 | Z173: 0 | AA173: 0 | AB173: 0 | AC173: 0 | AD173: =SUM(Y173:AC173) -> 0 | AE173: C3 | AF173: - | AG173: - | AH173: - | AI173: - | AJ173: - | AK173: =SUM(AF173:AJ173) -> 0
C174: C2 | D174: 0 | E174: 296.126 | F174: 74.00525898 | G174: 0 | H174: 0 | I174: =SUM(D174:H174) -> 370.131259 | J174: C2 | K174: - | L174: - | M174: -0.2211744254 | N174: - | O174: - | P174: =SUM(K174:O174) -> -0.2211744254 | X174: C2 | Y174: 0 | Z174: 0 | AA174: 0 | AB174: 0 | AC174: 0 | AD174: =SUM(Y174:AC174) -> 0 | AE174: C2 | AF174: - | AG174: - | AH174: - | AI174: - | AJ174: - | AK174: =SUM(AF174:AJ174) -> 0
C175: C1 | D175: 0 | E175: 124.631 | F175: 0 | G175: 0 | H175: 0 | I175: =SUM(D175:H175) -> 124.631 | J175: C1 | K175: - | L175: - | M175: - | N175: - | O175: - | P175: =SUM(K175:O175) -> 0 | X175: C1 | Y175: 0 | Z175: 280.95855 | AA175: 159.45258 | AB175: 0 | AC175: 1072.68902 | AD175: =SUM(Y175:AC175) -> 1513.10015 | AE175: C1 | AF175: - | AG175: -0.85925 | AH175: -0.8737 | AI175: - | AJ175: -38.18339 | AK175: =SUM(AF175:AJ175) -> -39.91634
C176: Total | D176: =SUM(D172:D175) -> 0 | E176: 420.757 | F176: 1118.136979 | G176: 0 | H176: 0 | I176: 1538.893979 | J176: Total | K176: =SUM(K172:K175) -> 0 | L176: 0 | M176: -322.35 | N176: 0 | O176: 0 | P176: -322.35 | X176: Total | Y176: =SUM(Y172:Y175) -> 0 | Z176: 280.95855 | AA176: 159.45258 | AB176: 0 | AC176: 1072.68902 | AD176: 1513.10015 | AE176: Total | AF176: =SUM(AF172:AF175) -> 0 | AG176: -0.85925 | AH176: -0.8737 | AI176: 0 | AJ176: -38.18339 | AK176: -39.91634
C178: Check 3a | D178: C1 | E178: Original | F178: Rebased | G178: C1+C2 | H178: Original | I178: Rebased | J178: C1+C2+C3 | K178: Original | L178: Rebased | M178: Check 3a | N178: C1 | O178: Original | P178: Rebased | Q178: C1+C2 | R178: Original | S178: Rebased | T178: C1+C2+C3 | U178: Original | V178: Rebased
C179: Criticality | D179: =D153 -> Part 1 of PTO | E179: =IF(SUM(G175,H175)<>0, ROUND((SUM(H175,G175,N175,O175)/(G175+H175)),4), "-") -> - | F179: =IF(SUM(AB175+AC175)<>0, ROUND((SUM(AB175,AC175,AI175,AJ175)/SUM(AB175,AC175)),4), "-") -> 0.9644 | G179: =D179 -> Part 1 of PTO | H179: =IF(SUM(G174,H174,G175,H175)<>0, ROUND((SUM(G174,H174,G175,H175,N174,O174,N175,O175)/SUM(G174,H174,G175,H175)),4), "-") -> - | I179: =IF(SUM(AC174,AB174,AB175,AC175)<>0, ROUND((SUM(AC174,AB174,AB175,AC175,AI174,AJ174,AI175,AJ175)/SUM(AC174,AB174,AB175,AC175)),4), "-") -> 0.9644 | J179: =G179 -> Part 1 of PTO | K179: =IF(SUM(G173,H173,G174,H174,G175,H175)<>0, ROUND((SUM(G173,H173,G174,H174,G175,H175,N173,O173,N174,O174,N175,O175)/SUM(G173,H173,G174,H174,G175,H175)),4), "-") -> - | L179: =IF(SUM(AB173,AC173,AB174,AC174,AB175,AC175)<>0, ROUND((SUM(AB173,AC173,AB174,AC174,AB175,AC175,AI173,AJ173,AI174,AJ174,AI175,AJ175)/SUM(AB173,AC173,AB174,AC174,AB175,AC175)),4), "-") -> 0.9644 | M179: PTO's | N179: =N205 -> Unweighted intervention volume_Individual asset category | O179: 389.8 | P179: 389.8 | R179: =O179 -> 389.8 | S179: =P179 -> 389.8 | U179: =O179 -> 389.8 | V179: =P179 -> 389.8
C180: perspective | D180: =D154 -> Part 2 of PTO | E180: =IF(P176<>0, ROUND(((P176-SUM(N175,O175))/P176),4), "-") -> 1 | F180: =IF(AK176<>0, ROUND(((AK176-SUM(AJ175,AI175))/AK176),4), "-") -> 0.0434 | G180: Part 2 of PTO | H180: =IF(P176<>0, ROUND(((P176-SUM(N174,O174,N175,O175))/P176),4), "-") -> 1 | I180: =IF(AK176<>0, ROUND(((AK176-SUM(AI174,AJ174,AI175,AJ175))/AK176),4), "-") -> 0.0434 | J180: Part 2 of PTO | K180: =IF(P176<>0, ROUND((P176-SUM(N173:O175))/P176,4), "-") -> 1 | L180: =IF(AK176<>0, ROUND((AK176-SUM(AI173:AJ175))/AK176,4), "-") -> 0.0434 | M180: % Interpretation | N180: =N206 -> Weighted intervention volume_Individual asset category | O180: =O179*F183 -> 27.65946315 | P180: =P179*F183 -> 27.65946315 | R180: =O180 -> 27.65946315 | S180: =P180 -> 27.65946315 | U180: =O180 -> 27.65946315 | V180: =P180 -> 27.65946315
D181: =D155 -> Part 3 of PTO | E181: =SUM(G175,H175) -> 0 | F181: =SUM(AB175,AC175) -> 1072.68902 | G181: Part 3 of PTO | H181: =SUM(G174,H174,G175,H175) -> 0 | I181: =SUM(AC174,AB174,AB175,AC175) -> 1072.68902 | J181: Part 3 of PTO | K181: =SUM(G173,H173,G174,H174,G175,H175) -> 0 | L181: =SUM(AB173,AC173,AB174,AC174,AB175,AC175) -> 1072.68902 | N181: =N207 -> Weighted original intervention volume_Network Level | O181: =O$407 -> 345.3073915 | R181: =O181 -> 345.3073915 | U181: =R181 -> 345.3073915
D182: PTO | E182: =IF(AND((G175+H175)<>0, P176<>0), SQRT(ABS(E179*E180))*E181, "Check C1+C2") -> Check C1+C2 | F182: =IF(AND((AB175+AC175)<>0, AK176<>0), SQRT(ABS(F179*F180))*F181, "Check C1+C2") -> 219.45592 | G182: PTO | H182: =IF(AND((G174+H174+G175+H175)<>0, P176<>0), SQRT(ABS(H179*H180))*H181, "Check C1+C2+C3") -> Check C1+C2+C3 | I182: =IF(AND((AC174+AB174+AB175+AC175)<>0, AK176<>0), SQRT(ABS(I179*I180))*I181, "Check C1+C2+C3") -> 219.45592 | J182: PTO | K182: =IF(AND((G173+H173+G174+H174+G175+H175)<>0, P176<>0), SQRT(ABS(K179*K180))*K181, "No Asset or Intervention to Check") -> No Asset or Intervention to Check | L182: =IF(AND((AB173+AC173+AB174+AC174+AB175+AC175)<>0, AK176<>0), SQRT(ABS(L179*L180))*L181, "No Asset or Intervention to Check") -> 219.45592 | N182: Weighted, Original PTO - Rebased PTO | O182: =IFERROR(E184-F184, "Check C1+C2") -> Check C1+C2 | R182: =IFERROR(H184-I184, "Check C1+C2+C3") -> Check C1+C2+C3 | U182: =IFERROR(K184-L184, "No Intervention to Check") -> No Intervention to Check
D183: Network weighting factor | E183: =F183 -> 0.07095808914 | F183: 0.07095808914 | G183: Network weighting factor | H183: =I183 -> 0.07095808914 | I183: =F183 -> 0.07095808914 | J183: Network weighting factor | K183: =L183 -> 0.07095808914 | L183: =F183 -> 0.07095808914 | N183: %, (Original PTO - Rebased PTO) / (network original intervention vol) | O183: =IF(O181=0, "No Intervention", IFERROR(O182/O181, O182)) -> Check C1+C2 | R183: =IF(R181=0, "No Intervention", IFERROR(R182/R181, R182)) -> Check C1+C2+C3 | U183: =IF(U181=0, "No Intervention", IFERROR(U182/U181, U182)) -> No Intervention to Check
D184: Weighted Network PTO | E184: =IFERROR(E182*E183,"Check C1+C2") -> Check C1+C2 | F184: =IFERROR(F182*F183,"Check C1+C2") -> 15.57217274 | G184: Weighted Network PTO | H184: =IFERROR(H182*H183,"Check C1+C2") -> Check C1+C2 | I184: =IFERROR(I182*I183,"Check C1+C2+C3") -> 15.57217274 | J184: Weighted Network PTO | K184: =IFERROR(K182*K183,"Check C1+C2") -> Check C1+C2 | L184: =IFERROR(L182*L183,"No Asset or Intervention to Check") -> 15.57217274
C185: Check 3b | D185: HI5 | E185: Original | F185: Rebased | G185: HI5+HI4 | H185: Original | I185: Rebased | J185: HI5+HI4+HI3 | K185: Original | L185: Rebased | M185: Check 3b | N185: HI5 | O185: Original | P185: Rebased | Q185: HI5+HI4 | R185: Original | S185: Rebased | T185: HI5+HI4+HI3 | U185: Original | V185: Rebased
C186: Health | D186: =D160 -> Part 1 of PTO | E186: =IF(AND(H176<>0, P176<>0),ROUND((SUM(H176,O176)/H176),4), "-") -> - | F186: =IF(AC176<>0, ROUND((SUM(AC176,AJ176)/AC176),4), "-") -> 0.9644 | G186: =D186 -> Part 1 of PTO | H186: =IF(SUM(H176,G176)<>0, ROUND((SUM(H176,G176,O176,N176)/SUM(H176,G176)),4), "-") -> - | I186: =IF(SUM(AC176,AB176)<>0, ROUND((SUM(AC176,AB176,AJ176,AI176)/SUM(AC176,AB176)), 4), "-") -> 0.9644 | J186: =G186 -> Part 1 of PTO | K186: =IF(SUM(H176,G176,F176)<>0, ROUND((SUM(H176,G176,F176,O176,N176,M176)/SUM(H176,G176,F176)), 4), "-") -> 0.7117 | L186: =IF(SUM(AC176,AA176,AB176)<>0, ROUND((SUM(AC176,AA176,AB176,AJ176,AI176,AH176)/SUM(AC176,AA176,AB176)), 4), "-") -> 0.9683 | M186: =M179 -> PTO's | N186: =N179 -> Unweighted intervention volume_Individual asset category | O186: =O179 -> 389.8 | P186: =P179 -> 389.8 | R186: =R179 -> 389.8 | S186: =S179 -> 389.8 | U186: =U179 -> 389.8 | V186: =V179 -> 389.8
C187: perspective | D187: =D161 -> Part 2 of PTO | E187: =IF(P176<>0, ROUND((P176-SUM(O176))/P176,4), "-") -> 1 | F187: =IF(AK176<>0, ROUND((AK176-SUM(AJ176))/AK176,4), "-") -> 0.0434 | G187: =D187 -> Part 2 of PTO | H187: =IF(P176<>0, ROUND((P176-SUM(O176,N176))/P176,4), "-") -> 1 | I187: =IF(AK176<>0, ROUND((AK176-SUM(AJ176,AI176))/AK176,4), "-") -> 0.0434 | J187: =G187 -> Part 2 of PTO | K187: =IF(P176<>0, ROUND((P176-SUM(O176,N176,M176))/P176,4), "-") -> 0 | L187: =IF(AK176<>0, ROUND((AK176-SUM(AJ176,AI176,AH176))/AK176,4), "-") -> 0.0215 | M187: =M180 -> % Interpretation | N187: =N180 -> Weighted intervention volume_Individual asset category | O187: =O186*F190 -> 27.65946315 | P187: =P186*F190 -> 27.65946315 | R187: =O187 -> 27.65946315 | S187: =P187 -> 27.65946315 | U187: =O187 -> 27.65946315 | V187: =P187 -> 27.65946315
D188: =D162 -> Part 3 of PTO | E188: =H176 -> 0 | F188: =AC176 -> 1072.68902 | G188: =D188 -> Part 3 of PTO | H188: =SUM(H176,G176) -> 0 | I188: =SUM(AC176,AB176) -> 1072.68902 | J188: =G188 -> Part 3 of PTO | K188: =SUM(H176,G176,F176) -> 1118.136979 | L188: =SUM(AC176,AA176,AB176) -> 1232.1416 | N188: Weighted original intervention volume_Network Level | O188: =O$407 -> 345.3073915 | R188: =O188 -> 345.3073915 | U188: =R188 -> 345.3073915
D189: PTO | E189: =IF(AND(H176<>0, P176<>0), SQRT(ABS(E186*E187))*E188, "Check HI5+HI4") -> Check HI5+HI4 | F189: =IF(AND(AC176<>0, AK176<>0), SQRT(ABS(F186*F187))*F188, "Check HI5+HI4") -> 219.45592 | G189: =D189 -> PTO | H189: =IF(AND((H176+G176)<>0, P176<>0), SQRT(ABS(H186*H187))*H188, "Check HI5+HI4+HI3") -> Check HI5+HI4+HI3 | I189: =IF(AND((AC176+AB176)<>0, AK176<>0), SQRT(ABS(I186*I187))*I188, "Check HI5+HI4+HI3") -> 219.45592 | J189: =G189 -> PTO | K189: =IF(AND((H176+G176+F176)<>0, P176<>0), SQRT(ABS(K186*K187))*K188, "No Asset or Intervention to Check") -> 0 | L189: =IF(AND((AC176+AA176+AB176)<>0, AK176<>0), SQRT(ABS(L186*L187))*L188, "No Asset or Intervention to Check") -> 177.7807838 | N189: Weighted, Original PTO - Rebased PTO | O189: =IFERROR(E191-F191, "Check HI5+HI4") -> Check HI5+HI4 | R189: =IFERROR(H191-I191, "Check HI5+HI4+HI3") -> Check HI5+HI4+HI3 | U189: =IFERROR(K191-L191, "No Intervention to Check") -> -12.6149847
D190: =D183 -> Network weighting factor | E190: =F190 -> 0.07095808914 | F190: =F183 -> 0.07095808914 | G190: =G183 -> Network weighting factor | H190: =I190 -> 0.07095808914 | I190: =F190 -> 0.07095808914 | J190: =J183 -> Network weighting factor | K190: =L190 -> 0.07095808914 | L190: =F190 -> 0.07095808914 | N190: %, (Original PTO - Rebased PTO) / (network original intervention vol) | O190: =IF(O188=0, "No Intervention", IFERROR(O189/O188, O189)) -> Check HI5+HI4 | R190: =IF(R188=0, "No Intervention", IFERROR(R189/R188, R189)) -> Check HI5+HI4+HI3 | U190: =IF(U188=0, "No Intervention", IFERROR(U189/U188, U189)) -> -0.03653262286
D191: =D184 -> Weighted Network PTO | E191: =IFERROR(E189*E190,"Check HI5+HI4") -> Check HI5+HI4 | F191: =IFERROR(F189*F190,"Check HI5+HI4") -> 15.57217274 | G191: =D191 -> Weighted Network PTO | H191: =IFERROR(H189*H190,"Check HI5+HI4") -> Check HI5+HI4 | I191: =IFERROR(I189*I190,"Check HI5+HI4+HI3") -> 15.57217274 | J191: =G191 -> Weighted Network PTO | K191: =IFERROR(K189*K190,"Check C1+C2") -> 0 | L191: =IFERROR(L189*L190,"No Asset or Intervention to Check") -> 12.6149847
C193: ='3.0_Data_Copy'!C79:D79 -> Distribution Mains (other)
C195: Original Targets | X195: Rebased Targets
C196: Asset Population | J196: Intervention Volumes | X196: Asset Population | AE196: Intervention Volumes
D197: HI1 | E197: HI2 | F197: HI3 | G197: HI4 | H197: HI5 | I197: Total | K197: HI1 | L197: HI2 | M197: HI3 | N197: HI4 | O197: HI5 | P197: Total | Y197: HI1 | Z197: HI2 | AA197: HI3 | AB197: HI4 | AC197: HI5 | AD197: Total | AF197: HI1 | AG197: HI2 | AH197: HI3 | AI197: HI4 | AJ197: HI5 | AK197: Total
C198: C4 | D198: =OFFSET('3.0_Data_Copy'!$C$9,MATCH('6.0_Check_3'!$C193,'3.0_Data_Copy'!$C$9:$C$160,0)+4,1,4,5) -> 0 | E198: 0 | F198: 0 | G198: 0 | H198: 0 | I198: =SUM(D198:H198) -> 0 | J198: C4 | K198: =IF(OFFSET('3.0_Data_Copy'!$C$9,MATCH('6.0_Check_3'!$C193,'3.0_Data_Copy'!$C$9:$C$160,0)+4,7,4,5)<0,OFFSET('3.0_Data_Copy'!$C$9,MATCH('6.0_Check_3'!$C193,'3.0_Data_Copy'!$C$9:$C$160,0)+4,7,4,5),"-") -> - | L198: - | M198: - | N198: - | O198: - | P198: =SUM(K198:O198) -> 0 | X198: C4 | Y198: =OFFSET('3.0_Data_Copy'!$C$9,MATCH('6.0_Check_3'!$C193,'3.0_Data_Copy'!$C$9:$C$160,0)+4,24,4,5) -> 0 | Z198: 0 | AA198: 0 | AB198: 0 | AC198: 0 | AD198: =SUM(Y198:AC198) -> 0 | AE198: C4 | AF198: =IF(OFFSET('3.0_Data_Copy'!$C$9,MATCH('6.0_Check_3'!$C193,'3.0_Data_Copy'!$C$9:$C$160,0)+4,30,4,5)<0,OFFSET('3.0_Data_Copy'!$C$9,MATCH('6.0_Check_3'!$C193,'3.0_Data_Copy'!$C$9:$C$160,0)+4,30,4,5),"-") -> - | AG198: - | AH198: - | AI198: - | AJ198: - | AK198: =SUM(AF198:AJ198) -> 0
C199: C3 | D199: 0 | E199: 0 | F199: 0 | G199: 0 | H199: 0 | I199: =SUM(D199:H199) -> 0 | J199: C3 | K199: - | L199: - | M199: - | N199: - | O199: - | P199: =SUM(K199:O199) -> 0 | X199: C3 | Y199: 0 | Z199: 0 | AA199: 0 | AB199: 0 | AC199: 0 | AD199: =SUM(Y199:AC199) -> 0 | AE199: C3 | AF199: - | AG199: - | AH199: - | AI199: - | AJ199: - | AK199: =SUM(AF199:AJ199) -> 0
C200: C2 | D200: 0 | E200: 0 | F200: 0 | G200: 0 | H200: 0 | I200: =SUM(D200:H200) -> 0 | J200: C2 | K200: - | L200: - | M200: - | N200: - | O200: - | P200: =SUM(K200:O200) -> 0 | X200: C2 | Y200: 0 | Z200: 0 | AA200: 0 | AB200: 0 | AC200: 0 | AD200: =SUM(Y200:AC200) -> 0 | AE200: C2 | AF200: - | AG200: - | AH200: - | AI200: - | AJ200: - | AK200: =SUM(AF200:AJ200) -> 0
C201: C1 | D201: 0 | E201: 0 | F201: 0 | G201: 0 | H201: 119 | I201: =SUM(D201:H201) -> 119 | J201: C1 | K201: - | L201: - | M201: - | N201: - | O201: -64.6 | P201: =SUM(K201:O201) -> -64.6 | X201: C1 | Y201: 0 | Z201: 0 | AA201: 0 | AB201: 1.24137 | AC201: 112.91145 | AD201: =SUM(Y201:AC201) -> 114.15282 | AE201: C1 | AF201: - | AG201: - | AH201: - | AI201: - | AJ201: -112.91145 | AK201: =SUM(AF201:AJ201) -> -112.91145
C202: Total | D202: =SUM(D198:D201) -> 0 | E202: 0 | F202: 0 | G202: 0 | H202: 119 | I202: 119 | J202: Total | K202: =SUM(K198:K201) -> 0 | L202: 0 | M202: 0 | N202: 0 | O202: -64.6 | P202: -64.6 | X202: Total | Y202: =SUM(Y198:Y201) -> 0 | Z202: 0 | AA202: 0 | AB202: 1.24137 | AC202: 112.91145 | AD202: 114.15282 | AE202: Total | AF202: =SUM(AF198:AF201) -> 0 | AG202: 0 | AH202: 0 | AI202: 0 | AJ202: -112.91145 | AK202: -112.91145
C204: Check 3a | D204: C1 | E204: Original | F204: Rebased | G204: C1+C2 | H204: Original | I204: Rebased | J204: C1+C2+C3 | K204: Original | L204: Rebased | M204: Check 3a | N204: C1 | O204: Original | P204: Rebased | Q204: C1+C2 | R204: Original | S204: Rebased | T204: C1+C2+C3 | U204: Original | V204: Rebased
C205: Criticality | D205: =D179 -> Part 1 of PTO | E205: =IF(SUM(G201,H201)<>0, ROUND((SUM(H201,G201,N201,O201)/(G201+H201)),4), "-") -> 0.4571 | F205: =IF(SUM(AB201+AC201)<>0, ROUND((SUM(AB201,AC201,AI201,AJ201)/SUM(AB201,AC201)),4), "-") -> 0.0109 | G205: =D205 -> Part 1 of PTO | H205: =IF(SUM(G200,H200,G201,H201)<>0, ROUND((SUM(G200,H200,G201,H201,N200,O200,N201,O201)/SUM(G200,H200,G201,H201)),4), "-") -> 0.4571 | I205: =IF(SUM(AC200,AB200,AB201,AC201)<>0, ROUND((SUM(AC200,AB200,AB201,AC201,AI200,AJ200,AI201,AJ201)/SUM(AC200,AB200,AB201,AC201)),4), "-") -> 0.0109 | J205: =G205 -> Part 1 of PTO | K205: =IF(SUM(G199,H199,G200,H200,G201,H201)<>0, ROUND((SUM(G199,H199,G200,H200,G201,H201,N199,O199,N200,O200,N201,O201)/SUM(G199,H199,G200,H200,G201,H201)),4), "-") -> 0.4571 | L205: =IF(SUM(AB199,AC199,AB200,AC200,AB201,AC201)<>0, ROUND((SUM(AB199,AC199,AB200,AC200,AB201,AC201,AI199,AJ199,AI200,AJ200,AI201,AJ201)/SUM(AB199,AC199,AB200,AC200,AB201,AC201)),4), "-") -> 0.0109 | M205: PTO's | N205: =N231 -> Unweighted intervention volume_Individual asset category | O205: 0 | P205: 0 | R205: =O205 -> 0 | S205: =P205 -> 0 | U205: =O205 -> 0 | V205: =P205 -> 0
C206: perspective | D206: =D180 -> Part 2 of PTO | E206: =IF(P202<>0, ROUND(((P202-SUM(N201,O201))/P202),4), "-") -> 0 | F206: =IF(AK202<>0, ROUND(((AK202-SUM(AJ201,AI201))/AK202),4), "-") -> 0 | G206: Part 2 of PTO | H206: =IF(P202<>0, ROUND(((P202-SUM(N200,O200,N201,O201))/P202),4), "-") -> 0 | I206: =IF(AK202<>0, ROUND(((AK202-SUM(AI200,AJ200,AI201,AJ201))/AK202),4), "-") -> 0 | J206: Part 2 of PTO | K206: =IF(P202<>0, ROUND((P202-SUM(N199:O201))/P202,4), "-") -> 0 | L206: =IF(AK202<>0, ROUND((AK202-SUM(AI199:AJ201))/AK202,4), "-") -> 0 | M206: % Interpretation | N206: =N232 -> Weighted intervention volume_Individual asset category | O206: =O205*F209 -> 0 | P206: =P205*F209 -> 0 | R206: =O206 -> 0 | S206: =P206 -> 0 | U206: =O206 -> 0 | V206: =P206 -> 0
D207: =D181 -> Part 3 of PTO | E207: =SUM(G201,H201) -> 119 | F207: =SUM(AB201,AC201) -> 114.15282 | G207: Part 3 of PTO | H207: =SUM(G200,H200,G201,H201) -> 119 | I207: =SUM(AC200,AB200,AB201,AC201) -> 114.15282 | J207: Part 3 of PTO | K207: =SUM(G199,H199,G200,H200,G201,H201) -> 119 | L207: =SUM(AB199,AC199,AB200,AC200,AB201,AC201) -> 114.15282 | N207: =N233 -> Weighted original intervention volume_Network Level | O207: =O$407 -> 345.3073915 | R207: =O207 -> 345.3073915 | U207: =R207 -> 345.3073915
D208: PTO | E208: =IF(AND((G201+H201)<>0, P202<>0), SQRT(ABS(E205*E206))*E207, "Check C1+C2") -> 0 | F208: =IF(AND((AB201+AC201)<>0, AK202<>0), SQRT(ABS(F205*F206))*F207, "Check C1+C2") -> 0 | G208: PTO | H208: =IF(AND((G200+H200+G201+H201)<>0, P202<>0), SQRT(ABS(H205*H206))*H207, "Check C1+C2+C3") -> 0 | I208: =IF(AND((AC200+AB200+AB201+AC201)<>0, AK202<>0), SQRT(ABS(I205*I206))*I207, "Check C1+C2+C3") -> 0 | J208: PTO | K208: =IF(AND((G199+H199+G200+H200+G201+H201)<>0, P202<>0), SQRT(ABS(K205*K206))*K207, "No Asset or Intervention to Check") -> 0 | L208: =IF(AND((AB199+AC199+AB200+AC200+AB201+AC201)<>0, AK202<>0), SQRT(ABS(L205*L206))*L207, "No Asset or Intervention to Check") -> 0 | N208: Weighted, Original PTO - Rebased PTO | O208: =IFERROR(E210-F210, "Check C1+C2") -> 0 | R208: =IFERROR(H210-I210, "Check C1+C2+C3") -> 0 | U208: =IFERROR(K210-L210, "No Intervention to Check") -> 0
D209: Network weighting factor | E209: =F209 -> 0.03776919241 | F209: 0.03776919241 | G209: Network weighting factor | H209: =I209 -> 0.03776919241 | I209: =F209 -> 0.03776919241 | J209: Network weighting factor | K209: =L209 -> 0.03776919241 | L209: =F209 -> 0.03776919241 | N209: %, (Original PTO - Rebased PTO) / (network original intervention vol) | O209: =IF(O207=0, "No Intervention", IFERROR(O208/O207, O208)) -> 0 | R209: =IF(R207=0, "No Intervention", IFERROR(R208/R207, R208)) -> 0 | U209: =IF(U207=0, "No Intervention", IFERROR(U208/U207, U208)) -> 0
D210: Weighted Network PTO | E210: =IFERROR(E208*E209,"Check C1+C2") -> 0 | F210: =IFERROR(F208*F209,"Check C1+C2") -> 0 | G210: Weighted Network PTO | H210: =IFERROR(H208*H209,"Check C1+C2") -> 0 | I210: =IFERROR(I208*I209,"Check C1+C2+C3") -> 0 | J210: Weighted Network PTO | K210: =IFERROR(K208*K209,"Check C1+C2") -> 0 | L210: =IFERROR(L208*L209,"No Asset or Intervention to Check") -> 0
C211: Check 3b | D211: HI5 | E211: Original | F211: Rebased | G211: HI5+HI4 | H211: Original | I211: Rebased | J211: HI5+HI4+HI3 | K211: Original | L211: Rebased | M211: Check 3b | N211: HI5 | O211: Original | P211: Rebased | Q211: HI5+HI4 | R211: Original | S211: Rebased | T211: HI5+HI4+HI3 | U211: Original | V211: Rebased
C212: Health | D212: =D186 -> Part 1 of PTO | E212: =IF(AND(H202<>0, P202<>0),ROUND((SUM(H202,O202)/H202),4), "-") -> 0.4571 | F212: =IF(AC202<>0, ROUND((SUM(AC202,AJ202)/AC202),4), "-") -> 0 | G212: =D212 -> Part 1 of PTO | H212: =IF(SUM(H202,G202)<>0, ROUND((SUM(H202,G202,O202,N202)/SUM(H202,G202)),4), "-") -> 0.4571 | I212: =IF(SUM(AC202,AB202)<>0, ROUND((SUM(AC202,AB202,AJ202,AI202)/SUM(AC202,AB202)), 4), "-") -> 0.0109 | J212: =G212 -> Part 1 of PTO | K212: =IF(SUM(H202,G202,F202)<>0, ROUND((SUM(H202,G202,F202,O202,N202,M202)/SUM(H202,G202,F202)), 4), "-") -> 0.4571 | L212: =IF(SUM(AC202,AA202,AB202)<>0, ROUND((SUM(AC202,AA202,AB202,AJ202,AI202,AH202)/SUM(AC202,AA202,AB202)), 4), "-") -> 0.0109 | M212: =M205 -> PTO's | N212: =N205 -> Unweighted intervention volume_Individual asset category | O212: =O205 -> 0 | P212: =P205 -> 0 | R212: =R205 -> 0 | S212: =S205 -> 0 | U212: =U205 -> 0 | V212: =V205 -> 0
C213: perspective | D213: =D187 -> Part 2 of PTO | E213: =IF(P202<>0, ROUND((P202-SUM(O202))/P202,4), "-") -> 0 | F213: =IF(AK202<>0, ROUND((AK202-SUM(AJ202))/AK202,4), "-") -> 0 | G213: =D213 -> Part 2 of PTO | H213: =IF(P202<>0, ROUND((P202-SUM(O202,N202))/P202,4), "-") -> 0 | I213: =IF(AK202<>0, ROUND((AK202-SUM(AJ202,AI202))/AK202,4), "-") -> 0 | J213: =G213 -> Part 2 of PTO | K213: =IF(P202<>0, ROUND((P202-SUM(O202,N202,M202))/P202,4), "-") -> 0 | L213: =IF(AK202<>0, ROUND((AK202-SUM(AJ202,AI202,AH202))/AK202,4), "-") -> 0 | M213: =M206 -> % Interpretation | N213: =N206 -> Weighted intervention volume_Individual asset category | O213: =O212*F216 -> 0 | P213: =P212*F216 -> 0 | R213: =O213 -> 0 | S213: =P213 -> 0 | U213: =O213 -> 0 | V213: =P213 -> 0
D214: =D188 -> Part 3 of PTO | E214: =H202 -> 119 | F214: =AC202 -> 112.91145 | G214: =D214 -> Part 3 of PTO | H214: =SUM(H202,G202) -> 119 | I214: =SUM(AC202,AB202) -> 114.15282 | J214: =G214 -> Part 3 of PTO | K214: =SUM(H202,G202,F202) -> 119 | L214: =SUM(AC202,AA202,AB202) -> 114.15282 | N214: Weighted original intervention volume_Network Level | O214: =O$407 -> 345.3073915 | R214: =O214 -> 345.3073915 | U214: =R214 -> 345.3073915
D215: PTO | E215: =IF(AND(H202<>0, P202<>0), SQRT(ABS(E212*E213))*E214, "Check HI5+HI4") -> 0 | F215: =IF(AND(AC202<>0, AK202<>0), SQRT(ABS(F212*F213))*F214, "Check HI5+HI4") -> 0 | G215: =D215 -> PTO | H215: =IF(AND((H202+G202)<>0, P202<>0), SQRT(ABS(H212*H213))*H214, "Check HI5+HI4+HI3") -> 0 | I215: =IF(AND((AC202+AB202)<>0, AK202<>0), SQRT(ABS(I212*I213))*I214, "Check HI5+HI4+HI3") -> 0 | J215: =G215 -> PTO | K215: =IF(AND((H202+G202+F202)<>0, P202<>0), SQRT(ABS(K212*K213))*K214, "No Asset or Intervention to Check") -> 0 | L215: =IF(AND((AC202+AA202+AB202)<>0, AK202<>0), SQRT(ABS(L212*L213))*L214, "No Asset or Intervention to Check") -> 0 | N215: Weighted, Original PTO - Rebased PTO | O215: =IFERROR(E217-F217, "Check HI5+HI4") -> 0 | R215: =IFERROR(H217-I217, "Check HI5+HI4+HI3") -> 0 | U215: =IFERROR(K217-L217, "No Intervention to Check") -> 0
D216: =D209 -> Network weighting factor | E216: =F216 -> 0.03776919241 | F216: =F209 -> 0.03776919241 | G216: =G209 -> Network weighting factor | H216: =I216 -> 0.03776919241 | I216: =F216 -> 0.03776919241 | J216: =J209 -> Network weighting factor | K216: =L216 -> 0.03776919241 | L216: =F216 -> 0.03776919241 | N216: %, (Original PTO - Rebased PTO) / (network original intervention vol) | O216: =IF(O214=0, "No Intervention", IFERROR(O215/O214, O215)) -> 0 | R216: =IF(R214=0, "No Intervention", IFERROR(R215/R214, R215)) -> 0 | U216: =IF(U214=0, "No Intervention", IFERROR(U215/U214, U215)) -> 0
D217: =D210 -> Weighted Network PTO | E217: =IFERROR(E215*E216,"Check HI5+HI4") -> 0 | F217: =IFERROR(F215*F216,"Check HI5+HI4") -> 0 | G217: =D217 -> Weighted Network PTO | H217: =IFERROR(H215*H216,"Check HI5+HI4") -> 0 | I217: =IFERROR(I215*I216,"Check HI5+HI4+HI3") -> 0 | J217: =G217 -> Weighted Network PTO | K217: =IFERROR(K215*K216,"Check C1+C2") -> 0 | L217: =IFERROR(L215*L216,"No Asset or Intervention to Check") -> 0
C219: ='3.0_Data_Copy'!C89:D89 -> Services
C221: Original Targets | X221: Rebased Targets
C222: Asset Population | J222: Intervention Volumes | X222: Asset Population | AE222: Intervention Volumes
D223: HI1 | E223: HI2 | F223: HI3 | G223: HI4 | H223: HI5 | I223: Total | K223: HI1 | L223: HI2 | M223: HI3 | N223: HI4 | O223: HI5 | P223: Total | Y223: HI1 | Z223: HI2 | AA223: HI3 | AB223: HI4 | AC223: HI5 | AD223: Total | AF223: HI1 | AG223: HI2 | AH223: HI3 | AI223: HI4 | AJ223: HI5 | AK223: Total
C224: C4 | D224: =OFFSET('3.0_Data_Copy'!$C$9,MATCH('6.0_Check_3'!$C219,'3.0_Data_Copy'!$C$9:$C$160,0)+4,1,4,5) -> 2258933 | E224: 0 | F224: 0 | G224: 24331 | H224: 367135 | I224: =SUM(D224:H224) -> 2650399 | J224: C4 | K224: =IF(OFFSET('3.0_Data_Copy'!$C$9,MATCH('6.0_Check_3'!$C219,'3.0_Data_Copy'!$C$9:$C$160,0)+4,7,4,5)<0,OFFSET('3.0_Data_Copy'!$C$9,MATCH('6.0_Check_3'!$C219,'3.0_Data_Copy'!$C$9:$C$160,0)+4,7,4,5),"-") -> - | L224: - | M224: - | N224: -500 | O224: -226566 | P224: =SUM(K224:O224) -> -227066 | X224: C4 | Y224: =OFFSET('3.0_Data_Copy'!$C$9,MATCH('6.0_Check_3'!$C219,'3.0_Data_Copy'!$C$9:$C$160,0)+4,24,4,5) -> 2208652.553 | Z224: 0 | AA224: 0 | AB224: 0 | AC224: 0 | AD224: =SUM(Y224:AC224) -> 2208652.553 | AE224: C4 | AF224: =IF(OFFSET('3.0_Data_Copy'!$C$9,MATCH('6.0_Check_3'!$C219,'3.0_Data_Copy'!$C$9:$C$160,0)+4,30,4,5)<0,OFFSET('3.0_Data_Copy'!$C$9,MATCH('6.0_Check_3'!$C219,'3.0_Data_Copy'!$C$9:$C$160,0)+4,30,4,5),"-") -> - | AG224: - | AH224: - | AI224: - | AJ224: - | AK224: =SUM(AF224:AJ224) -> 0
C225: C3 | D225: 0 | E225: 0 | F225: 0 | G225: 0 | H225: 0 | I225: =SUM(D225:H225) -> 0 | J225: C3 | K225: - | L225: - | M225: - | N225: - | O225: - | P225: =SUM(K225:O225) -> 0 | X225: C3 | Y225: 22952 | Z225: 0 | AA225: 0 | AB225: 0 | AC225: 0 | AD225: =SUM(Y225:AC225) -> 22952 | AE225: C3 | AF225: - | AG225: - | AH225: - | AI225: - | AJ225: - | AK225: =SUM(AF225:AJ225) -> 0
C226: C2 | D226: 0 | E226: 0 | F226: 0 | G226: 0 | H226: 0 | I226: =SUM(D226:H226) -> 0 | J226: C2 | K226: - | L226: - | M226: - | N226: - | O226: - | P226: =SUM(K226:O226) -> 0 | X226: C2 | Y226: 0 | Z226: 0 | AA226: 0 | AB226: 0 | AC226: 0 | AD226: =SUM(Y226:AC226) -> 0 | AE226: C2 | AF226: - | AG226: - | AH226: - | AI226: - | AJ226: - | AK226: =SUM(AF226:AJ226) -> 0
C227: C1 | D227: 0 | E227: 0 | F227: 0 | G227: 0 | H227: 0 | I227: =SUM(D227:H227) -> 0 | J227: C1 | K227: - | L227: - | M227: - | N227: - | O227: - | P227: =SUM(K227:O227) -> 0 | X227: C1 | Y227: 0 | Z227: 0 | AA227: 0 | AB227: 0 | AC227: 441377.4479 | AD227: =SUM(Y227:AC227) -> 441377.4479 | AE227: C1 | AF227: - | AG227: - | AH227: - | AI227: - | AJ227: -223238 | AK227: =SUM(AF227:AJ227) -> -223238
C228: Total | D228: =SUM(D224:D227) -> 2258933 | E228: 0 | F228: 0 | G228: 24331 | H228: 367135 | I228: 2650399 | J228: Total | K228: =SUM(K224:K227) -> 0 | L228: 0 | M228: 0 | N228: -500 | O228: -226566 | P228: -227066 | X228: Total | Y228: =SUM(Y224:Y227) -> 2231604.553 | Z228: 0 | AA228: 0 | AB228: 0 | AC228: 441377.4479 | AD228: 2672982.001 | AE228: Total | AF228: =SUM(AF224:AF227) -> 0 | AG228: 0 | AH228: 0 | AI228: 0 | AJ228: -223238 | AK228: -223238
C230: Check 3a | D230: C1 | E230: Original | F230: Rebased | G230: C1+C2 | H230: Original | I230: Rebased | J230: C1+C2+C3 | K230: Original | L230: Rebased | M230: Check 3a | N230: C1 | O230: Original | P230: Rebased | Q230: C1+C2 | R230: Original | S230: Rebased | T230: C1+C2+C3 | U230: Original | V230: Rebased
C231: Criticality | D231: =D205 -> Part 1 of PTO | E231: =IF(SUM(G227,H227)<>0, ROUND((SUM(H227,G227,N227,O227)/(G227+H227)),4), "-") -> - | F231: =IF(SUM(AB227+AC227)<>0, ROUND((SUM(AB227,AC227,AI227,AJ227)/SUM(AB227,AC227)),4), "-") -> 0.4942 | G231: =D231 -> Part 1 of PTO | H231: =IF(SUM(G226,H226,G227,H227)<>0, ROUND((SUM(G226,H226,G227,H227,N226,O226,N227,O227)/SUM(G226,H226,G227,H227)),4), "-") -> - | I231: =IF(SUM(AC226,AB226,AB227,AC227)<>0, ROUND((SUM(AC226,AB226,AB227,AC227,AI226,AJ226,AI227,AJ227)/SUM(AC226,AB226,AB227,AC227)),4), "-") -> 0.4942 | J231: =G231 -> Part 1 of PTO | K231: =IF(SUM(G225,H225,G226,H226,G227,H227)<>0, ROUND((SUM(G225,H225,G226,H226,G227,H227,N225,O225,N226,O226,N227,O227)/SUM(G225,H225,G226,H226,G227,H227)),4), "-") -> - | L231: =IF(SUM(AB225,AC225,AB226,AC226,AB227,AC227)<>0, ROUND((SUM(AB225,AC225,AB226,AC226,AB227,AC227,AI225,AJ225,AI226,AJ226,AI227,AJ227)/SUM(AB225,AC225,AB226,AC226,AB227,AC227)),4), "-") -> 0.4942 | M231: PTO's | N231: =N257 -> Unweighted intervention volume_Individual asset category | O231: ='3.0_Data_Copy'!AM94 -> 229785 | P231: ='3.0_Data_Copy'!AR94 -> 229785 | R231: =O231 -> 229785 | S231: =P231 -> 229785 | U231: =O231 -> 229785 | V231: =P231 -> 229785
C232: perspective | D232: =D206 -> Part 2 of PTO | E232: =IF(P228<>0, ROUND(((P228-SUM(N227,O227))/P228),4), "-") -> 1 | F232: =IF(AK228<>0, ROUND(((AK228-SUM(AJ227,AI227))/AK228),4), "-") -> 0 | G232: Part 2 of PTO | H232: =IF(P228<>0, ROUND(((P228-SUM(N226,O226,N227,O227))/P228),4), "-") -> 1 | I232: =IF(AK228<>0, ROUND(((AK228-SUM(AI226,AJ226,AI227,AJ227))/AK228),4), "-") -> 0 | J232: Part 2 of PTO | K232: =IF(P228<>0, ROUND((P228-SUM(N225:O227))/P228,4), "-") -> 1 | L232: =IF(AK228<>0, ROUND((AK228-SUM(AI225:AJ227))/AK228,4), "-") -> 0 | M232: % Interpretation | N232: =N258 -> Weighted intervention volume_Individual asset category | O232: =O231*F235 -> 51.46906812 | P232: =P231*F235 -> 51.46906812 | R232: =O232 -> 51.46906812 | S232: =P232 -> 51.46906812 | U232: =O232 -> 51.46906812 | V232: =P232 -> 51.46906812
... 160 more rows
